Workbook

Sheet Start
A1: Gesamtzeit des Teiles in Minuten: | B1: =SUM('diverse Arbeiten'!E2)+('TGM Standardgewinde'!F2)+('TGM Bohren'!J3)+('TGM Plandrehen'!K1)+('TGM Langdrehen '!M1)+('TGM Fräsen_F pro Zahn'!I2)+('TGM Fräsen _F pro Min.'!F2)+(' Tiefbohren mehrere Arten'!E2)+('TGM Rundschleifen'!D2)+(ZSV!D11)+(ZSV!D20)+(ZSV!D29)+(ZSV!D38)+(ZSV!D47)+(ZSV!D56)+('Aufmaß Zeitspanvolumen Drehen'!C3) -> 0 | C1: Arbeitsblätter | E1: 1 | F1: =INDEX(E2:E13,E1) -> € | L1: =IF(Suche!O1=0,"Fehler bedingte Formatierung",Suche!O1) -> 
A2: Gesamtsumme + X% Zuschlagsatz | E2: €
A3: 30 | B3: =ROUND($B$1+($B$1/100*A3),2) -> 0 | E3: CHF
A4: =CONCATENATE("Stundensatz in ",F1) -> Stundensatz in € | B4: =CONCATENATE("Preis in ",F1) -> Preis in € | E4: $
A5: 70 | B5: =A5/60*B3 -> 0
H8: =IF(H9=16,"Hinweis1","edit_Berechnung") -> Hinweis1
H9: =TYPE(Suche!O1) -> 16 | P9: =A19 -> Teile-Nr.: | Q9: =A20 -> Teilebezeichnung: | R9: =A21 -> Material: | S9: Speicher-Datum | T9: =A22 -> für Firma: | U9: =A23 -> Anfrage-Nr.: | V9: =A24 -> Angebots-Nr.: | W9: =A2 -> Gesamtsumme + X% Zuschlagsatz
H10: =IF(B19=0,"Hinweis2","TGM_speichern") -> Hinweis2 | P10: =B19 -> 0 | Q10: =B20 -> 0 | R10: =B21 -> 0 | S10: =NOW() -> 2016-12-21T14:11:15.230 | T10: =B22 -> 0 | U10: =B23 -> 0 | V10: =B24 -> 0 | W10: =B3 -> 0
A14: heutiges Datum: | B14: =NOW() -> 2016-12-21T14:11:15.240
A16: © Ulrich Daßler 25.05.2016
A18: Dateneingabe für Berechnung | C18: Anzahl gespeicherte Berechnungen
A19: Teile-Nr.: | C19: =COUNTA(Suche!A:A)-1 -> 0
A20: Teilebezeichnung:
A21: Material:
A22: für Firma:
A23: Anfrage-Nr.:
A24: Angebots-Nr.:
A26: Hinweis für die Berechnung:

Sheet Suche
A1: Teile-Nr.: | B1: Teilebezeichnung: | C1: Material: | D1: Speicher-Datum | E1: für Firma: | F1: Anfrage-Nr.: | G1: Angebots-Nr.: | H1: Berechnete Zeit in Minuten einschl. Zuschlagsatz | O1: =VLOOKUP(P1,A:A,1,0) ->  | P1: =Start!B19 -> 0

Sheet Druckausgabe
E1: Abfrage Ausblenden J/N
A2: Berechnung der Hauptnutzungszeit | F2: =CONCATENATE(B3,"_",B4) -> 0_0
A3: =Start!A19 -> Teile-Nr.: | B3: =Start!B19 -> 0
A4: =Start!A20 -> Teilebezeichnung: | B4: =Start!B20 -> 0
A5: =Start!A21 -> Material: | B5: =Start!B21 -> 0
A6: =Start!A22 -> für Firma: | B6: =Start!B22 -> 0
A7: =Start!A23 -> Anfrage-Nr.: | B7: =Start!B23 -> 0
A8: =Start!A24 -> Angebots-Nr.: | B8: =Start!B24 -> 0
A9: =Start!A25 -> 0 | B9: =Start!B25 -> 0 | E9: =IF(A9=0,"J","N") -> J
A10: =Start!A26 -> Hinweis für die Berechnung: | B10: =Start!B26 -> 0 | E10: N
A11: =Start!A27 -> 0 | B11: =Start!B27 -> 0 | E11: J
A12: =Start!A28 -> 0 | B12: =Start!B28 -> 0 | E12: J
A13: =Start!A29 -> 0 | B13: =Start!B29 -> 0 | E13: J
A15: berechnete Zeit in Minuten: | B15: =ROUND(Start!B1,2) -> 0
A16: Zuschlagsatz in %: | B16: =CONCATENATE(Start!A3,"%") -> 30%
A17: Gesamtzeit inkl. Zuschlagsatz in Minuten: | B17: =Start!B3 -> 0
A18: =CONCATENATE("Stundensatz in ",Start!F1,":") -> Stundensatz in €: | B18: =CONCATENATE(Start!A5," ",Start!F1) -> 70 €
A19: =CONCATENATE("Preis in ",Start!F1,":") -> Preis in €: | B19: =CONCATENATE(ROUND(Start!B5,2)," ",Start!F1) -> 0 €
A21: ='diverse Arbeiten'!B1 -> Zeitberechnung diverse Arbeiten | E21: =IF(B22=0,"J","N") -> J
A22: Gesamtzeit in Minuten = | B22: ='diverse Arbeiten'!E2 -> 0 | E22: =IF(B22=0,"J","N") -> J
A23: Bemerkung | B23: Beschreibung | C23: Menge | D23: Zeit | E23: =IF(B22=0,"J","N") -> J
A24: ='diverse Arbeiten'!A4 -> 0 | B24: ='diverse Arbeiten'!B4 -> 0 | C24: ='diverse Arbeiten'!C4 -> 0 | D24: ='diverse Arbeiten'!E4 -> 0 | E24: =IF(D24=0,"J","N") -> J
A25: ='diverse Arbeiten'!A5 -> 0 | B25: ='diverse Arbeiten'!B5 -> 0 | C25: ='diverse Arbeiten'!C5 -> 0 | D25: ='diverse Arbeiten'!E5 -> 0 | E25: =IF(D25=0,"J","N") -> J
A26: ='diverse Arbeiten'!A6 -> 0 | B26: ='diverse Arbeiten'!B6 -> 0 | C26: ='diverse Arbeiten'!C6 -> 0 | D26: ='diverse Arbeiten'!E6 -> 0 | E26: J
A27: ='diverse Arbeiten'!A7 -> 0 | B27: ='diverse Arbeiten'!B7 -> 0 | C27: ='diverse Arbeiten'!C7 -> 0 | D27: ='diverse Arbeiten'!E7 -> 0 | E27: J
A28: ='diverse Arbeiten'!A8 -> 0 | B28: ='diverse Arbeiten'!B8 -> 0 | C28: ='diverse Arbeiten'!C8 -> 0 | D28: ='diverse Arbeiten'!E8 -> 0 | E28: J
A29: ='diverse Arbeiten'!A9 -> 0 | B29: ='diverse Arbeiten'!B9 -> 0 | C29: ='diverse Arbeiten'!C9 -> 0 | D29: ='diverse Arbeiten'!E9 -> 0 | E29: J
A30: ='diverse Arbeiten'!A10 -> 0 | B30: ='diverse Arbeiten'!B10 -> 0 | C30: ='diverse Arbeiten'!C10 -> 0 | D30: ='diverse Arbeiten'!E10 -> 0 | E30: J
A31: ='diverse Arbeiten'!A11 -> 0 | B31: ='diverse Arbeiten'!B11 -> 0 | C31: ='diverse Arbeiten'!C11 -> 0 | D31: ='diverse Arbeiten'!E11 -> 0 | E31: J
A32: ='diverse Arbeiten'!A12 -> 0 | B32: ='diverse Arbeiten'!B12 -> 0 | C32: ='diverse Arbeiten'!C12 -> 0 | D32: ='diverse Arbeiten'!E12 -> 0 | E32: J
A33: ='diverse Arbeiten'!A13 -> 0 | B33: ='diverse Arbeiten'!B13 -> 0 | C33: ='diverse Arbeiten'!C13 -> 0 | D33: ='diverse Arbeiten'!E13 -> 0 | E33: J
A34: ='diverse Arbeiten'!A14 -> 0 | B34: ='diverse Arbeiten'!B14 -> 0 | C34: ='diverse Arbeiten'!C14 -> 0 | D34: ='diverse Arbeiten'!E14 -> 0 | E34: J
A35: ='diverse Arbeiten'!A15 -> 0 | B35: ='diverse Arbeiten'!B15 -> 0 | C35: ='diverse Arbeiten'!C15 -> 0 | D35: ='diverse Arbeiten'!E15 -> 0 | E35: J
A36: ='diverse Arbeiten'!A16 -> 0 | B36: ='diverse Arbeiten'!B16 -> 0 | C36: ='diverse Arbeiten'!C16 -> 0 | D36: ='diverse Arbeiten'!E16 -> 0 | E36: J
A37: ='diverse Arbeiten'!A17 -> 0 | B37: ='diverse Arbeiten'!B17 -> 0 | C37: ='diverse Arbeiten'!C17 -> 0 | D37: ='diverse Arbeiten'!E17 -> 0 | E37: J
A38: ='diverse Arbeiten'!A18 -> 0 | B38: ='diverse Arbeiten'!B18 -> 0 | C38: ='diverse Arbeiten'!C18 -> 0 | D38: ='diverse Arbeiten'!E18 -> 0 | E38: J
A39: ='diverse Arbeiten'!A19 -> 0 | B39: ='diverse Arbeiten'!B19 -> 0 | C39: ='diverse Arbeiten'!C19 -> 0 | D39: ='diverse Arbeiten'!E19 -> 0 | E39: J
A40: ='diverse Arbeiten'!A20 -> 0 | B40: ='diverse Arbeiten'!B20 -> 0 | C40: ='diverse Arbeiten'!C20 -> 0 | D40: ='diverse Arbeiten'!E20 -> 0 | E40: J
A41: ='diverse Arbeiten'!A21 -> 0 | B41: ='diverse Arbeiten'!B21 -> 0 | C41: ='diverse Arbeiten'!C21 -> 0 | D41: ='diverse Arbeiten'!E21 -> 0 | E41: J
A42: ='diverse Arbeiten'!A22 -> 0 | B42: ='diverse Arbeiten'!B22 -> 0 | C42: ='diverse Arbeiten'!C22 -> 0 | D42: ='diverse Arbeiten'!E22 -> 0 | E42: J
A43: ='diverse Arbeiten'!A23 -> 0 | B43: ='diverse Arbeiten'!B23 -> 0 | C43: ='diverse Arbeiten'!C23 -> 0 | D43: ='diverse Arbeiten'!E23 -> 0 | E43: J
A44: ='diverse Arbeiten'!A24 -> 0 | B44: ='diverse Arbeiten'!B24 -> 0 | C44: ='diverse Arbeiten'!C24 -> 0 | D44: ='diverse Arbeiten'!E24 -> 0 | E44: J
A45: ='diverse Arbeiten'!A25 -> 0 | B45: ='diverse Arbeiten'!B25 -> 0 | C45: ='diverse Arbeiten'!C25 -> 0 | D45: ='diverse Arbeiten'!E25 -> 0 | E45: J
A46: ='diverse Arbeiten'!A26 -> 0 | B46: ='diverse Arbeiten'!B26 -> 0 | C46: ='diverse Arbeiten'!C26 -> 0 | D46: ='diverse Arbeiten'!E26 -> 0 | E46: J
A47: ='diverse Arbeiten'!A27 -> 0 | B47: ='diverse Arbeiten'!B27 -> 0 | C47: ='diverse Arbeiten'!C27 -> 0 | D47: ='diverse Arbeiten'!E27 -> 0 | E47: J
A48: ='diverse Arbeiten'!A28 -> 0 | B48: ='diverse Arbeiten'!B28 -> 0 | C48: ='diverse Arbeiten'!C28 -> 0 | D48: ='diverse Arbeiten'!E28 -> 0 | E48: J
A49: ='diverse Arbeiten'!A29 -> 0 | B49: ='diverse Arbeiten'!B29 -> 0 | C49: ='diverse Arbeiten'!C29 -> 0 | D49: ='diverse Arbeiten'!E29 -> 0 | E49: J
A50: ='diverse Arbeiten'!A30 -> 0 | B50: ='diverse Arbeiten'!B30 -> 0 | C50: ='diverse Arbeiten'!C30 -> 0 | D50: ='diverse Arbeiten'!E30 -> 0 | E50: J
A51: ='diverse Arbeiten'!A31 -> 0 | B51: ='diverse Arbeiten'!B31 -> 0 | C51: ='diverse Arbeiten'!C31 -> 0 | D51: ='diverse Arbeiten'!E31 -> 0 | E51: J
A52: ='diverse Arbeiten'!A32 -> 0 | B52: ='diverse Arbeiten'!B32 -> 0 | C52: ='diverse Arbeiten'!C32 -> 0 | D52: ='diverse Arbeiten'!E32 -> 0 | E52: J
A53: ='diverse Arbeiten'!A33 -> 0 | B53: ='diverse Arbeiten'!B33 -> 0 | C53: ='diverse Arbeiten'!C33 -> 0 | D53: ='diverse Arbeiten'!E33 -> 0 | E53: J
A54: ='diverse Arbeiten'!A34 -> 0 | B54: ='diverse Arbeiten'!B34 -> 0 | C54: ='diverse Arbeiten'!C34 -> 0 | D54: ='diverse Arbeiten'!E34 -> 0 | E54: J
A55: ='diverse Arbeiten'!A35 -> 0 | B55: ='diverse Arbeiten'!B35 -> 0 | C55: ='diverse Arbeiten'!C35 -> 0 | D55: ='diverse Arbeiten'!E35 -> 0 | E55: J
A56: ='diverse Arbeiten'!A36 -> 0 | B56: ='diverse Arbeiten'!B36 -> 0 | C56: ='diverse Arbeiten'!C36 -> 0 | D56: ='diverse Arbeiten'!E36 -> 0 | E56: J
A57: ='diverse Arbeiten'!A37 -> 0 | B57: ='diverse Arbeiten'!B37 -> 0 | C57: ='diverse Arbeiten'!C37 -> 0 | D57: ='diverse Arbeiten'!E37 -> 0 | E57: J
A58: ='diverse Arbeiten'!A38 -> 0 | B58: ='diverse Arbeiten'!B38 -> 0 | C58: ='diverse Arbeiten'!C38 -> 0 | D58: ='diverse Arbeiten'!E38 -> 0 | E58: J
A59: ='diverse Arbeiten'!A39 -> 0 | B59: ='diverse Arbeiten'!B39 -> 0 | C59: ='diverse Arbeiten'!C39 -> 0 | D59: ='diverse Arbeiten'!E39 -> 0 | E59: J
A60: ='diverse Arbeiten'!A40 -> 0 | B60: ='diverse Arbeiten'!B40 -> 0 | C60: ='diverse Arbeiten'!C40 -> 0 | D60: ='diverse Arbeiten'!E40 -> 0 | E60: J
A61: ='diverse Arbeiten'!A41 -> 0 | B61: ='diverse Arbeiten'!B41 -> 0 | C61: ='diverse Arbeiten'!C41 -> 0 | D61: ='diverse Arbeiten'!E41 -> 0 | E61: J
A62: ='diverse Arbeiten'!A42 -> 0 | B62: ='diverse Arbeiten'!B42 -> 0 | C62: ='diverse Arbeiten'!C42 -> 0 | D62: ='diverse Arbeiten'!E42 -> 0 | E62: J
A63: ='diverse Arbeiten'!A43 -> 0 | B63: ='diverse Arbeiten'!B43 -> 0 | C63: ='diverse Arbeiten'!C43 -> 0 | D63: ='diverse Arbeiten'!E43 -> 0 | E63: J
A64: ='diverse Arbeiten'!A44 -> 0 | B64: ='diverse Arbeiten'!B44 -> 0 | C64: ='diverse Arbeiten'!C44 -> 0 | D64: ='diverse Arbeiten'!E44 -> 0 | E64: J
A65: ='diverse Arbeiten'!A45 -> 0 | B65: ='diverse Arbeiten'!B45 -> 0 | C65: ='diverse Arbeiten'!C45 -> 0 | D65: ='diverse Arbeiten'!E45 -> 0 | E65: J
A66: ='diverse Arbeiten'!A46 -> 0 | B66: ='diverse Arbeiten'!B46 -> 0 | C66: ='diverse Arbeiten'!C46 -> 0 | D66: ='diverse Arbeiten'!E46 -> 0 | E66: J
A67: ='diverse Arbeiten'!A47 -> 0 | B67: ='diverse Arbeiten'!B47 -> 0 | C67: ='diverse Arbeiten'!C47 -> 0 | D67: ='diverse Arbeiten'!E47 -> 0 | E67: J
A68: ='diverse Arbeiten'!A48 -> 0 | B68: ='diverse Arbeiten'!B48 -> 0 | C68: ='diverse Arbeiten'!C48 -> 0 | D68: ='diverse Arbeiten'!E48 -> 0 | E68: J
A69: ='diverse Arbeiten'!A49 -> 0 | B69: ='diverse Arbeiten'!B49 -> 0 | C69: ='diverse Arbeiten'!C49 -> 0 | D69: ='diverse Arbeiten'!E49 -> 0 | E69: J
A70: ='diverse Arbeiten'!A50 -> 0 | B70: ='diverse Arbeiten'!B50 -> 0 | C70: ='diverse Arbeiten'!C50 -> 0 | D70: ='diverse Arbeiten'!E50 -> 0 | E70: J
A71: ='diverse Arbeiten'!A51 -> 0 | B71: ='diverse Arbeiten'!B51 -> 0 | C71: ='diverse Arbeiten'!C51 -> 0 | D71: ='diverse Arbeiten'!E51 -> 0 | E71: J
A72: ='diverse Arbeiten'!A52 -> 0 | B72: ='diverse Arbeiten'!B52 -> 0 | C72: ='diverse Arbeiten'!C52 -> 0 | D72: ='diverse Arbeiten'!E52 -> 0 | E72: J
A73: ='diverse Arbeiten'!A53 -> 0 | B73: ='diverse Arbeiten'!B53 -> 0 | C73: ='diverse Arbeiten'!C53 -> 0 | D73: ='diverse Arbeiten'!E53 -> 0 | E73: J
A74: ='diverse Arbeiten'!A54 -> 0 | B74: ='diverse Arbeiten'!B54 -> 0 | C74: ='diverse Arbeiten'!C54 -> 0 | D74: ='diverse Arbeiten'!E54 -> 0 | E74: J
A75: ='diverse Arbeiten'!A55 -> 0 | B75: ='diverse Arbeiten'!B55 -> 0 | C75: ='diverse Arbeiten'!C55 -> 0 | D75: ='diverse Arbeiten'!E55 -> 0 | E75: J
A76: ='diverse Arbeiten'!A56 -> 0 | B76: ='diverse Arbeiten'!B56 -> 0 | C76: ='diverse Arbeiten'!C56 -> 0 | D76: ='diverse Arbeiten'!E56 -> 0 | E76: J
A77: ='diverse Arbeiten'!A57 -> 0 | B77: ='diverse Arbeiten'!B57 -> 0 | C77: ='diverse Arbeiten'!C57 -> 0 | D77: ='diverse Arbeiten'!E57 -> 0 | E77: J
A78: ='diverse Arbeiten'!A58 -> 0 | B78: ='diverse Arbeiten'!B58 -> 0 | C78: ='diverse Arbeiten'!C58 -> 0 | D78: ='diverse Arbeiten'!E58 -> 0 | E78: J
A79: ='diverse Arbeiten'!A59 -> 0 | B79: ='diverse Arbeiten'!B59 -> 0 | C79: ='diverse Arbeiten'!C59 -> 0 | D79: ='diverse Arbeiten'!E59 -> 0 | E79: J
A80: ='diverse Arbeiten'!A60 -> 0 | B80: ='diverse Arbeiten'!B60 -> 0 | C80: ='diverse Arbeiten'!C60 -> 0 | D80: ='diverse Arbeiten'!E60 -> 0 | E80: J
A81: ='diverse Arbeiten'!A61 -> 0 | B81: ='diverse Arbeiten'!B61 -> 0 | C81: ='diverse Arbeiten'!C61 -> 0 | D81: ='diverse Arbeiten'!E61 -> 0 | E81: J
A82: ='diverse Arbeiten'!A62 -> 0 | B82: ='diverse Arbeiten'!B62 -> 0 | C82: ='diverse Arbeiten'!C62 -> 0 | D82: ='diverse Arbeiten'!E62 -> 0 | E82: J
A83: ='diverse Arbeiten'!A63 -> 0 | B83: ='diverse Arbeiten'!B63 -> 0 | C83: ='diverse Arbeiten'!C63 -> 0 | D83: ='diverse Arbeiten'!E63 -> 0 | E83: J
A84: ='diverse Arbeiten'!A64 -> 0 | B84: ='diverse Arbeiten'!B64 -> 0 | C84: ='diverse Arbeiten'!C64 -> 0 | D84: ='diverse Arbeiten'!E64 -> 0 | E84: J
A85: ='diverse Arbeiten'!A65 -> 0 | B85: ='diverse Arbeiten'!B65 -> 0 | C85: ='diverse Arbeiten'!C65 -> 0 | D85: ='diverse Arbeiten'!E65 -> 0 | E85: J
A86: ='diverse Arbeiten'!A66 -> 0 | B86: ='diverse Arbeiten'!B66 -> 0 | C86: ='diverse Arbeiten'!C66 -> 0 | D86: ='diverse Arbeiten'!E66 -> 0 | E86: J
A87: ='diverse Arbeiten'!A67 -> 0 | B87: ='diverse Arbeiten'!B67 -> 0 | C87: ='diverse Arbeiten'!C67 -> 0 | D87: ='diverse Arbeiten'!E67 -> 0 | E87: J
A88: ='diverse Arbeiten'!A68 -> 0 | B88: ='diverse Arbeiten'!B68 -> 0 | C88: ='diverse Arbeiten'!C68 -> 0 | D88: ='diverse Arbeiten'!E68 -> 0 | E88: J
A89: ='diverse Arbeiten'!A69 -> 0 | B89: ='diverse Arbeiten'!B69 -> 0 | C89: ='diverse Arbeiten'!C69 -> 0 | D89: ='diverse Arbeiten'!E69 -> 0 | E89: =IF(D89=0,"J","N") -> J
A90: ='diverse Arbeiten'!A70 -> 0 | B90: ='diverse Arbeiten'!B70 -> 0 | C90: ='diverse Arbeiten'!C70 -> 0 | D90: ='diverse Arbeiten'!E70 -> 0 | E90: J
A91: ='diverse Arbeiten'!A71 -> 0 | B91: ='diverse Arbeiten'!B71 -> 0 | C91: ='diverse Arbeiten'!C71 -> 0 | D91: ='diverse Arbeiten'!E71 -> 0 | E91: J
A92: ='diverse Arbeiten'!A72 -> 0 | B92: ='diverse Arbeiten'!B72 -> 0 | C92: ='diverse Arbeiten'!C72 -> 0 | D92: ='diverse Arbeiten'!E72 -> 0 | E92: J
A93: ='diverse Arbeiten'!A73 -> 0 | B93: ='diverse Arbeiten'!B73 -> 0 | C93: ='diverse Arbeiten'!C73 -> 0 | D93: ='diverse Arbeiten'!E73 -> 0 | E93: J
A94: ='diverse Arbeiten'!A74 -> 0 | B94: ='diverse Arbeiten'!B74 -> 0 | C94: ='diverse Arbeiten'!C74 -> 0 | D94: ='diverse Arbeiten'!E74 -> 0 | E94: J
A95: ='diverse Arbeiten'!A75 -> 0 | B95: ='diverse Arbeiten'!B75 -> 0 | C95: ='diverse Arbeiten'!C75 -> 0 | D95: ='diverse Arbeiten'!E75 -> 0 | E95: J
A96: ='diverse Arbeiten'!A76 -> 0 | B96: ='diverse Arbeiten'!B76 -> 0 | C96: ='diverse Arbeiten'!C76 -> 0 | D96: ='diverse Arbeiten'!E76 -> 0 | E96: J
A97: ='diverse Arbeiten'!A77 -> 0 | B97: ='diverse Arbeiten'!B77 -> 0 | C97: ='diverse Arbeiten'!C77 -> 0 | D97: ='diverse Arbeiten'!E77 -> 0 | E97: J
A98: ='diverse Arbeiten'!A78 -> 0 | B98: ='diverse Arbeiten'!B78 -> 0 | C98: ='diverse Arbeiten'!C78 -> 0 | D98: ='diverse Arbeiten'!E78 -> 0 | E98: J
A99: ='diverse Arbeiten'!A79 -> 0 | B99: ='diverse Arbeiten'!B79 -> 0 | C99: ='diverse Arbeiten'!C79 -> 0 | D99: ='diverse Arbeiten'!E79 -> 0 | E99: J
A100: ='diverse Arbeiten'!A80 -> 0 | B100: ='diverse Arbeiten'!B80 -> 0 | C100: ='diverse Arbeiten'!C80 -> 0 | D100: ='diverse Arbeiten'!E80 -> 0 | E100: J
A101: ='diverse Arbeiten'!A81 -> 0 | B101: ='diverse Arbeiten'!B81 -> 0 | C101: ='diverse Arbeiten'!C81 -> 0 | D101: ='diverse Arbeiten'!E81 -> 0 | E101: J
A102: ='diverse Arbeiten'!A82 -> 0 | B102: ='diverse Arbeiten'!B82 -> 0 | C102: ='diverse Arbeiten'!C82 -> 0 | D102: ='diverse Arbeiten'!E82 -> 0 | E102: J
A103: ='diverse Arbeiten'!A83 -> 0 | B103: ='diverse Arbeiten'!B83 -> 0 | C103: ='diverse Arbeiten'!C83 -> 0 | D103: ='diverse Arbeiten'!E83 -> 0 | E103: J
A104: ='diverse Arbeiten'!A84 -> 0 | B104: ='diverse Arbeiten'!B84 -> 0 | C104: ='diverse Arbeiten'!C84 -> 0 | D104: ='diverse Arbeiten'!E84 -> 0 | E104: J
A105: ='diverse Arbeiten'!A85 -> 0 | B105: ='diverse Arbeiten'!B85 -> 0 | C105: ='diverse Arbeiten'!C85 -> 0 | D105: ='diverse Arbeiten'!E85 -> 0 | E105: J
A106: ='diverse Arbeiten'!A86 -> 0 | B106: ='diverse Arbeiten'!B86 -> 0 | C106: ='diverse Arbeiten'!C86 -> 0 | D106: ='diverse Arbeiten'!E86 -> 0 | E106: J
A107: ='diverse Arbeiten'!A87 -> 0 | B107: ='diverse Arbeiten'!B87 -> 0 | C107: ='diverse Arbeiten'!C87 -> 0 | D107: ='diverse Arbeiten'!E87 -> 0 | E107: J
A108: ='diverse Arbeiten'!A88 -> 0 | B108: ='diverse Arbeiten'!B88 -> 0 | C108: ='diverse Arbeiten'!C88 -> 0 | D108: ='diverse Arbeiten'!E88 -> 0 | E108: J
A109: ='diverse Arbeiten'!A89 -> 0 | B109: ='diverse Arbeiten'!B89 -> 0 | C109: ='diverse Arbeiten'!C89 -> 0 | D109: ='diverse Arbeiten'!E89 -> 0 | E109: J
A110: ='diverse Arbeiten'!A90 -> 0 | B110: ='diverse Arbeiten'!B90 -> 0 | C110: ='diverse Arbeiten'!C90 -> 0 | D110: ='diverse Arbeiten'!E90 -> 0 | E110: J
A111: ='diverse Arbeiten'!A91 -> 0 | B111: ='diverse Arbeiten'!B91 -> 0 | C111: ='diverse Arbeiten'!C91 -> 0 | D111: ='diverse Arbeiten'!E91 -> 0 | E111: J
A112: ='diverse Arbeiten'!A92 -> 0 | B112: ='diverse Arbeiten'!B92 -> 0 | C112: ='diverse Arbeiten'!C92 -> 0 | D112: ='diverse Arbeiten'!E92 -> 0 | E112: J
A113: ='diverse Arbeiten'!A93 -> 0 | B113: ='diverse Arbeiten'!B93 -> 0 | C113: ='diverse Arbeiten'!C93 -> 0 | D113: ='diverse Arbeiten'!E93 -> 0 | E113: J
A114: ='diverse Arbeiten'!A94 -> 0 | B114: ='diverse Arbeiten'!B94 -> 0 | C114: ='diverse Arbeiten'!C94 -> 0 | D114: ='diverse Arbeiten'!E94 -> 0 | E114: J
A115: ='diverse Arbeiten'!A95 -> 0 | B115: ='diverse Arbeiten'!B95 -> 0 | C115: ='diverse Arbeiten'!C95 -> 0 | D115: ='diverse Arbeiten'!E95 -> 0 | E115: J
A116: ='diverse Arbeiten'!A96 -> 0 | B116: ='diverse Arbeiten'!B96 -> 0 | C116: ='diverse Arbeiten'!C96 -> 0 | D116: ='diverse Arbeiten'!E96 -> 0 | E116: J
A117: ='diverse Arbeiten'!A97 -> 0 | B117: ='diverse Arbeiten'!B97 -> 0 | C117: ='diverse Arbeiten'!C97 -> 0 | D117: ='diverse Arbeiten'!E97 -> 0 | E117: J
A118: ='diverse Arbeiten'!A98 -> 0 | B118: ='diverse Arbeiten'!B98 -> 0 | C118: ='diverse Arbeiten'!C98 -> 0 | D118: ='diverse Arbeiten'!E98 -> 0 | E118: J
A119: ='diverse Arbeiten'!A99 -> 0 | B119: ='diverse Arbeiten'!B99 -> 0 | C119: ='diverse Arbeiten'!C99 -> 0 | D119: ='diverse Arbeiten'!E99 -> 0 | E119: J
A120: ='diverse Arbeiten'!A100 -> 0 | B120: ='diverse Arbeiten'!B100 -> 0 | C120: ='diverse Arbeiten'!C100 -> 0 | D120: ='diverse Arbeiten'!E100 -> 0 | E120: J
A121: ='diverse Arbeiten'!A101 -> 0 | B121: ='diverse Arbeiten'!B101 -> 0 | C121: ='diverse Arbeiten'!C101 -> 0 | D121: ='diverse Arbeiten'!E101 -> 0 | E121: J
A122: ='diverse Arbeiten'!A102 -> 0 | B122: ='diverse Arbeiten'!B102 -> 0 | C122: ='diverse Arbeiten'!C102 -> 0 | D122: ='diverse Arbeiten'!E102 -> 0 | E122: J
A123: ='diverse Arbeiten'!A103 -> 0 | B123: ='diverse Arbeiten'!B103 -> 0 | C123: ='diverse Arbeiten'!C103 -> 0 | D123: ='diverse Arbeiten'!E103 -> 0 | E123: J
A124: ='diverse Arbeiten'!A104 -> 0 | B124: ='diverse Arbeiten'!B104 -> 0 | C124: ='diverse Arbeiten'!C104 -> 0 | D124: ='diverse Arbeiten'!E104 -> 0 | E124: J
E125: =IF(B22=0,"J","N") -> J
A126: ='TGM Standardgewinde'!A1 -> Zeitberechnung zentrieren, bohren, senken und Gewinde schneiden bei Standardgewinden | E126: =IF(B127=0,"J","N") -> J
A127: Gesamtzeit in Minuten = | B127: ='TGM Standardgewinde'!F2 -> 0 | E127: =IF(B127=0,"J","N") -> J
A128: Bemerkung | B128: Gewinde | C128: Menge | D128: Zeit | E128: =IF(B127=0,"J","N") -> J
A129: ='TGM Standardgewinde'!A3 -> 0 | B129: ='TGM Standardgewinde'!B3 -> 0 | C129: ='TGM Standardgewinde'!C3 -> 0 | D129: ='TGM Standardgewinde'!E3 -> 0 | E129: =IF(D129=0,"J","N") -> J
A130: ='TGM Standardgewinde'!A4 -> 0 | B130: ='TGM Standardgewinde'!B4 -> M4 | C130: ='TGM Standardgewinde'!C4 -> 0 | D130: ='TGM Standardgewinde'!E4 -> 0 | E130: J
A131: ='TGM Standardgewinde'!A5 -> 0 | B131: ='TGM Standardgewinde'!B5 -> M5 | C131: ='TGM Standardgewinde'!C5 -> 0 | D131: ='TGM Standardgewinde'!E5 -> 0 | E131: J
A132: ='TGM Standardgewinde'!A6 -> 0 | B132: ='TGM Standardgewinde'!B6 -> M6 | C132: ='TGM Standardgewinde'!C6 -> 0 | D132: ='TGM Standardgewinde'!E6 -> 0 | E132: J
A133: ='TGM Standardgewinde'!A7 -> 0 | B133: ='TGM Standardgewinde'!B7 -> M8 | C133: ='TGM Standardgewinde'!C7 -> 0 | D133: ='TGM Standardgewinde'!E7 -> 0 | E133: J
A134: ='TGM Standardgewinde'!A8 -> 0 | B134: ='TGM Standardgewinde'!B8 -> M10 | C134: ='TGM Standardgewinde'!C8 -> 0 | D134: ='TGM Standardgewinde'!E8 -> 0 | E134: J
A135: ='TGM Standardgewinde'!A9 -> 0 | B135: ='TGM Standardgewinde'!B9 -> M12 | C135: ='TGM Standardgewinde'!C9 -> 0 | D135: ='TGM Standardgewinde'!E9 -> 0 | E135: J
A136: ='TGM Standardgewinde'!A10 -> 0 | B136: ='TGM Standardgewinde'!B10 -> M14 | C136: ='TGM Standardgewinde'!C10 -> 0 | D136: ='TGM Standardgewinde'!E10 -> 0 | E136: J
A137: ='TGM Standardgewinde'!A11 -> 0 | B137: ='TGM Standardgewinde'!B11 -> M16 | C137: ='TGM Standardgewinde'!C11 -> 0 | D137: ='TGM Standardgewinde'!E11 -> 0 | E137: J
A138: ='TGM Standardgewinde'!A12 -> 0 | B138: ='TGM Standardgewinde'!B12 -> M18 | C138: ='TGM Standardgewinde'!C12 -> 0 | D138: ='TGM Standardgewinde'!E12 -> 0 | E138: J
A139: ='TGM Standardgewinde'!A13 -> 0 | B139: ='TGM Standardgewinde'!B13 -> M20 | C139: ='TGM Standardgewinde'!C13 -> 0 | D139: ='TGM Standardgewinde'!E13 -> 0 | E139: J
A140: ='TGM Standardgewinde'!A14 -> 0 | B140: ='TGM Standardgewinde'!B14 -> M22 | C140: ='TGM Standardgewinde'!C14 -> 0 | D140: ='TGM Standardgewinde'!E14 -> 0 | E140: J
A141: ='TGM Standardgewinde'!A15 -> 0 | B141: ='TGM Standardgewinde'!B15 -> M24 | C141: ='TGM Standardgewinde'!C15 -> 0 | D141: ='TGM Standardgewinde'!E15 -> 0 | E141: J
A142: ='TGM Standardgewinde'!A16 -> 0 | B142: ='TGM Standardgewinde'!B16 -> G1/8" | C142: ='TGM Standardgewinde'!C16 -> 0 | D142: ='TGM Standardgewinde'!E16 -> 0 | E142: J
A143: ='TGM Standardgewinde'!A17 -> 0 | B143: ='TGM Standardgewinde'!B17 -> G1/4" | C143: ='TGM Standardgewinde'!C17 -> 0 | D143: ='TGM Standardgewinde'!E17 -> 0 | E143: J
A144: ='TGM Standardgewinde'!A18 -> 0 | B144: ='TGM Standardgewinde'!B18 -> G1/2" | C144: ='TGM Standardgewinde'!C18 -> 0 | D144: ='TGM Standardgewinde'!E18 -> 0 | E144: J
A145: ='TGM Standardgewinde'!A19 -> 0 | B145: ='TGM Standardgewinde'!B19 -> G3/4" | C145: ='TGM Standardgewinde'!C19 -> 0 | D145: ='TGM Standardgewinde'!E19 -> 0 | E145: J
A146: ='TGM Standardgewinde'!A20 -> 0 | B146: ='TGM Standardgewinde'!B20 -> G1 | C146: ='TGM Standardgewinde'!C20 -> 0 | D146: ='TGM Standardgewinde'!E20 -> 0 | E146: J
A147: ='TGM Standardgewinde'!A21 -> 0 | B147: ='TGM Standardgewinde'!B21 -> 0 | C147: ='TGM Standardgewinde'!C21 -> 0 | D147: ='TGM Standardgewinde'!E21 -> 0 | E147: J
A148: ='TGM Standardgewinde'!A22 -> 0 | B148: ='TGM Standardgewinde'!B22 -> 0 | C148: ='TGM Standardgewinde'!C22 -> 0 | D148: ='TGM Standardgewinde'!E22 -> 0 | E148: J
A149: ='TGM Standardgewinde'!A23 -> 0 | B149: ='TGM Standardgewinde'!B23 -> 0 | C149: ='TGM Standardgewinde'!C23 -> 0 | D149: ='TGM Standardgewinde'!E23 -> 0 | E149: J
A150: ='TGM Standardgewinde'!A24 -> 0 | B150: ='TGM Standardgewinde'!B24 -> 0 | C150: ='TGM Standardgewinde'!C24 -> 0 | D150: ='TGM Standardgewinde'!E24 -> 0 | E150: J
A151: ='TGM Standardgewinde'!A25 -> 0 | B151: ='TGM Standardgewinde'!B25 -> 0 | C151: ='TGM Standardgewinde'!C25 -> 0 | D151: ='TGM Standardgewinde'!E25 -> 0 | E151: J
E152: =IF(B127=0,"J","N") -> J
A153: ='TGM Bohren'!A2 -> Grundzeitberechnung für das Bohren ohne Ausspanen | E153: =IF(B154=0,"J","N") -> J
A154: Gesamtzeit in Minuten = | B154: ='TGM Bohren'!J3 -> 0 | E154: =IF(B154=0,"J","N") -> J
A155: Bemerkung | B155: Dm der Bohrung und Tiefe | C155: Menge | D155: Zeit | E155: =IF(B154=0,"J","N") -> J
A156: ='TGM Bohren'!A4 -> 0 | B156: =IF(C156=0,0,CONCATENATE("Dm",'TGM Bohren'!B4,"/",'TGM Bohren'!F4," tief")) -> 0 | C156: ='TGM Bohren'!C4 -> 0 | D156: ='TGM Bohren'!I4 -> 0 | E156: =IF(D156=0,"J","N") -> J
A157: ='TGM Bohren'!A5 -> 0 | B157: =IF(C157=0,0,CONCATENATE("Dm",'TGM Bohren'!B5,"/",'TGM Bohren'!F5," tief")) -> 0 | C157: ='TGM Bohren'!C5 -> 0 | D157: ='TGM Bohren'!I5 -> 0 | E157: J
A158: ='TGM Bohren'!A6 -> 0 | B158: =IF(C158=0,0,CONCATENATE("Dm",'TGM Bohren'!B6,"/",'TGM Bohren'!F6," tief")) -> 0 | C158: ='TGM Bohren'!C6 -> 0 | D158: ='TGM Bohren'!I6 -> 0 | E158: J
A159: ='TGM Bohren'!A7 -> 0 | B159: =IF(C159=0,0,CONCATENATE("Dm",'TGM Bohren'!B7,"/",'TGM Bohren'!F7," tief")) -> 0 | C159: ='TGM Bohren'!C7 -> 0 | D159: ='TGM Bohren'!I7 -> 0 | E159: J
A160: ='TGM Bohren'!A8 -> 0 | B160: =IF(C160=0,0,CONCATENATE("Dm",'TGM Bohren'!B8,"/",'TGM Bohren'!F8," tief")) -> 0 | C160: ='TGM Bohren'!C8 -> 0 | D160: ='TGM Bohren'!I8 -> 0 | E160: J
A161: ='TGM Bohren'!A9 -> 0 | B161: =IF(C161=0,0,CONCATENATE("Dm",'TGM Bohren'!B9,"/",'TGM Bohren'!F9," tief")) -> 0 | C161: ='TGM Bohren'!C9 -> 0 | D161: ='TGM Bohren'!I9 -> 0 | E161: J
A162: ='TGM Bohren'!A10 -> 0 | B162: =IF(C162=0,0,CONCATENATE("Dm",'TGM Bohren'!B10,"/",'TGM Bohren'!F10," tief")) -> 0 | C162: ='TGM Bohren'!C10 -> 0 | D162: ='TGM Bohren'!I10 -> 0 | E162: J
A163: ='TGM Bohren'!A11 -> 0 | B163: =IF(C163=0,0,CONCATENATE("Dm",'TGM Bohren'!B11,"/",'TGM Bohren'!F11," tief")) -> 0 | C163: ='TGM Bohren'!C11 -> 0 | D163: ='TGM Bohren'!I11 -> 0 | E163: J
A164: ='TGM Bohren'!A12 -> 0 | B164: =IF(C164=0,0,CONCATENATE("Dm",'TGM Bohren'!B12,"/",'TGM Bohren'!F12," tief")) -> 0 | C164: ='TGM Bohren'!C12 -> 0 | D164: ='TGM Bohren'!I12 -> 0 | E164: J
A165: ='TGM Bohren'!A13 -> 0 | B165: =IF(C165=0,0,CONCATENATE("Dm",'TGM Bohren'!B13,"/",'TGM Bohren'!F13," tief")) -> 0 | C165: ='TGM Bohren'!C13 -> 0 | D165: ='TGM Bohren'!I13 -> 0 | E165: J
A166: ='TGM Bohren'!A14 -> 0 | B166: =IF(C166=0,0,CONCATENATE("Dm",'TGM Bohren'!B14,"/",'TGM Bohren'!F14," tief")) -> 0 | C166: ='TGM Bohren'!C14 -> 0 | D166: ='TGM Bohren'!I14 -> 0 | E166: J
A167: ='TGM Bohren'!A15 -> 0 | B167: =IF(C167=0,0,CONCATENATE("Dm",'TGM Bohren'!B15,"/",'TGM Bohren'!F15," tief")) -> 0 | C167: ='TGM Bohren'!C15 -> 0 | D167: ='TGM Bohren'!I15 -> 0 | E167: J
A168: ='TGM Bohren'!A16 -> 0 | B168: =IF(C168=0,0,CONCATENATE("Dm",'TGM Bohren'!B16,"/",'TGM Bohren'!F16," tief")) -> 0 | C168: ='TGM Bohren'!C16 -> 0 | D168: ='TGM Bohren'!I16 -> 0 | E168: J
A169: ='TGM Bohren'!A17 -> 0 | B169: =IF(C169=0,0,CONCATENATE("Dm",'TGM Bohren'!B17,"/",'TGM Bohren'!F17," tief")) -> 0 | C169: ='TGM Bohren'!C17 -> 0 | D169: ='TGM Bohren'!I17 -> 0 | E169: J
A170: ='TGM Bohren'!A18 -> 0 | B170: =IF(C170=0,0,CONCATENATE("Dm",'TGM Bohren'!B18,"/",'TGM Bohren'!F18," tief")) -> 0 | C170: ='TGM Bohren'!C18 -> 0 | D170: ='TGM Bohren'!I18 -> 0 | E170: J
A171: ='TGM Bohren'!A19 -> 0 | B171: =IF(C171=0,0,CONCATENATE("Dm",'TGM Bohren'!B19,"/",'TGM Bohren'!F19," tief")) -> 0 | C171: ='TGM Bohren'!C19 -> 0 | D171: ='TGM Bohren'!I19 -> 0 | E171: J
A172: ='TGM Bohren'!A20 -> 0 | B172: =IF(C172=0,0,CONCATENATE("Dm",'TGM Bohren'!B20,"/",'TGM Bohren'!F20," tief")) -> 0 | C172: ='TGM Bohren'!C20 -> 0 | D172: ='TGM Bohren'!I20 -> 0 | E172: J
A173: ='TGM Bohren'!A21 -> 0 | B173: =IF(C173=0,0,CONCATENATE("Dm",'TGM Bohren'!B21,"/",'TGM Bohren'!F21," tief")) -> 0 | C173: ='TGM Bohren'!C21 -> 0 | D173: ='TGM Bohren'!I21 -> 0 | E173: J
A174: ='TGM Bohren'!A22 -> 0 | B174: =IF(C174=0,0,CONCATENATE("Dm",'TGM Bohren'!B22,"/",'TGM Bohren'!F22," tief")) -> 0 | C174: ='TGM Bohren'!C22 -> 0 | D174: ='TGM Bohren'!I22 -> 0 | E174: J
A175: ='TGM Bohren'!A23 -> 0 | B175: =IF(C175=0,0,CONCATENATE("Dm",'TGM Bohren'!B23,"/",'TGM Bohren'!F23," tief")) -> 0 | C175: ='TGM Bohren'!C23 -> 0 | D175: ='TGM Bohren'!I23 -> 0 | E175: J
A176: ='TGM Bohren'!A24 -> 0 | B176: =IF(C176=0,0,CONCATENATE("Dm",'TGM Bohren'!B24,"/",'TGM Bohren'!F24," tief")) -> 0 | C176: ='TGM Bohren'!C24 -> 0 | D176: ='TGM Bohren'!I24 -> 0 | E176: J
A177: ='TGM Bohren'!A25 -> 0 | B177: =IF(C177=0,0,CONCATENATE("Dm",'TGM Bohren'!B25,"/",'TGM Bohren'!F25," tief")) -> 0 | C177: ='TGM Bohren'!C25 -> 0 | D177: ='TGM Bohren'!I25 -> 0 | E177: J
A178: ='TGM Bohren'!A26 -> 0 | B178: =IF(C178=0,0,CONCATENATE("Dm",'TGM Bohren'!B26,"/",'TGM Bohren'!F26," tief")) -> 0 | C178: ='TGM Bohren'!C26 -> 0 | D178: ='TGM Bohren'!I26 -> 0 | E178: J
E179: =IF(B154=0,"J","N") -> J
A180: =' Tiefbohren mehrere Arten'!C1 -> Berechnungstabelle für die Bearbeitungsdauer beim Tiefbohren mit Ausspanung | E180: =IF(B181=0,"J","N") -> J
A181: Gesamtzeit in Minuten = | B181: =' Tiefbohren mehrere Arten'!E2 -> 0 | E181: =IF(B181=0,"J","N") -> J
A182: Bemerkung | B182: Bohrtiefe | C182: Menge | D182: Zeit | E182: =IF(B181=0,"J","N") -> J
A183: =' Tiefbohren mehrere Arten'!B5 -> 0 | B183: =' Tiefbohren mehrere Arten'!G5 -> 0 | C183: =' Tiefbohren mehrere Arten'!C5 -> 0 | D183: =' Tiefbohren mehrere Arten'!K5 -> 0 | E183: =IF(D183=0,"J","N") -> J
A184: =' Tiefbohren mehrere Arten'!B6 -> 0 | B184: =' Tiefbohren mehrere Arten'!G6 -> 0 | C184: =' Tiefbohren mehrere Arten'!C6 -> 0 | D184: =' Tiefbohren mehrere Arten'!K6 -> 0 | E184: J
A185: =' Tiefbohren mehrere Arten'!B7 -> 0 | B185: =' Tiefbohren mehrere Arten'!G7 -> 0 | C185: =' Tiefbohren mehrere Arten'!C7 -> 0 | D185: =' Tiefbohren mehrere Arten'!K7 -> 0 | E185: J
A186: =' Tiefbohren mehrere Arten'!B8 -> 0 | B186: =' Tiefbohren mehrere Arten'!G8 -> 0 | C186: =' Tiefbohren mehrere Arten'!C8 -> 0 | D186: =' Tiefbohren mehrere Arten'!K8 -> 0 | E186: J
A187: =' Tiefbohren mehrere Arten'!B9 -> 0 | B187: =' Tiefbohren mehrere Arten'!G9 -> 0 | C187: =' Tiefbohren mehrere Arten'!C9 -> 0 | D187: =' Tiefbohren mehrere Arten'!K9 -> 0 | E187: J
A188: =' Tiefbohren mehrere Arten'!B10 -> 0 | B188: =' Tiefbohren mehrere Arten'!G10 -> 0 | C188: =' Tiefbohren mehrere Arten'!C10 -> 0 | D188: =' Tiefbohren mehrere Arten'!K10 -> 0 | E188: J
A189: =' Tiefbohren mehrere Arten'!B11 -> 0 | B189: =' Tiefbohren mehrere Arten'!G11 -> 0 | C189: =' Tiefbohren mehrere Arten'!C11 -> 0 | D189: =' Tiefbohren mehrere Arten'!K11 -> 0 | E189: J
A190: =' Tiefbohren mehrere Arten'!B12 -> 0 | B190: =' Tiefbohren mehrere Arten'!G12 -> 0 | C190: =' Tiefbohren mehrere Arten'!C12 -> 0 | D190: =' Tiefbohren mehrere Arten'!K12 -> 0 | E190: J
A191: =' Tiefbohren mehrere Arten'!B13 -> 0 | B191: =' Tiefbohren mehrere Arten'!G13 -> 0 | C191: =' Tiefbohren mehrere Arten'!C13 -> 0 | D191: =' Tiefbohren mehrere Arten'!K13 -> 0 | E191: J
A192: =' Tiefbohren mehrere Arten'!B14 -> 0 | B192: =' Tiefbohren mehrere Arten'!G14 -> 0 | C192: =' Tiefbohren mehrere Arten'!C14 -> 0 | D192: =' Tiefbohren mehrere Arten'!K14 -> 0 | E192: J
A193: =' Tiefbohren mehrere Arten'!B15 -> 0 | B193: =' Tiefbohren mehrere Arten'!G15 -> 0 | C193: =' Tiefbohren mehrere Arten'!C15 -> 0 | D193: =' Tiefbohren mehrere Arten'!K15 -> 0 | E193: J
A194: =' Tiefbohren mehrere Arten'!B16 -> 0 | B194: =' Tiefbohren mehrere Arten'!G16 -> 0 | C194: =' Tiefbohren mehrere Arten'!C16 -> 0 | D194: =' Tiefbohren mehrere Arten'!K16 -> 0 | E194: J
A195: =' Tiefbohren mehrere Arten'!B17 -> 0 | B195: =' Tiefbohren mehrere Arten'!G17 -> 0 | C195: =' Tiefbohren mehrere Arten'!C17 -> 0 | D195: =' Tiefbohren mehrere Arten'!K17 -> 0 | E195: J
A196: =' Tiefbohren mehrere Arten'!B18 -> 0 | B196: =' Tiefbohren mehrere Arten'!G18 -> 0 | C196: =' Tiefbohren mehrere Arten'!C18 -> 0 | D196: =' Tiefbohren mehrere Arten'!K18 -> 0 | E196: J
A197: =' Tiefbohren mehrere Arten'!B19 -> 0 | B197: =' Tiefbohren mehrere Arten'!G19 -> 0 | C197: =' Tiefbohren mehrere Arten'!C19 -> 0 | D197: =' Tiefbohren mehrere Arten'!K19 -> 0 | E197: J
A198: =' Tiefbohren mehrere Arten'!B20 -> 0 | B198: =' Tiefbohren mehrere Arten'!G20 -> 0 | C198: =' Tiefbohren mehrere Arten'!C20 -> 0 | D198: =' Tiefbohren mehrere Arten'!K20 -> 0 | E198: J
A199: =' Tiefbohren mehrere Arten'!B21 -> 0 | B199: =' Tiefbohren mehrere Arten'!G21 -> 0 | C199: =' Tiefbohren mehrere Arten'!C21 -> 0 | D199: =' Tiefbohren mehrere Arten'!K21 -> 0 | E199: J
A200: =' Tiefbohren mehrere Arten'!B22 -> 0 | B200: =' Tiefbohren mehrere Arten'!G22 -> 0 | C200: =' Tiefbohren mehrere Arten'!C22 -> 0 | D200: =' Tiefbohren mehrere Arten'!K22 -> 0 | E200: J
A201: =' Tiefbohren mehrere Arten'!B23 -> 0 | B201: =' Tiefbohren mehrere Arten'!G23 -> 0 | C201: =' Tiefbohren mehrere Arten'!C23 -> 0 | D201: =' Tiefbohren mehrere Arten'!K23 -> 0 | E201: J
A202: =' Tiefbohren mehrere Arten'!B24 -> 0 | B202: =' Tiefbohren mehrere Arten'!G24 -> 0 | C202: =' Tiefbohren mehrere Arten'!C24 -> 0 | D202: =' Tiefbohren mehrere Arten'!K24 -> 0 | E202: J
... 518 more rows

Sheet diverse Arbeiten
B1: Zeitberechnung diverse Arbeiten
D2: Gesamtzeit = | E2: =SUM(E4:E104) -> 0
A3: Bemerkung | B3: Was? | C3: Menge | D3: Zeitvorgabe | E3: Zeit in Minuten
E4: =C4*D4 -> 0
E5: 0
E6: 0
E7: 0
E8: 0
E9: 0
E10: 0
E11: 0
E12: 0
E13: 0
E14: 0
E15: 0
E16: 0
E17: 0
E18: 0
E19: 0
E20: 0
E21: 0
E22: 0
E23: 0
E24: 0
E25: 0
E26: 0
E27: =C27*D27 -> 0
E28: 0
E29: 0
E30: 0
E31: 0
E32: 0
E33: 0
E34: 0
E35: 0
E36: 0
E37: 0
E38: 0
E39: 0
E40: 0
E41: 0
E42: 0
E43: 0
E44: 0
E45: 0
E46: 0
E47: 0
E48: 0
E49: 0
E50: 0
E51: 0
E52: 0
E53: 0
E54: 0
E55: 0
E56: 0
E57: 0
E58: 0
E59: 0
E60: 0
E61: 0
E62: 0
E63: 0
E64: 0
E65: 0
E66: 0
E67: 0
E68: 0
E69: 0
E70: 0
E71: 0
E72: 0
E73: 0
E74: 0
E75: 0
E76: 0
E77: 0
E78: 0
E79: 0
E80: 0
E81: 0
E82: 0
E83: 0
E84: 0
E85: 0
E86: 0
E87: 0
E88: 0
E89: 0
E90: 0
E91: =C91*D91 -> 0
E92: 0
E93: 0
E94: 0
E95: 0
E96: 0
E97: 0
E98: 0
E99: 0
E100: 0
E101: 0
E102: 0
E103: 0
E104: 0

Sheet TGM Standardgewinde
A1: Zeitberechnung zentrieren, bohren, senken und Gewinde schneiden bei Standardgewinden | F1: Gesamtzeit
A2: Bemerkung | B2: Was? | C2: Menge | D2: Zeitvorgabe | E2: Zeit | F2: =SUM(E:E) -> 0
E3: =C3*D3 -> 0
B4: M4 | D4: 1.7 | E4: =C4*D4 -> 0
B5: M5 | D5: 2 | E5: =C5*D5 -> 0
B6: M6 | D6: 2.5 | E6: 0
B7: M8 | D7: 3 | E7: 0
B8: M10 | D8: 3.5 | E8: 0
B9: M12 | D9: 3.7 | E9: 0
B10: M14 | D10: 4 | E10: 0
B11: M16 | D11: 4.2 | E11: 0
B12: M18 | D12: 4.5 | E12: 0
B13: M20 | D13: 4.7 | E13: 0
B14: M22 | D14: 5 | E14: 0
B15: M24 | D15: 5.5 | E15: 0
B16: G1/8" | D16: 2 | E16: 0
B17: G1/4" | D17: 3 | E17: 0
B18: G1/2" | D18: 3.5 | E18: 0
B19: G3/4" | D19: 4 | E19: =C19*D19 -> 0
B20: G1 | D20: 5 | E20: =C20*D20 -> 0
B21: 0 | D21: 0 | E21: 0
B22: 0 | D22: 0 | E22: 0
B23: 0 | D23: 0 | E23: 0
B24: 0 | D24: 0 | E24: 0
B25: 0 | D25: 0 | E25: 0
B26: 0 | D26: 0 | E26: =C26*D26 -> 0
B27: 0 | D27: 0 | E27: 0
B28: 0 | D28: 0 | E28: 0
B29: 0 | D29: 0 | E29: 0
B30: 0 | D30: 0 | E30: 0
B31: 0 | D31: 0 | E31: 0
B32: 0 | D32: 0 | E32: 0
B33: 0 | D33: 0 | E33: 0
B34: 0 | D34: 0 | E34: 0
B35: 0 | D35: 0 | E35: 0
B36: 0 | D36: 0 | E36: 0
B37: 0 | D37: 0 | E37: 0
B38: 0 | D38: 0 | E38: 0
B39: 0 | D39: 0 | E39: 0
B40: 0 | D40: 0 | E40: 0
B41: 0 | D41: 0 | E41: 0
B42: 0 | D42: 0 | E42: 0
B43: 0 | D43: 0 | E43: 0
B44: 0 | D44: 0 | E44: 0
B45: 0 | D45: 0 | E45: 0
B46: 0 | D46: 0 | E46: 0
B47: 0 | D47: 0 | E47: 0
B48: 0 | D48: 0 | E48: 0
B49: 0 | D49: 0 | E49: 0
B50: 0 | D50: 0 | E50: 0
B51: 0 | D51: 0 | E51: =C51*D51 -> 0
B52: 0 | D52: 0 | E52: 0

Sheet TGM Bohren
A2: Grundzeitberechnung für das Bohren ohne Ausspanen | J2: Gesamtzeit
A3: Bemerkung | B3: Ø der Bohrung | C3: Anzahl der Bohrungen | D3: Vorschub in mm/U | E3: Drehzahl | F3: Tiefe der Bohrung | G3: Vorschub in mm/Min | H3: Vc in m/Min | I3: Zeit | J3: =SUM(I:I) -> 0
G4: =D4*E4 -> 0 | H4: =B4*PI()*E4/1000 -> 0 | I4: =IF(G4=0,0,F4/G4*C4) -> 0
G5: =D5*E5 -> 0 | H5: =B5*PI()*E5/1000 -> 0 | I5: =IF(G5=0,0,F5/G5*C5) -> 0
G6: 0 | H6: 0 | I6: 0
G7: 0 | H7: 0 | I7: 0
G8: 0 | H8: 0 | I8: 0
G9: 0 | H9: 0 | I9: 0
G10: 0 | H10: 0 | I10: 0
G11: 0 | H11: 0 | I11: 0
G12: 0 | H12: 0 | I12: 0
G13: 0 | H13: 0 | I13: 0
G14: 0 | H14: 0 | I14: 0
G15: 0 | H15: 0 | I15: 0
G16: 0 | H16: 0 | I16: 0
G17: 0 | H17: 0 | I17: 0
G18: 0 | H18: 0 | I18: 0
G19: 0 | H19: 0 | I19: 0
G20: 0 | H20: 0 | I20: 0
G21: 0 | H21: 0 | I21: 0
G22: 0 | H22: 0 | I22: 0
G23: 0 | H23: 0 | I23: 0
G24: 0 | H24: 0 | I24: 0
G25: 0 | H25: 0 | I25: 0
G26: 0 | H26: 0 | I26: 0

Sheet Tiefbohren mehrere Arten
C1: Berechnungstabelle für die Bearbeitungsdauer beim Tiefbohren mit Ausspanung
D2: Gesamtzeit = | E2: =ROUND(SUM(K:K),2) -> 0 | F2: Minuten | H2: Info
B3: Standardwerte | D3: 600 | E3: 22 | F3: 3000 | G3: 222 | H3: 2 | I3: 3 | J3: 2
A4: Nr. | B4: Bemerkung | C4: Anzahl der Bohrungen | D4: Drehzahl | E4: Arbeits-vorschub in mm/min | F4: Eilgang in mm/min | G4: Bohrtiefe in mm | H4: Schaltzeit in Sekunden | I4: Reduzier-wert in mm | J4: Sicherheis-abstand nach Ausspanung | K4: Gesamtzeit | L4: Ausspa- nungen | M4: Arbeits-vorschub in mm/Um-drehung | N4: Verfahrweg im Vorschub | O4: Zeit Vorschub | P4: Verfahrweg im Eilgang | Q4: Zeit Eilgang | R4: Summe des Sicherheisab-standes nach Ausspanung
A5: 1 | K5: =O5+Q5 -> 0 | L5: =IF(I5=0,0,G5/I5) -> 0 | M5: =IF(D5=0,0,E5/D5) -> 0 | N5: =G5+R5 -> 0 | O5: =IF(E5=0,0,(((N5)/E5)+(H5*L5/60))*C5) -> 0 | P5: =((((I5+G5)*(L5/2))*2)-((L5-1)*J5))-G5 -> 0 | Q5: =IF(F5=0,0,((P5/F5)+(H5*L5/60))*C5) -> 0 | R5: =(J5*L5)-J5 -> 0
A6: 2 | K6: =O6+Q6 -> 0 | L6: =IF(I6=0,0,G6/I6) -> 0 | M6: =IF(D6=0,0,E6/D6) -> 0 | N6: =G6+R6 -> 0 | O6: =IF(E6=0,0,(((N6)/E6)+(H6*L6/60))*C6) -> 0 | P6: =((((I6+G6)*(L6/2))*2)-((L6-1)*J6))-G6 -> 0 | Q6: =IF(F6=0,0,((P6/F6)+(H6*L6/60))*C6) -> 0 | R6: =(J6*L6)-J6 -> 0
A7: 3 | K7: 0 | L7: 0 | M7: 0 | N7: 0 | O7: 0 | P7: 0 | Q7: 0 | R7: 0
A8: 4 | K8: 0 | L8: 0 | M8: 0 | N8: 0 | O8: 0 | P8: 0 | Q8: 0 | R8: 0
A9: 5 | K9: 0 | L9: 0 | M9: 0 | N9: 0 | O9: 0 | P9: 0 | Q9: 0 | R9: 0
A10: 6 | K10: 0 | L10: 0 | M10: 0 | N10: 0 | O10: 0 | P10: 0 | Q10: 0 | R10: 0
A11: 7 | K11: 0 | L11: 0 | M11: 0 | N11: 0 | O11: 0 | P11: 0 | Q11: 0 | R11: 0
A12: 8 | K12: 0 | L12: 0 | M12: 0 | N12: 0 | O12: 0 | P12: 0 | Q12: 0 | R12: 0
A13: 9 | K13: 0 | L13: 0 | M13: 0 | N13: 0 | O13: 0 | P13: 0 | Q13: 0 | R13: 0
A14: 10 | K14: 0 | L14: 0 | M14: 0 | N14: 0 | O14: 0 | P14: 0 | Q14: 0 | R14: 0
A15: 11 | K15: 0 | L15: 0 | M15: 0 | N15: 0 | O15: 0 | P15: 0 | Q15: 0 | R15: 0
A16: 12 | K16: 0 | L16: 0 | M16: 0 | N16: 0 | O16: 0 | P16: 0 | Q16: 0 | R16: 0
A17: 13 | K17: 0 | L17: 0 | M17: 0 | N17: 0 | O17: 0 | P17: 0 | Q17: 0 | R17: 0
A18: 14 | K18: 0 | L18: 0 | M18: 0 | N18: 0 | O18: 0 | P18: 0 | Q18: 0 | R18: 0
A19: 15 | K19: 0 | L19: 0 | M19: 0 | N19: 0 | O19: 0 | P19: 0 | Q19: 0 | R19: 0
A20: 16 | K20: 0 | L20: 0 | M20: 0 | N20: 0 | O20: 0 | P20: 0 | Q20: 0 | R20: 0
A21: 17 | K21: 0 | L21: 0 | M21: 0 | N21: 0 | O21: 0 | P21: 0 | Q21: 0 | R21: 0
A22: 18 | K22: 0 | L22: 0 | M22: 0 | N22: 0 | O22: 0 | P22: 0 | Q22: 0 | R22: 0
A23: 19 | K23: 0 | L23: 0 | M23: 0 | N23: 0 | O23: 0 | P23: 0 | Q23: 0 | R23: 0
A24: 20 | K24: 0 | L24: 0 | M24: 0 | N24: 0 | O24: 0 | P24: 0 | Q24: 0 | R24: 0
A25: 21 | K25: 0 | L25: 0 | M25: 0 | N25: 0 | O25: 0 | P25: 0 | Q25: 0 | R25: 0
A26: 22 | K26: 0 | L26: 0 | M26: 0 | N26: 0 | O26: 0 | P26: 0 | Q26: 0 | R26: 0
A27: 23 | K27: 0 | L27: 0 | M27: 0 | N27: 0 | O27: 0 | P27: 0 | Q27: 0 | R27: 0
A28: 24 | K28: 0 | L28: 0 | M28: 0 | N28: 0 | O28: 0 | P28: 0 | Q28: 0 | R28: 0
A29: 25 | K29: 0 | L29: 0 | M29: 0 | N29: 0 | O29: 0 | P29: 0 | Q29: 0 | R29: 0
A30: 26 | K30: 0 | L30: 0 | M30: 0 | N30: 0 | O30: 0 | P30: 0 | Q30: 0 | R30: 0
A31: 27 | K31: 0 | L31: 0 | M31: 0 | N31: 0 | O31: 0 | P31: 0 | Q31: 0 | R31: 0
A32: 28 | K32: 0 | L32: 0 | M32: 0 | N32: 0 | O32: 0 | P32: 0 | Q32: 0 | R32: 0
A33: 29 | K33: 0 | L33: 0 | M33: 0 | N33: 0 | O33: 0 | P33: 0 | Q33: 0 | R33: 0
A34: 30 | K34: 0 | L34: 0 | M34: 0 | N34: 0 | O34: 0 | P34: 0 | Q34: 0 | R34: 0
A35: 31 | K35: 0 | L35: 0 | M35: 0 | N35: 0 | O35: 0 | P35: 0 | Q35: 0 | R35: 0
A36: 32 | K36: 0 | L36: 0 | M36: 0 | N36: 0 | O36: 0 | P36: 0 | Q36: 0 | R36: 0
A37: 33 | K37: 0 | L37: 0 | M37: 0 | N37: 0 | O37: 0 | P37: 0 | Q37: 0 | R37: 0
A38: 34 | K38: 0 | L38: 0 | M38: 0 | N38: 0 | O38: 0 | P38: 0 | Q38: 0 | R38: 0
A39: 35 | K39: 0 | L39: 0 | M39: 0 | N39: 0 | O39: 0 | P39: 0 | Q39: 0 | R39: 0
A40: 36 | K40: 0 | L40: 0 | M40: 0 | N40: 0 | O40: 0 | P40: 0 | Q40: 0 | R40: 0
A41: 37 | K41: 0 | L41: 0 | M41: 0 | N41: 0 | O41: 0 | P41: 0 | Q41: 0 | R41: 0
A42: 38 | K42: 0 | L42: 0 | M42: 0 | N42: 0 | O42: 0 | P42: 0 | Q42: 0 | R42: 0
A43: 39 | K43: 0 | L43: 0 | M43: 0 | N43: 0 | O43: 0 | P43: 0 | Q43: 0 | R43: 0
A44: 40 | K44: 0 | L44: 0 | M44: 0 | N44: 0 | O44: 0 | P44: 0 | Q44: 0 | R44: 0

Sheet TGM Rundschleifen
B1: Berechnungstabelle für die Bearbeitungsdauer beim Rundschleifen
B2: Gesamtzeit: | D2: =ROUND(SUM(P6:P45),2) -> 0 | F2: Minuten
B3: D1/auß. | C3: Vc/auß. | D3: ns/auß. | F3: D1/inn. | G3: Vc/inn. | H3: ns/inn.
B4: 300 | C4: 35 | D4: =(C4*1000*60)/(B4*PI()) -> 2228.169203 | F4: 50 | G4: 35 | H4: =(G4*1000*60)/(F4*PI()) -> 13369.01522
A5: Nr. | B5: l | C5: n | D5: f | E5: D | F5: d | G5: a | H5: ia | I5: bs | J5: außen oder innen (0/1) | K5: tsz | L5: Bemerkung | M5: i | N5: Vf | O5: L | P5: th
A6: 1 | M6: =IF(G6=0,0,IF(J6=0,((E6-F6)/(2*G6)+H6),((F6-E6)/(2*G6)+H6))) -> 0 | N6: =E6*PI()*C6 -> 0 | O6: =B6-2/3*I6 -> 0 | P6: =IF(C6=0,0,IF(D6=0,0,((O6*M6)/(D6*C6))+(M6*K6/60))) -> 0
A7: 2 | M7: =IF(G7=0,0,IF(J7=0,((E7-F7)/(2*G7)+H7),((F7-E7)/(2*G7)+H7))) -> 0 | N7: =E7*PI()*C7 -> 0 | O7: =B7-2/3*I7 -> 0 | P7: =IF(C7=0,0,((O7*M7)/(D7*C7))+(M7*K7/60)) -> 0
A8: 3 | M8: 0 | N8: 0 | O8: 0 | P8: 0
A9: 4 | M9: 0 | N9: 0 | O9: 0 | P9: 0
A10: 5 | M10: 0 | N10: 0 | O10: 0 | P10: 0
A11: 6 | M11: 0 | N11: 0 | O11: 0 | P11: 0
A12: 7 | M12: 0 | N12: 0 | O12: 0 | P12: 0
A13: 8 | M13: 0 | N13: 0 | O13: 0 | P13: 0
A14: 9 | M14: 0 | N14: 0 | O14: 0 | P14: 0
A15: 10 | M15: 0 | N15: 0 | O15: 0 | P15: 0
A16: 11 | M16: 0 | N16: 0 | O16: 0 | P16: 0
A17: 12 | M17: 0 | N17: 0 | O17: 0 | P17: 0
A18: 13 | M18: 0 | N18: 0 | O18: 0 | P18: 0
A19: 14 | M19: 0 | N19: 0 | O19: 0 | P19: 0
A20: 15 | M20: 0 | N20: 0 | O20: 0 | P20: 0
A21: 16 | M21: 0 | N21: 0 | O21: 0 | P21: 0
A22: 17 | M22: 0 | N22: 0 | O22: 0 | P22: 0
A23: 18 | M23: 0 | N23: 0 | O23: 0 | P23: 0
A24: 19 | M24: 0 | N24: 0 | O24: 0 | P24: 0
A25: 20 | M25: 0 | N25: 0 | O25: 0 | P25: 0
A26: 21 | M26: =IF(G26=0,0,IF(J26=0,((E26-F26)/(2*G26)+H26),((F26-E26)/(2*G26)+H26))) -> 0 | N26: =E26*PI()*C26 -> 0 | O26: =B26-2/3*I26 -> 0 | P26: =IF(C26=0,0,((O26*M26)/(D26*C26))+(M26*K26/60)) -> 0
A27: 22 | M27: 0 | N27: 0 | O27: 0 | P27: 0
A28: 23 | M28: 0 | N28: 0 | O28: 0 | P28: 0
A29: 24 | M29: 0 | N29: 0 | O29: 0 | P29: 0
A30: 25 | M30: 0 | N30: 0 | O30: 0 | P30: 0
A31: 26 | M31: 0 | N31: 0 | O31: 0 | P31: 0
A32: 27 | M32: 0 | N32: 0 | O32: 0 | P32: 0
A33: 28 | M33: 0 | N33: 0 | O33: 0 | P33: 0
A34: 29 | M34: 0 | N34: 0 | O34: 0 | P34: 0
A35: 30 | M35: 0 | N35: 0 | O35: 0 | P35: 0
A36: 31 | M36: 0 | N36: 0 | O36: 0 | P36: 0
A37: 32 | M37: 0 | N37: 0 | O37: 0 | P37: 0
A38: 33 | M38: 0 | N38: 0 | O38: 0 | P38: 0
A39: 34 | M39: 0 | N39: 0 | O39: 0 | P39: 0
A40: 35 | M40: 0 | N40: 0 | O40: 0 | P40: 0
A41: 36 | M41: 0 | N41: 0 | O41: 0 | P41: 0
A42: 37 | M42: 0 | N42: 0 | O42: 0 | P42: 0
A43: 38 | M43: 0 | N43: 0 | O43: 0 | P43: 0
A44: 39 | M44: 0 | N44: 0 | O44: 0 | P44: 0
A45: 40 | M45: 0 | N45: 0 | O45: 0 | P45: 0

Sheet TGM Plandrehen
A1: Schnittzeitberechnung Plandrehen | J1: Gesamtzeit: | K1: =IF(M14<>0,"Fehler Plandrehen",SUM(J15:J65)) -> 0
A2: V= Schnittgeschwindigkeit in Meter/Minute
A3: Dm1= Anfangsdurchmesser in mm
A4: Dm2= Endurchmesser in mm
A5: F=Vorschub
A6: i= Anzahl der Schnitte
A7: n max= maximale Drehzahl der Maschine(Grenzdrehzahl)
A8: n1 = durchschnittliche Drehzahl bei Berechnung für Wegstrecke (Dm1) bis (Dm2) wenn Dm n max < Dm2
A9: n2 = durchschnittliche Drehzahl bei Berechnung für Wegstrecke (Dm1) bis (Dm n max) wenn Dm n max >Dm2
A10: Achtung:
A11: Das erreichen der Grenzdrehzahl Maschine wird in der Berechnungsformel mit berücksichtigt.
A12: Ab (Dm n max) bleibt die Drehzahl gleich und die Schnittgeschwindigkeit verringert sich.
A13: Standardwerte | B13: 200 | F13: 0.3 | G13: 1000
A14: Bemerkung | B14: V | C14: Dm1 | D14: Dm2 | E14: i | F14: F | G14: n max | H14: Dm n max | I14: n1 | J14: Zeit i | K14: n2 | M14: =SUM(M15:M65) -> 0
H15: =IF(E15=0,0,IF(B15=0,0,IF(G15=0,0,(B15*1000)/(PI()*G15)))) -> 0 | I15: =IF(E15=0,0,IF(B15=0,0,(B15*1000)/((((C15-D15)/2)+D15)*PI()))) -> 0 | J15: =IF(E15=0,0,IF(C15=0,0,IF(F15=0,0,IF(H15>C15,(((C15-D15)/2)/(G15*F15)*E15),IF(H15<=D15,(((C15-D15)/2)/(I15*F15)*E15),((((C15-H15)/2)/((K15*F15))+(((H15-D15)/2)/(G15*F15)))*E15)))))) -> 0 | K15: =IF(E15=0,0,IF(B15=0,0,(B15*1000)/((((C15-H15)/2)+H15)*PI()))) -> 0 | L15: =IF(C15<D15,"!!!Fehler! Dm1<Dm2!!!","") ->  | M15: =IF(L15<>"",1,0) -> 0
H16: =IF(E16=0,0,IF(B16=0,0,IF(G16=0,0,(B16*1000)/(PI()*G16)))) -> 0 | I16: =IF(E16=0,0,IF(B16=0,0,(B16*1000)/((((C16-D16)/2)+D16)*PI()))) -> 0 | J16: =IF(E16=0,0,IF(C16=0,0,IF(F16=0,0,IF(H16>C16,(((C16-D16)/2)/(G16*F16)*E16),IF(H16<=D16,(((C16-D16)/2)/(I16*F16)*E16),((((C16-H16)/2)/((K16*F16))+(((H16-D16)/2)/(G16*F16)))*E16)))))) -> 0 | K16: =IF(E16=0,0,IF(B16=0,0,(B16*1000)/((((C16-H16)/2)+H16)*PI()))) -> 0 | L16: =IF(C16<D16,"!!!Fehler! Dm1<Dm2!!!","") ->  | M16: =IF(L16<>"",1,0) -> 0
H17: 0 | I17: 0 | J17: =IF(E17=0,0,IF(C17=0,0,IF(F17=0,0,IF(H17>C17,(((C17-D17)/2)/(G17*F17)*E17),IF(H17<=D17,(((C17-D17)/2)/(I17*F17)*E17),((((C17-H17)/2)/((K17*F17))+(((H17-D17)/2)/(G17*F17)))*E17)))))) -> 0 | K17: 0 | M17: 0
H18: 0 | I18: 0 | J18: 0 | K18: 0 | M18: 0
H19: 0 | I19: 0 | J19: 0 | K19: 0 | M19: 0
H20: 0 | I20: 0 | J20: 0 | K20: 0 | M20: 0
H21: 0 | I21: 0 | J21: 0 | K21: 0 | M21: 0
H22: 0 | I22: 0 | J22: 0 | K22: 0 | M22: 0
H23: 0 | I23: 0 | J23: 0 | K23: 0 | M23: 0
H24: 0 | I24: 0 | J24: 0 | K24: 0 | M24: 0
H25: 0 | I25: 0 | J25: 0 | K25: 0 | M25: 0
H26: 0 | I26: 0 | J26: 0 | K26: 0 | M26: 0
H27: 0 | I27: 0 | J27: 0 | K27: 0 | M27: 0
H28: 0 | I28: 0 | J28: 0 | K28: 0 | M28: 0
H29: 0 | I29: 0 | J29: 0 | K29: 0 | M29: 0
H30: 0 | I30: 0 | J30: 0 | K30: 0 | M30: 0
H31: 0 | I31: 0 | J31: 0 | K31: 0 | M31: 0
H32: 0 | I32: 0 | J32: 0 | K32: 0 | M32: 0
H33: 0 | I33: 0 | J33: 0 | K33: 0 | M33: 0
H34: 0 | I34: 0 | J34: 0 | K34: 0 | M34: 0
H35: 0 | I35: 0 | J35: 0 | K35: 0 | M35: 0
H36: 0 | I36: 0 | J36: 0 | K36: 0 | M36: 0
H37: 0 | I37: 0 | J37: 0 | K37: 0 | M37: 0
H38: 0 | I38: 0 | J38: 0 | K38: 0 | M38: 0
H39: 0 | I39: 0 | J39: 0 | K39: 0 | M39: 0
H40: 0 | I40: 0 | J40: 0 | K40: 0 | M40: 0
H41: 0 | I41: 0 | J41: 0 | K41: 0 | M41: 0
H42: 0 | I42: 0 | J42: 0 | K42: 0 | M42: 0
H43: 0 | I43: 0 | J43: 0 | K43: 0 | M43: 0
H44: 0 | I44: 0 | J44: 0 | K44: 0 | M44: 0
H45: 0 | I45: 0 | J45: 0 | K45: 0 | M45: 0
H46: 0 | I46: 0 | J46: 0 | K46: 0 | M46: 0
H47: 0 | I47: 0 | J47: 0 | K47: 0 | M47: 0
H48: 0 | I48: 0 | J48: 0 | K48: 0 | M48: 0
H49: 0 | I49: 0 | J49: 0 | K49: 0 | M49: 0
H50: 0 | I50: 0 | J50: 0 | K50: 0 | M50: 0
H51: 0 | I51: 0 | J51: 0 | K51: 0 | M51: 0
H52: 0 | I52: 0 | J52: 0 | K52: 0 | M52: 0
H53: 0 | I53: 0 | J53: 0 | K53: 0 | M53: 0
H54: 0 | I54: 0 | J54: 0 | K54: 0 | M54: 0
H55: 0 | I55: 0 | J55: 0 | K55: 0 | M55: 0
H56: 0 | I56: 0 | J56: 0 | K56: 0 | M56: 0
H57: 0 | I57: 0 | J57: 0 | K57: 0 | M57: 0
H58: 0 | I58: 0 | J58: 0 | K58: 0 | M58: 0
H59: 0 | I59: 0 | J59: 0 | K59: 0 | M59: 0
H60: 0 | I60: 0 | J60: 0 | K60: 0 | M60: 0
H61: 0 | I61: 0 | J61: 0 | K61: 0 | M61: 0
H62: 0 | I62: 0 | J62: 0 | K62: 0 | M62: 0
H63: 0 | I63: 0 | J63: 0 | K63: 0 | M63: 0
H64: 0 | I64: 0 | J64: 0 | K64: 0 | M64: 0
H65: 0 | I65: 0 | J65: 0 | K65: 0 | M65: 0

Sheet TGM Langdrehen
A1: Schnittzeitberechnung Langdrehen | L1: Gesamtzeit: | M1: =IF(O15<>0,"Fehler Langdrehen",SUM(L16:L116)) -> 0
A2: V= Schnittgeschwindigkeit in Meter/Minute
A3: Dm1= Anfangsdurchmesser in mm
A4: Dm2= Endurchmesser in mm
A5: L= Drehlänge
A6: F=Vorschub
A7: ap= radiale Zustellung / i= Anzahl der Schnitte
A8: n max= maximale Drehzahl der Maschine(Grenzdrehzahl)
A9: n1 = durchschnittliche Drehzahl bei Berechnung für Wegstrecke (Dm1) bis (Dm2) wenn Dm max < Dm2
A10: n2 = durchschnittliche Drehzahl bei Berechnung für Wegstrecke (Dm1) bis (Dm n max) wenn Dm max >Dm2
A11: Achtung:
A12: Das erreichen der Grenzdrehzahl Maschine wird in der Berechnungsformel mit berücksichtigt.
A13: Ab (Dm n max) bleibt die Drehzahl gleich und die Schnittgeschwindigkeit verringert sich.
A14: Standardwerte | B14: 100 | H14: 1000
A15: Bemerkung | B15: V | C15: Dm1 | D15: Dm2 | E15: L | F15: ap | G15: F | H15: n max | I15: i | J15: Dm n max | K15: n1 | L15: Zeit i | M15: n2 | O15: =SUM(O16:O116) -> 0 | P15: Weg1 | Q15: Weg2 | R15: Weg ges. | S15: i1 | T15: i2 | U15: i ges.
I16: =ROUNDUP(IF(F16=0,0,((C16-D16)/2)/F16),0) -> 0 | J16: =IF(F16=0,0,IF(H16=0,0,(B16*1000)/(PI()*H16))) -> 0 | K16: =IF(F16=0,0,IF(B16=0,0,(B16*1000)/((((C16-D16)/2)+D16)*PI()))) -> 0 | L16: =IF(F16=0,0,IF(E16=0,0,IF(G16=0,0,IF(J16>C16,((E16/(H16*G16))*I16),IF(J16<=D16,((E16/(K16*G16))*I16),(((E16/(M16*G16))*S16))+(((E16/(H16*G16))*T16))))))) -> 0 | M16: =IF(F16=0,0,IF(B16=0,0,(B16*1000)/((((C16-J16)/2)+J16)*PI()))) -> 0 | N16: =IF(C16<D16,"!!!Fehler! Dm1<Dm2!!!","") ->  | O16: =IF(N16<>"",1,0) -> 0 | P16: =(C16-J16)/2 -> 0 | Q16: =(J16-D16)/2 -> 0 | R16: =P16+Q16 -> 0 | S16: =I16/R16*P16 ->  | T16: =I16/R16*Q16 ->  | U16: =S16+T16 -> 
I17: =ROUNDUP(IF(F17=0,0,((C17-D17)/2)/F17),0) -> 0 | J17: =IF(F17=0,0,IF(H17=0,0,(B17*1000)/(PI()*H17))) -> 0 | K17: =IF(F17=0,0,IF(B17=0,0,(B17*1000)/((((C17-D17)/2)+D17)*PI()))) -> 0 | L17: =IF(I17=0,0,IF(E17=0,0,IF(G17=0,0,IF(J17>C17,((E17/(H17*G17))*I17),IF(J17<=D17,((E17/(K17*G17))*I17),(((E17/(M17*G17))*S17))+(((E17/(H17*G17))*T17))))))) -> 0 | M17: =IF(F17=0,0,IF(B17=0,0,(B17*1000)/((((C17-J17)/2)+J17)*PI()))) -> 0 | N17: =IF(C17<D17,"!!!Fehler! Dm1<Dm2!!!","") ->  | O17: =IF(N17<>"",1,0) -> 0 | P17: =(C17-J17)/2 -> 0 | Q17: =(J17-D17)/2 -> 0 | R17: =P17+Q17 -> 0 | S17: =I17/R17*P17 ->  | T17: =I17/R17*Q17 ->  | U17: =S17+T17 -> 
I18: 0 | J18: 0 | K18: 0 | L18: 0 | M18: 0 | O18: 0 | P18: 0 | Q18: 0 | R18: 0
I19: 0 | J19: 0 | K19: 0 | L19: 0 | M19: 0 | O19: 0 | P19: 0 | Q19: 0 | R19: 0
I20: 0 | J20: 0 | K20: 0 | L20: 0 | M20: 0 | O20: 0 | P20: 0 | Q20: 0 | R20: 0
I21: 0 | J21: 0 | K21: 0 | L21: 0 | M21: 0 | O21: 0 | P21: 0 | Q21: 0 | R21: 0
I22: 0 | J22: 0 | K22: 0 | L22: 0 | M22: 0 | O22: 0 | P22: 0 | Q22: 0 | R22: 0
I23: 0 | J23: 0 | K23: 0 | L23: 0 | M23: 0 | O23: 0 | P23: 0 | Q23: 0 | R23: 0
I24: 0 | J24: 0 | K24: 0 | L24: 0 | M24: 0 | O24: 0 | P24: 0 | Q24: 0 | R24: 0
I25: 0 | J25: 0 | K25: 0 | L25: 0 | M25: 0 | O25: 0 | P25: 0 | Q25: 0 | R25: 0
I26: 0 | J26: 0 | K26: 0 | L26: 0 | M26: 0 | O26: 0 | P26: 0 | Q26: 0 | R26: 0
I27: 0 | J27: 0 | K27: 0 | L27: 0 | M27: 0 | O27: 0 | P27: 0 | Q27: 0 | R27: 0
I28: 0 | J28: 0 | K28: 0 | L28: 0 | M28: 0 | O28: 0 | P28: 0 | Q28: 0 | R28: 0
I29: 0 | J29: 0 | K29: 0 | L29: 0 | M29: 0 | O29: 0 | P29: 0 | Q29: 0 | R29: 0
I30: 0 | J30: 0 | K30: 0 | L30: 0 | M30: 0 | O30: 0 | P30: 0 | Q30: 0 | R30: 0
I31: 0 | J31: 0 | K31: 0 | L31: 0 | M31: 0 | O31: 0 | P31: 0 | Q31: 0 | R31: 0
I32: 0 | J32: 0 | K32: 0 | L32: 0 | M32: 0 | O32: 0 | P32: 0 | Q32: 0 | R32: 0
I33: 0 | J33: 0 | K33: 0 | L33: 0 | M33: 0 | O33: 0 | P33: 0 | Q33: 0 | R33: 0
I34: 0 | J34: 0 | K34: 0 | L34: 0 | M34: 0 | O34: 0 | P34: 0 | Q34: 0 | R34: 0
I35: 0 | J35: 0 | K35: 0 | L35: 0 | M35: 0 | O35: 0 | P35: 0 | Q35: 0 | R35: 0
I36: 0 | J36: 0 | K36: 0 | L36: 0 | M36: 0 | O36: 0 | P36: 0 | Q36: 0 | R36: 0
I37: 0 | J37: 0 | K37: 0 | L37: 0 | M37: 0 | O37: 0 | P37: 0 | Q37: 0 | R37: 0
I38: 0 | J38: 0 | K38: 0 | L38: 0 | M38: 0 | O38: 0 | P38: 0 | Q38: 0 | R38: 0
I39: 0 | J39: 0 | K39: 0 | L39: 0 | M39: 0 | O39: 0 | P39: 0 | Q39: 0 | R39: 0
I40: 0 | J40: 0 | K40: 0 | L40: 0 | M40: 0 | O40: 0 | P40: 0 | Q40: 0 | R40: 0
I41: 0 | J41: 0 | K41: 0 | L41: 0 | M41: 0 | O41: 0 | P41: 0 | Q41: 0 | R41: 0
I42: 0 | J42: 0 | K42: 0 | L42: 0 | M42: 0 | O42: 0 | P42: 0 | Q42: 0 | R42: 0
I43: 0 | J43: 0 | K43: 0 | L43: 0 | M43: 0 | O43: 0 | P43: 0 | Q43: 0 | R43: 0
I44: 0 | J44: 0 | K44: 0 | L44: 0 | M44: 0 | O44: 0 | P44: 0 | Q44: 0 | R44: 0
I45: 0 | J45: 0 | K45: 0 | L45: 0 | M45: 0 | O45: 0 | P45: 0 | Q45: 0 | R45: 0
I46: 0 | J46: 0 | K46: 0 | L46: 0 | M46: 0 | O46: 0 | P46: 0 | Q46: 0 | R46: 0
I47: 0 | J47: 0 | K47: 0 | L47: 0 | M47: 0 | O47: 0 | P47: 0 | Q47: 0 | R47: 0
I48: 0 | J48: 0 | K48: 0 | L48: 0 | M48: 0 | O48: 0 | P48: 0 | Q48: 0 | R48: 0
I49: 0 | J49: 0 | K49: 0 | L49: 0 | M49: 0 | O49: 0 | P49: 0 | Q49: 0 | R49: 0
I50: 0 | J50: 0 | K50: 0 | L50: 0 | M50: 0 | O50: 0 | P50: 0 | Q50: 0 | R50: 0
I51: 0 | J51: 0 | K51: 0 | L51: 0 | M51: 0 | O51: 0 | P51: 0 | Q51: 0 | R51: 0
I52: 0 | J52: 0 | K52: 0 | L52: 0 | M52: 0 | O52: 0 | P52: 0 | Q52: 0 | R52: 0
I53: 0 | J53: 0 | K53: 0 | L53: 0 | M53: 0 | O53: 0 | P53: 0 | Q53: 0 | R53: 0
I54: 0 | J54: 0 | K54: 0 | L54: 0 | M54: 0 | O54: 0 | P54: 0 | Q54: 0 | R54: 0
I55: 0 | J55: 0 | K55: 0 | L55: 0 | M55: 0 | O55: 0 | P55: 0 | Q55: 0 | R55: 0
I56: 0 | J56: 0 | K56: 0 | L56: 0 | M56: 0 | O56: 0 | P56: 0 | Q56: 0 | R56: 0
I57: 0 | J57: 0 | K57: 0 | L57: 0 | M57: 0 | O57: 0 | P57: 0 | Q57: 0 | R57: 0
I58: 0 | J58: 0 | K58: 0 | L58: 0 | M58: 0 | O58: 0 | P58: 0 | Q58: 0 | R58: 0
I59: 0 | J59: 0 | K59: 0 | L59: 0 | M59: 0 | O59: 0 | P59: 0 | Q59: 0 | R59: 0
I60: 0 | J60: 0 | K60: 0 | L60: 0 | M60: 0 | O60: 0 | P60: 0 | Q60: 0 | R60: 0
I61: 0 | J61: 0 | K61: 0 | L61: 0 | M61: 0 | O61: 0 | P61: 0 | Q61: 0 | R61: 0
I62: 0 | J62: 0 | K62: 0 | L62: 0 | M62: 0 | O62: 0 | P62: 0 | Q62: 0 | R62: 0
I63: 0 | J63: 0 | K63: 0 | L63: 0 | M63: 0 | O63: 0 | P63: 0 | Q63: 0 | R63: 0
I64: 0 | J64: 0 | K64: 0 | L64: 0 | M64: 0 | O64: 0 | P64: 0 | Q64: 0 | R64: 0
I65: 0 | J65: 0 | K65: 0 | L65: 0 | M65: 0 | O65: 0 | P65: 0 | Q65: 0 | R65: 0
I66: 0 | J66: 0 | K66: 0 | L66: 0 | M66: 0 | O66: 0 | P66: 0 | Q66: 0 | R66: 0
I67: 0 | J67: 0 | K67: 0 | L67: 0 | M67: 0 | O67: 0 | P67: 0 | Q67: 0 | R67: 0
I68: 0 | J68: 0 | K68: 0 | L68: 0 | M68: 0 | O68: 0 | P68: 0 | Q68: 0 | R68: 0
I69: 0 | J69: 0 | K69: 0 | L69: 0 | M69: 0 | O69: 0 | P69: 0 | Q69: 0 | R69: 0
I70: 0 | J70: 0 | K70: 0 | L70: 0 | M70: 0 | O70: 0 | P70: 0 | Q70: 0 | R70: 0
I71: 0 | J71: 0 | K71: 0 | L71: 0 | M71: 0 | O71: 0 | P71: 0 | Q71: 0 | R71: 0
I72: 0 | J72: 0 | K72: 0 | L72: 0 | M72: 0 | O72: 0 | P72: 0 | Q72: 0 | R72: 0
I73: 0 | J73: 0 | K73: 0 | L73: 0 | M73: 0 | O73: 0 | P73: 0 | Q73: 0 | R73: 0
I74: 0 | J74: 0 | K74: 0 | L74: 0 | M74: 0 | O74: 0 | P74: 0 | Q74: 0 | R74: 0
I75: 0 | J75: 0 | K75: 0 | L75: 0 | M75: 0 | O75: 0 | P75: 0 | Q75: 0 | R75: 0
I76: 0 | J76: 0 | K76: 0 | L76: 0 | M76: 0 | O76: 0 | P76: 0 | Q76: 0 | R76: 0
I77: 0 | J77: 0 | K77: 0 | L77: 0 | M77: 0 | O77: 0 | P77: 0 | Q77: 0 | R77: 0
I78: 0 | J78: 0 | K78: 0 | L78: 0 | M78: 0 | O78: 0 | P78: 0 | Q78: 0 | R78: 0
I79: 0 | J79: 0 | K79: 0 | L79: 0 | M79: 0 | O79: 0 | P79: 0 | Q79: 0 | R79: 0
I80: 0 | J80: 0 | K80: 0 | L80: 0 | M80: 0 | O80: 0 | P80: 0 | Q80: 0 | R80: 0
I81: =ROUNDUP(IF(F81=0,0,((C81-D81)/2)/F81),0) -> 0 | J81: =IF(F81=0,0,IF(H81=0,0,(B81*1000)/(PI()*H81))) -> 0 | K81: =IF(F81=0,0,IF(B81=0,0,(B81*1000)/((((C81-D81)/2)+D81)*PI()))) -> 0 | L81: =IF(I81=0,0,IF(E81=0,0,IF(G81=0,0,IF(J81>C81,((E81/(H81*G81))*I81),IF(J81<=D81,((E81/(K81*G81))*I81),(((E81/(M81*G81))*S81))+(((E81/(H81*G81))*T81))))))) -> 0 | M81: =IF(F81=0,0,IF(B81=0,0,(B81*1000)/((((C81-J81)/2)+J81)*PI()))) -> 0 | N81: =IF(C81<D81,"!!!Fehler! Dm1<Dm2!!!","") ->  | O81: =IF(N81<>"",1,0) -> 0 | P81: =(C81-J81)/2 -> 0 | Q81: =(J81-D81)/2 -> 0 | R81: =P81+Q81 -> 0 | S81: =I81/R81*P81 ->  | T81: =I81/R81*Q81 ->  | U81: =S81+T81 -> 
I82: 0 | J82: 0 | K82: 0 | L82: 0 | M82: 0 | O82: 0 | P82: 0 | Q82: 0 | R82: 0
I83: 0 | J83: 0 | K83: 0 | L83: 0 | M83: 0 | O83: 0 | P83: 0 | Q83: 0 | R83: 0
I84: 0 | J84: 0 | K84: 0 | L84: 0 | M84: 0 | O84: 0 | P84: 0 | Q84: 0 | R84: 0
I85: 0 | J85: 0 | K85: 0 | L85: 0 | M85: 0 | O85: 0 | P85: 0 | Q85: 0 | R85: 0
I86: 0 | J86: 0 | K86: 0 | L86: 0 | M86: 0 | O86: 0 | P86: 0 | Q86: 0 | R86: 0
I87: 0 | J87: 0 | K87: 0 | L87: 0 | M87: 0 | O87: 0 | P87: 0 | Q87: 0 | R87: 0
I88: 0 | J88: 0 | K88: 0 | L88: 0 | M88: 0 | O88: 0 | P88: 0 | Q88: 0 | R88: 0
I89: 0 | J89: 0 | K89: 0 | L89: 0 | M89: 0 | O89: 0 | P89: 0 | Q89: 0 | R89: 0
I90: 0 | J90: 0 | K90: 0 | L90: 0 | M90: 0 | O90: 0 | P90: 0 | Q90: 0 | R90: 0
I91: 0 | J91: 0 | K91: 0 | L91: 0 | M91: 0 | O91: 0 | P91: 0 | Q91: 0 | R91: 0
I92: 0 | J92: 0 | K92: 0 | L92: 0 | M92: 0 | O92: 0 | P92: 0 | Q92: 0 | R92: 0
I93: 0 | J93: 0 | K93: 0 | L93: 0 | M93: 0 | O93: 0 | P93: 0 | Q93: 0 | R93: 0
I94: 0 | J94: 0 | K94: 0 | L94: 0 | M94: 0 | O94: 0 | P94: 0 | Q94: 0 | R94: 0
I95: 0 | J95: 0 | K95: 0 | L95: 0 | M95: 0 | O95: 0 | P95: 0 | Q95: 0 | R95: 0
I96: 0 | J96: 0 | K96: 0 | L96: 0 | M96: 0 | O96: 0 | P96: 0 | Q96: 0 | R96: 0
I97: 0 | J97: 0 | K97: 0 | L97: 0 | M97: 0 | O97: 0 | P97: 0 | Q97: 0 | R97: 0
I98: 0 | J98: 0 | K98: 0 | L98: 0 | M98: 0 | O98: 0 | P98: 0 | Q98: 0 | R98: 0
I99: 0 | J99: 0 | K99: 0 | L99: 0 | M99: 0 | O99: 0 | P99: 0 | Q99: 0 | R99: 0
I100: 0 | J100: 0 | K100: 0 | L100: 0 | M100: 0 | O100: 0 | P100: 0 | Q100: 0 | R100: 0
I101: 0 | J101: 0 | K101: 0 | L101: 0 | M101: 0 | O101: 0 | P101: 0 | Q101: 0 | R101: 0
I102: 0 | J102: 0 | K102: 0 | L102: 0 | M102: 0 | O102: 0 | P102: 0 | Q102: 0 | R102: 0
I103: 0 | J103: 0 | K103: 0 | L103: 0 | M103: 0 | O103: 0 | P103: 0 | Q103: 0 | R103: 0
I104: 0 | J104: 0 | K104: 0 | L104: 0 | M104: 0 | O104: 0 | P104: 0 | Q104: 0 | R104: 0
I105: 0 | J105: 0 | K105: 0 | L105: 0 | M105: 0 | O105: 0 | P105: 0 | Q105: 0 | R105: 0
I106: 0 | J106: 0 | K106: 0 | L106: 0 | M106: 0 | O106: 0 | P106: 0 | Q106: 0 | R106: 0
I107: 0 | J107: 0 | K107: 0 | L107: 0 | M107: 0 | O107: 0 | P107: 0 | Q107: 0 | R107: 0
I108: 0 | J108: 0 | K108: 0 | L108: 0 | M108: 0 | O108: 0 | P108: 0 | Q108: 0 | R108: 0
I109: 0 | J109: 0 | K109: 0 | L109: 0 | M109: 0 | O109: 0 | P109: 0 | Q109: 0 | R109: 0
I110: 0 | J110: 0 | K110: 0 | L110: 0 | M110: 0 | O110: 0 | P110: 0 | Q110: 0 | R110: 0
I111: 0 | J111: 0 | K111: 0 | L111: 0 | M111: 0 | O111: 0 | P111: 0 | Q111: 0 | R111: 0
I112: 0 | J112: 0 | K112: 0 | L112: 0 | M112: 0 | O112: 0 | P112: 0 | Q112: 0 | R112: 0
I113: 0 | J113: 0 | K113: 0 | L113: 0 | M113: 0 | O113: 0 | P113: 0 | Q113: 0 | R113: 0
I114: 0 | J114: 0 | K114: 0 | L114: 0 | M114: 0 | O114: 0 | P114: 0 | Q114: 0 | R114: 0
I115: 0 | J115: 0 | K115: 0 | L115: 0 | M115: 0 | O115: 0 | P115: 0 | Q115: 0 | R115: 0
I116: 0 | J116: 0 | K116: 0 | L116: 0 | M116: 0 | O116: 0 | P116: 0 | Q116: 0 | R116: 0

Sheet Aufmaß Zeitspanvolumen Drehen
A1: Aufmaß Zeitspanvolumenberechnung beim Drehen
A2: Gesamtvolumen in dm³ = | C2: =SUM($L$8:$L$58) -> 0
A3: Bearbeitungsdauer +Zuschlagsatz in Minuten | C3: =SUM($M$8:$M$58) -> 0
A4: Eingabe Fertigmaße und Spanaufmaß! (Øa = Außen-Ø, L = Länge, Aufmaß = Spanaufmaß "radiusbezogen")
A6: Standardwerte | B6: 100 | C6: 5 | D6: 0.3 | E6: 10
A7: Bemerkung | B7: Vc | C7: ap | D7: f | E7: Zs in % | F7: Øa | G7: L | H7: Aufmaß | I7: Øi | J7: Rohmaße außen | K7: Rohmaße innen | L7: Volumen in dm³ | M7: Zeit in Min.
J8: =IF(F8=0,0,(F8+(2*H8))) -> 0 | K8: =IF(I8=0,0,I8-(2*H8)) -> 0 | L8: =((J8*J8*0.7853898163*G8)/1000000)-((F8*F8*0.7853898163*G8)/1000000)+((I8*I8*0.7853898163*G8)/1000000)-((K8*K8*0.7853898163*G8)/1000000) -> 0 | M8: =ROUND(IF(B8=0,0,IF(C8=0,0,IF(L8=0,0,L8/((B8*C8*D8*1000)/1000000))))*(E8+100)/100,2) -> 0
J9: =IF(F9=0,0,(F9+(2*H9))) -> 0 | K9: =IF(I9=0,0,I9-(2*H9)) -> 0 | L9: =((J9*J9*0.7853898163*G9)/1000000)-((F9*F9*0.7853898163*G9)/1000000)+((I9*I9*0.7853898163*G9)/1000000)-((K9*K9*0.7853898163*G9)/1000000) -> 0 | M9: =ROUND(IF(B9=0,0,IF(C9=0,0,IF(L9=0,0,L9/((B9*C9*D9*1000)/1000000))))*(E9+100)/100,2) -> 0
J10: 0 | K10: 0 | L10: 0 | M10: 0
J11: 0 | K11: 0 | L11: 0 | M11: 0
J12: 0 | K12: 0 | L12: 0 | M12: 0
J13: 0 | K13: 0 | L13: 0 | M13: 0
J14: 0 | K14: 0 | L14: 0 | M14: 0
J15: 0 | K15: 0 | L15: 0 | M15: 0
J16: 0 | K16: 0 | L16: 0 | M16: 0
J17: 0 | K17: 0 | L17: 0 | M17: 0
J18: 0 | K18: 0 | L18: 0 | M18: 0
J19: 0 | K19: 0 | L19: 0 | M19: 0
J20: 0 | K20: 0 | L20: 0 | M20: 0
J21: 0 | K21: 0 | L21: 0 | M21: 0
J22: 0 | K22: 0 | L22: 0 | M22: 0
J23: 0 | K23: 0 | L23: 0 | M23: 0
J24: 0 | K24: 0 | L24: 0 | M24: 0
J25: 0 | K25: 0 | L25: 0 | M25: 0
J26: 0 | K26: 0 | L26: 0 | M26: 0
J27: 0 | K27: 0 | L27: 0 | M27: 0
J28: 0 | K28: 0 | L28: 0 | M28: 0
J29: 0 | K29: 0 | L29: 0 | M29: 0
J30: 0 | K30: 0 | L30: 0 | M30: 0
J31: 0 | K31: 0 | L31: 0 | M31: 0
J32: 0 | K32: 0 | L32: 0 | M32: 0
J33: 0 | K33: 0 | L33: 0 | M33: 0
J34: 0 | K34: 0 | L34: 0 | M34: 0
J35: 0 | K35: 0 | L35: 0 | M35: 0
J36: 0 | K36: 0 | L36: 0 | M36: 0
J37: 0 | K37: 0 | L37: 0 | M37: 0
J38: 0 | K38: 0 | L38: 0 | M38: 0
J39: 0 | K39: 0 | L39: 0 | M39: 0
J40: =IF(F40=0,0,(F40+(2*H40))) -> 0 | K40: =IF(I40=0,0,I40-(2*H40)) -> 0 | L40: =((J40*J40*0.7853898163*G40)/1000000)-((F40*F40*0.7853898163*G40)/1000000)+((I40*I40*0.7853898163*G40)/1000000)-((K40*K40*0.7853898163*G40)/1000000) -> 0 | M40: =ROUND(IF(B40=0,0,IF(C40=0,0,IF(L40=0,0,L40/((B40*C40*D40*1000)/1000000))))*(E40+100)/100,2) -> 0
J41: 0 | K41: 0 | L41: 0 | M41: 0
J42: 0 | K42: 0 | L42: 0 | M42: 0
J43: 0 | K43: 0 | L43: 0 | M43: 0
J44: 0 | K44: 0 | L44: 0 | M44: 0
J45: 0 | K45: 0 | L45: 0 | M45: 0
J46: 0 | K46: 0 | L46: 0 | M46: 0
J47: 0 | K47: 0 | L47: 0 | M47: 0
J48: 0 | K48: 0 | L48: 0 | M48: 0
J49: 0 | K49: 0 | L49: 0 | M49: 0
J50: 0 | K50: 0 | L50: 0 | M50: 0
J51: 0 | K51: 0 | L51: 0 | M51: 0
J52: 0 | K52: 0 | L52: 0 | M52: 0
J53: 0 | K53: 0 | L53: 0 | M53: 0
J54: 0 | K54: 0 | L54: 0 | M54: 0
J55: 0 | K55: 0 | L55: 0 | M55: 0
J56: 0 | K56: 0 | L56: 0 | M56: 0
J57: 0 | K57: 0 | L57: 0 | M57: 0
J58: 0 | K58: 0 | L58: 0 | M58: 0

Sheet TGM Fräsen_F pro Zahn
A2: Schnittzeitberechnung Fräsen (F pro Zahn) | H2: Gesamtzeit: | I2: =SUM(H6:H105) -> 0
A3: =NOW() -> 2016-12-21T14:11:15.240
A4: Standardwerte | B4: 500 | C4: 3 | D4: 100 | F4: 0.1
A5: Bemerkung | B5: Drehzahl | C5: Zähnezahl | D5: Länge | E5: Schnitte | F5: F pro Zahn | G5: F pro Min. | H5: Zeit
G6: =ROUND(F6*C6*B6,0) -> 0 | H6: =IF(D6=0,0,IF(E6=0,0,IF(F6=0,0,(D6/(F6*C6*B6))*E6))) -> 0
G7: =F7*C7*B7 -> 0 | H7: =IF(D7=0,0,IF(E7=0,0,IF(F7=0,0,(D7/(F7*C7*B7))*E7))) -> 0
G8: 0 | H8: 0
G9: 0 | H9: 0
G10: 0 | H10: 0
G11: 0 | H11: 0
G12: 0 | H12: 0
G13: 0 | H13: 0
G14: 0 | H14: 0
G15: 0 | H15: 0
G16: 0 | H16: 0
G17: 0 | H17: 0
G18: 0 | H18: 0
G19: 0 | H19: 0
G20: 0 | H20: 0
G21: 0 | H21: 0
G22: 0 | H22: 0
G23: 0 | H23: 0
G24: 0 | H24: 0
G25: 0 | H25: 0
G26: 0 | H26: 0
G27: 0 | H27: 0
G28: 0 | H28: 0
G29: 0 | H29: 0
G30: 0 | H30: 0
G31: 0 | H31: 0
G32: 0 | H32: 0
G33: 0 | H33: 0
G34: 0 | H34: 0
G35: 0 | H35: 0
G36: 0 | H36: 0
G37: 0 | H37: 0
G38: 0 | H38: 0
G39: 0 | H39: 0
G40: 0 | H40: 0
G41: 0 | H41: 0
G42: 0 | H42: 0
G43: 0 | H43: 0
G44: 0 | H44: 0
G45: 0 | H45: 0
G46: 0 | H46: 0
G47: 0 | H47: 0
G48: 0 | H48: 0
G49: 0 | H49: 0
G50: 0 | H50: 0
G51: 0 | H51: 0
G52: 0 | H52: 0
G53: 0 | H53: 0
G54: 0 | H54: 0
G55: 0 | H55: 0
G56: 0 | H56: 0
G57: 0 | H57: 0
G58: 0 | H58: 0
G59: 0 | H59: 0
G60: 0 | H60: 0
G61: 0 | H61: 0
G62: 0 | H62: 0
G63: 0 | H63: 0
G64: 0 | H64: 0
G65: 0 | H65: 0
G66: 0 | H66: 0
G67: 0 | H67: 0
G68: 0 | H68: 0
G69: 0 | H69: 0
G70: 0 | H70: 0
G71: =F71*C71*B71 -> 0 | H71: =IF(D71=0,0,IF(E71=0,0,IF(F71=0,0,(D71/(F71*C71*B71))*E71))) -> 0
G72: 0 | H72: 0
G73: 0 | H73: 0
G74: 0 | H74: 0
G75: 0 | H75: 0
G76: 0 | H76: 0
G77: 0 | H77: 0
G78: 0 | H78: 0
G79: 0 | H79: 0
G80: 0 | H80: 0
G81: 0 | H81: 0
G82: 0 | H82: 0
G83: 0 | H83: 0
G84: 0 | H84: 0
G85: 0 | H85: 0
G86: 0 | H86: 0
G87: 0 | H87: 0
G88: 0 | H88: 0
G89: 0 | H89: 0
G90: 0 | H90: 0
G91: 0 | H91: 0
G92: 0 | H92: 0
G93: 0 | H93: 0
G94: 0 | H94: 0
G95: 0 | H95: 0
G96: 0 | H96: 0
G97: 0 | H97: 0
G98: 0 | H98: 0
G99: 0 | H99: 0
G100: 0 | H100: 0
G101: 0 | H101: 0
G102: 0 | H102: 0
G103: 0 | H103: 0
G104: 0 | H104: 0
G105: 0 | H105: 0

Sheet TGM Fräsen _F pro Min.
A2: Schnittzeitberechnung Fräsen (F pro Minute) | E2: Gesamtzeit: | F2: =SUM(E6:E105) -> 0
A3: Millimeter eingeben
A4: Standardwerte | B4: 100 | C4: 333
A5: Bemerkung | B5: Länge | C5: F pro Minute | D5: Schnitte | E5: Zeit
E6: =IF(C6=0,0,IF(D6=0,0,B6/C6*D6)) -> 0
E7: =IF(C7=0,0,IF(D7=0,0,B7/C7*D7)) -> 0
E8: 0
E9: 0
E10: 0
E11: 0
E12: 0
E13: 0
E14: 0
E15: 0
E16: 0
E17: 0
E18: 0
E19: 0
E20: 0
E21: 0
E22: 0
E23: 0
E24: 0
E25: 0
E26: 0
E27: 0
E28: 0
E29: 0
E30: 0
E31: 0
E32: 0
E33: 0
E34: 0
E35: 0
E36: 0
E37: 0
E38: 0
E39: 0
E40: 0
E41: 0
E42: 0
E43: 0
E44: 0
E45: 0
E46: 0
E47: 0
E48: 0
E49: 0
E50: 0
E51: 0
E52: 0
E53: 0
E54: 0
E55: 0
E56: 0
E57: 0
E58: 0
E59: 0
E60: 0
E61: 0
E62: 0
E63: 0
E64: 0
E65: 0
E66: 0
E67: 0
E68: 0
E69: 0
E70: 0
E71: =IF(C71=0,0,IF(D71=0,0,B71/C71*D71)) -> 0
E72: 0
E73: 0
E74: 0
E75: 0
E76: 0
E77: 0
E78: 0
E79: 0
E80: 0
E81: 0
E82: 0
E83: 0
E84: 0
E85: 0
E86: 0
E87: 0
E88: 0
E89: 0
E90: 0
E91: 0
E92: 0
E93: 0
E94: 0
E95: 0
E96: 0
E97: 0
E98: 0
E99: 0
E100: 0
E101: 0
E102: 0
E103: 0
E104: 0
E105: 0

Sheet Drehzahlberechnung
A1: Berechnung Ø, Drehzahl und Schnittgeschwindigkeit: | D1: bei Ø0 Genzdrehzahl | E1: Bitte Drehzahl eingeben !
A2: Eingabe | C2: Ergebnis
A3: Schnittgeschwindigkeit V in m/min | B3: Ø in mm | C3: Drehzahl n in U/min
A4: 100 | B4: 1030 | C4: =IF(B4=0,D1,(A4*1000)/(B4*PI())) -> 30.90387245
A6: Drehzahl n in U/min | B6: Ø in mm | C6: Schnittgeschwindigkeit V in m/min
A7: 5 | B7: 2000 | C7: =(B7*PI()*A7)/1000 -> 31.41592654
A9: Schnittgeschwindigkeit V in m/min | B9: Drehzahl n in U/min | C9: Ø in mm
A10: 100 | B10: 318.31 | C10: =IF(B10=0,E1,(A10*1000)/(B10*PI())) -> 99.99996424

Sheet Vorschubberechnung
A1: Vorschubberechnung in mm/Minute
A2: Fräserdurchmesser in mm: | B2: 100
A3: Zähnezahl: | B3: 8
A4: Schnittgeschwindigkeit in m/min: | B4: 150
A5: Vorschub pro Zahn in mm: | B5: 0.1
A6: max. Drehzahl Maschine (n max.) in U/min: | B6: 1000
A7: berechnete Drehzahl (n) in U/min: | B7: =IF(B2=0,0,ROUND((B4*1000)/(B2*3.141592654),0)) -> 477
A8: Vorschub in mm/min: | B8: =IF(B6=0,ROUND(B7*B3*B5,0),IF(B7>B6,"n > n max.",ROUND(B7*B3*B5,0))) -> 382
A9: Vorschub in mm/min bei n max. Maschine: | B9: =IF(B6>B7,"n < n max.",ROUND(B6*B5*B3,0)) -> n < n max.

Sheet ZSV
A1: Info | E1: Gesamtes Zerspanungsvolumen des Teiles in dm³ = | F1: =ROUND(SUM(Rundstahl!C1)+('Rundstahl (-)'!C1)+(Kegelstumpf!C1)+('Kegelstumpf (-)'!C1)+(Vierkant!C1)+('Vierkant (-)'!C1)+(Sechskant!C1)+('Sechskant (-)'!C1)+(Rohr!C1)+('Rohr (-)'!C1)+(Kugel!B1)+('Kugel (-)'!B1)+(Vielkant!C1)+('Vielkant (-)'!C1)+('Pyramidenstumpf(+)'!E1)+('Pyramidenstumpf(-)'!E1)+('Kugelsektor(+) '!B1)+('Kugelsektor(-)'!B1)+('Kugelabschnitt +'!C1)+('Kugelabschnitt -'!C1)+('Zylinderabschnitt(+)'!C1)+('Zylinderabschnitt(-)'!C1)+('Prisma(+)'!D1)+('Prisma(-)'!D1)+(Aufmaße!E1),6) -> 0
F2: Arbeitsblätter zur Berechnung | G2: =CONCATENATE("Gesamtzeit = ",ROUND((D11+D20+D29+D38+D47+D56),2)) -> Gesamtzeit = 0
B4: (1) Zeitspanungsvolumen Drehen
B5: Hier Volumen (F1) für Drehbearbeitung eintragen | D5: 0
B6: Schnittgeschwindigkeit in m/min | D6: 100
B7: Schnitttiefe (ap) in mm
B8: Vorschub (f) in mm pro Umdrehung
B9: Bearbeitungsdauer in Minuten | D9: =IF(D6=0,0,IF(D7=0,0,IF(D8=0,0,D5/((D6*D7*D8*1000)/1000000)))) -> 0
B10: Zuschlagsatz in %
B11: Bearbeitungsdauer in Minuten + Zuschlagsatz in % | D11: =D9*(D10+100)/100 -> 0
B13: (2) Zeitspanungsvolumen Drehen
B14: Hier Volumen (F1) für Drehbearbeitung eintragen
B15: Schnittgeschwindigkeit in m/min
B16: Schnitttiefe (ap) in mm
B17: Vorschub (f) in mm pro Umdrehung
B18: Bearbeitungsdauer in Minuten | D18: =IF(D15=0,0,IF(D16=0,0,IF(D17=0,0,D14/((D15*D16*D17*1000)/1000000)))) -> 0
B19: Zuschlagsatz in %
B20: Bearbeitungsdauer in Minuten + Zuschlagsatz in % | D20: =D18*(D19+100)/100 -> 0
B22: (3) Zeitspanungsvolumen Drehen
B23: Hier Volumen (F1) für Drehbearbeitung eintragen
B24: Schnittgeschwindigkeit in m/min
B25: Schnitttiefe (ap) in mm
B26: Vorschub (f) in mm pro Umdrehung
B27: Bearbeitungsdauer in Minuten | D27: =IF(D24=0,0,IF(D25=0,0,IF(D26=0,0,D23/((D24*D25*D26*1000)/1000000)))) -> 0
B28: Zuschlagsatz in %
B29: Bearbeitungsdauer in Minuten + Zuschlagsatz in % | D29: =D27*(D28+100)/100 -> 0
B31: (1) Zeitspanungsvolumen Fräsen
B32: Hier Volumen (F1) für Fräsbearbeitung eintragen | D32: 0
B33: Schnittbreite (ae) in mm
B34: Schnitttiefe (ap) in mm | D34: 5
B35: Vorschubgeschwindigkeit (Vf) in mm pro Minute
B36: Bearbeitungsdauer in Minuten | D36: =IF(D33=0,0,IF(D34=0,0,IF(D35=0,0,D32/((D33*D34*D35)/1000000)))) -> 0
B37: Zuschlagsatz in %
B38: Bearbeitungsdauer in Minuten + Zuschlagsatz in % | D38: =D36*(D37+100)/100 -> 0
B40: (2) Zeitspanungsvolumen Fräsen
B41: Hier Volumen (F1) für Fräsbearbeitung eintragen
B42: Schnittbreite (ae) in mm
B43: Schnitttiefe (ap) in mm
B44: Vorschubgeschwindigkeit (Vf) in mm pro Minute
B45: Bearbeitungsdauer in Minuten | D45: =IF(D42=0,0,IF(D43=0,0,IF(D44=0,0,D41/((D42*D43*D44)/1000000)))) -> 0
B46: Zuschlagsatz in %
B47: Bearbeitungsdauer in Minuten + Zuschlagsatz in % | D47: =D45*(D46+100)/100 -> 0
B49: (3) Zeitspanungsvolumen Fräsen
B50: Hier Volumen (F1) für Fräsbearbeitung eintragen
B51: Schnittbreite (ae) in mm
B52: Schnitttiefe (ap) in mm
B53: Vorschubgeschwindigkeit (Vf) in mm pro Minute
B54: Bearbeitungsdauer in Minuten | D54: =IF(D51=0,0,IF(D52=0,0,IF(D53=0,0,D50/((D51*D52*D53)/1000000)))) -> 0
B55: Zuschlagsatz in %
B56: Bearbeitungsdauer in Minuten + Zuschlagsatz in % | D56: =D54*(D55+100)/100 -> 0

Sheet Aufmaße
C1: Gesamtvolumen = | E1: =SUM(G5:G36) -> 0
A2: Aufmaßvolumenberechnung beim Drehen:
A3: Eingabe Fertigmaße und Spanaufmaß! (Øa = Außen-Ø, L = Länge, Aufmaß = Spanaufmaß "radiusbezogen"
A4: Øa | B4: L | C4: Aufmaß | D4: Øi | E4: Rohmaße außen | F4: Rohmaße innen | G4: Volumen in dm³
E5: =IF(A5=0,0,(A5+(2*C5))) -> 0 | F5: =IF(D5=0,0,D5-(2*C5)) -> 0 | G5: =((E5*E5*0.7853898163*B5)/1000000)-((A5*A5*0.7853898163*B5)/1000000)+((D5*D5*0.7853898163*B5)/1000000)-((F5*F5*0.7853898163*B5)/1000000) -> 0
E6: =IF(A6=0,0,(A6+(2*C6))) -> 0 | F6: =IF(D6=0,0,D6-(2*C6)) -> 0 | G6: =((E6*E6*0.7853898163*B6)/1000000)-((A6*A6*0.7853898163*B6)/1000000)+((D6*D6*0.7853898163*B6)/1000000)-((F6*F6*0.7853898163*B6)/1000000) -> 0
E7: 0 | F7: 0 | G7: 0
E8: 0 | F8: 0 | G8: 0
E9: 0 | F9: 0 | G9: 0
E10: 0 | F10: 0 | G10: 0
E11: 0 | F11: 0 | G11: 0
E12: 0 | F12: 0 | G12: 0
E13: 0 | F13: 0 | G13: 0
E14: 0 | F14: 0 | G14: 0
E15: 0 | F15: 0 | G15: 0
E16: 0 | F16: 0 | G16: 0
E17: 0 | F17: 0 | G17: 0
E18: 0 | F18: 0 | G18: 0
E19: 0 | F19: 0 | G19: 0
E20: 0 | F20: 0 | G20: 0
E21: 0 | F21: 0 | G21: 0
E22: 0 | F22: 0 | G22: 0
E23: 0 | F23: 0 | G23: 0
E24: 0 | F24: 0 | G24: 0
E25: 0 | F25: 0 | G25: 0
E26: 0 | F26: 0 | G26: 0
E27: 0 | F27: 0 | G27: 0
E28: 0 | F28: 0 | G28: 0
E29: 0 | F29: 0 | G29: 0
E30: 0 | F30: 0 | G30: 0
E31: 0 | F31: 0 | G31: 0
E32: 0 | F32: 0 | G32: 0
E33: 0 | F33: 0 | G33: 0
E34: 0 | F34: 0 | G34: 0
E35: 0 | F35: 0 | G35: 0
E36: 0 | F36: 0 | G36: 0

Sheet Rundstahl
A1: Gesamtvolumen= | C1: =SUM(D5:D36) -> 0
A2: Volumentabelle:Durchmesser (Dm), Länge (L), Breite in mm eingeben!
A3: Heutiges Datum: | B3: =TODAY() -> 2016-12-21
A4: d | B4: L | D4: Zylinder(dm³)
D5: =(A5*A5*0.7853898163*B5)/1000000 -> 0
D6: 0
D7: 0
D8: 0
D9: 0
D10: 0
D11: 0
D12: 0
D13: 0
D14: 0
D15: 0
D16: 0
D17: 0
D18: 0
D19: 0
D20: 0
D21: 0
D22: 0
D23: 0
D24: 0
D25: 0
D26: 0
D27: 0
D28: 0
D29: 0
D30: 0
D31: 0
D32: 0
D33: 0
D34: 0
D35: 0
D36: 0

Sheet Rundstahl (-)
A1: Gesamtvolumen= | C1: =SUM(D5:D36) -> 0
A2: Volumentabelle:Durchmesser (Dm), Länge (L), Breite in mm eingeben!
A3: Heutiges Datum: | B3: =TODAY() -> 2016-12-21
A4: d | B4: L | D4: Zylinder(dm³)
D5: =((A5*A5*0.7853898163*B5)/1000000)-(2*((A5*A5*0.7853898163*B5)/1000000)) -> 0
D6: 0
D7: 0
D8: 0
D9: 0
D10: 0
D11: 0
D12: 0
D13: 0
D14: 0
D15: 0
D16: 0
D17: 0
D18: 0
D19: 0
D20: 0
D21: 0
D22: 0
D23: 0
D24: 0
D25: 0
D26: 0
D27: 0
D28: 0
D29: 0
D30: 0
D31: 0
D32: 0
D33: 0
D34: 0
D35: 0
D36: 0

Sheet Kegelstumpf
A1: Gesamtvolumen= | C1: =SUM(E5:E36) -> 0
A2: Volumentabelle:Durchmesser (D), Länge (h),
A3: kleiner Durchmesser bei Kegelstumpf (d) in mm eingeben!
A4: D | B4: d | C4: h | E4: Kegelstumpf(dm³)
E5: =(1.047197551*C5*(((A5/2)*(A5/2))+((A5/2)*(B5/2))+((B5/2)*(B5/2))))/1000000 -> 0
E6: 0
E7: 0
E8: 0
E9: 0
E10: 0
E11: 0
E12: 0
E13: 0
E14: 0
E15: 0
E16: 0
E17: 0
E18: 0
E19: 0
E20: 0
E21: 0
E22: 0
E23: 0
E24: 0
E25: 0
E26: 0
E27: 0
E28: 0
E29: 0
E30: 0
E31: 0
E32: 0
E33: 0
E34: 0
E35: 0
E36: 0

Sheet Kegelstumpf (-)
A1: Gesamtvolumen= | C1: =SUM(E5:E36) -> 0
A2: Volumentabelle:Durchmesser (D), Länge (h),
A3: kleiner Durchmesser bei Kegelstumpf (d) in mm eingeben!
A4: D | B4: d | C4: h | E4: Kegelstumpf(dm³)
E5: =((1.047197551*C5*(((A5/2)*(A5/2))+((A5/2)*(B5/2))+((B5/2)*(B5/2))))/1000000)-(2*(((1.047197551*C5*(((A5/2)*(A5/2))+((A5/2)*(B5/2))+((B5/2)*(B5/2))))/1000000))) -> 0
E6: 0
E7: 0
E8: 0
E9: 0
E10: 0
E11: 0
E12: 0
E13: 0
E14: 0
E15: 0
E16: 0
E17: 0
E18: 0
E19: 0
E20: 0
E21: 0
E22: 0
E23: 0
E24: 0
E25: 0
E26: 0
E27: 0
E28: 0
E29: 0
E30: 0
E31: 0
E32: 0
E33: 0
E34: 0
E35: 0
E36: 0

Sheet Vierkant
A1: Gesamtvolumen= | C1: =SUM(E5:E36) -> 0
A2: Volumentabelle: Länge (L), Breite (B), Höhe (H), in mm eingeben!
A3: Heutiges Datum: | B3: =TODAY() -> 2016-12-21
A4: L | B4: B | C4: H | E4: Vierkant (dm³)
E5: =(A5*B5*C5)/1000000 -> 0
E6: 0
E7: 0
E8: 0
E9: 0
E10: 0
E11: 0
E12: 0
E13: 0
E14: 0
E15: 0
E16: 0
E17: 0
E18: 0
E19: 0
E20: 0
E21: 0
E22: 0
E23: 0
E24: 0
E25: 0
E26: 0
E27: 0
E28: 0
E29: 0
E30: 0
E31: 0
E32: 0
E33: 0
E34: 0
E35: 0
E36: 0

Sheet Vierkant (-)
A1: Gesamtvolumen= | C1: =SUM(E5:E36) -> 0
A2: Volumentabelle: Länge (L), Breite (B), Höhe (H), in mm eingeben!
A3: Heutiges Datum: | B3: =TODAY() -> 2016-12-21
A4: L | B4: B | C4: H | E4: Vierkant (dm³)
E5: =((A5*B5*C5)/1000000)-(2*((A5*B5*C5)/1000000)) -> 0
E6: 0
E7: 0
E8: 0
E9: 0
E10: 0
E11: 0
E12: 0
E13: 0
E14: 0
E15: 0
E16: 0
E17: 0
E18: 0
E19: 0
E20: 0
E21: 0
E22: 0
E23: 0
E24: 0
E25: 0
E26: 0
E27: 0
E28: 0
E29: 0
E30: 0
E31: 0
E32: 0
E33: 0
E34: 0
E35: 0
E36: 0

Sheet Sechskant
A1: Gesamtvolumen= | C1: =SUM(D5:D36) -> 0
A2: Volumentabelle Länge (L) und Schlüsselweite (SW) in mm eingeben!
A3: Heutiges Datum: | B3: =TODAY() -> 2016-12-21
A4: L | B4: SW | D4: Sechskant(dm³)
D5: =2*(B5/2*B5/2)*1.732050808*A5/1000000 -> 0
D6: 0
D7: 0
D8: 0
D9: 0
D10: 0
D11: 0
D12: 0
D13: 0
D14: 0
D15: 0
D16: 0
D17: 0
D18: 0
D19: 0
D20: 0
D21: 0
D22: 0
D23: 0
D24: 0
D25: 0
D26: 0
D27: 0
D28: 0
D29: 0
D30: 0
D31: 0
D32: 0
D33: 0
D34: 0
D35: 0
D36: 0

Sheet Sechskant (-)
A1: Gesamtvolumen= | C1: =SUM(D5:D36) -> 0
A2: Volumentabelle Länge (L) und Schlüsselweite (SW) in mm eingeben!
A3: Heutiges Datum: | B3: =TODAY() -> 2016-12-21
A4: L | B4: SW | D4: Sechskant(dm³)
D5: =(2*(B5/2*B5/2)*1.732050808*A5/1000000)-(2*(2*(B5/2*B5/2)*1.732050808*A5/1000000)) -> 0
D6: 0
D7: 0
D8: 0
D9: 0
D10: 0
D11: 0
D12: 0
D13: 0
D14: 0
D15: 0
D16: 0
D17: 0
D18: 0
D19: 0
D20: 0
D21: 0
D22: 0
D23: 0
D24: 0
D25: 0
D26: 0
D27: 0
D28: 0
D29: 0
D30: 0
D31: 0
D32: 0
D33: 0
D34: 0
D35: 0
D36: 0

Sheet Kugel
A1: Gesamtvolumen= | B1: =SUM(C5:C36) -> 0
A2: Volumentabelle:Durchmesser (d) in mm +Teilungsfaktor (TF) eingeben!
A3: Heutiges Datum: | B3: =TODAY() -> 2016-12-21
A4: d | B4: TF | C4: Kugel (dm³)
B5: 1 | C5: =((A5*A5*A5*0.523598775)/1000000)/B5 -> 0
B6: 1 | C6: 0
B7: 1 | C7: 0
B8: 1 | C8: 0
B9: 1 | C9: 0
B10: 1 | C10: 0
B11: 1 | C11: 0
B12: 1 | C12: 0
B13: 1 | C13: 0
B14: 1 | C14: 0
B15: 1 | C15: 0
B16: 1 | C16: 0
B17: 1 | C17: 0
B18: 1 | C18: 0
B19: 1 | C19: 0
B20: 1 | C20: 0
B21: 1 | C21: 0
B22: 1 | C22: 0
B23: 1 | C23: 0
B24: 1 | C24: 0
B25: 1 | C25: 0
B26: 1 | C26: 0
B27: 1 | C27: 0
B28: 1 | C28: 0
B29: 1 | C29: 0
B30: 1 | C30: 0
B31: 1 | C31: 0
B32: 1 | C32: 0
B33: 1 | C33: 0
B34: 1 | C34: 0
B35: 1 | C35: 0
B36: 1 | C36: 0

Sheet Kugel (-)
A1: Gesamtvolumen= | B1: =SUM(C5:C36) -> 0
A2: Volumentabelle:Durchmesser (d) in mm +Teilungsfaktor (TF) eingeben!
A3: Heutiges Datum: | B3: =TODAY() -> 2016-12-21
A4: d | B4: TF | C4: Kugel (dm³)
B5: 1 | C5: =(((A5*A5*A5*0.523598775)/1000000)-(2*((A5*A5*A5*0.523598775)/1000000)))/B5 -> 0
B6: 1 | C6: 0
B7: 1 | C7: 0
B8: 1 | C8: 0
B9: 1 | C9: 0
B10: 1 | C10: 0
B11: 1 | C11: 0
B12: 1 | C12: 0
B13: 1 | C13: 0
B14: 1 | C14: 0
B15: 1 | C15: 0
B16: 1 | C16: 0
B17: 1 | C17: 0
B18: 1 | C18: 0
B19: 1 | C19: 0
B20: 1 | C20: 0
B21: 1 | C21: 0
B22: 1 | C22: 0
B23: 1 | C23: 0
B24: 1 | C24: 0
B25: 1 | C25: 0
B26: 1 | C26: 0
B27: 1 | C27: 0
B28: 1 | C28: 0
B29: 1 | C29: 0
B30: 1 | C30: 0
B31: 1 | C31: 0
B32: 1 | C32: 0
B33: 1 | C33: 0
B34: 1 | C34: 0
B35: 1 | C35: 0
B36: 1 | C36: 0

Sheet Rohr
A1: Gesamtvolumen= | C1: =SUM(E5:E36) -> 0
A2: Volumentabelle:Durchmesser (Dm), Länge (L), Rohrwandung (RW) in mm eingeben!
A3: Heutiges Datum: | B3: =TODAY() -> 2016-12-21
A4: Dm | B4: L | C4: RW | E4: Rohr (dm³)
E5: =((A5*A5*0.7853898163*B5)/1000000)-(((A5-C5-C5)*(A5-C5-C5)*0.7853898163*B5)/1000000) -> 0
E6: =((A6*A6*0.7853898163*B6)/1000000)-(((A6-C6-C6)*(A6-C6-C6)*0.7853898163*B6)/1000000) -> 0
E7: 0
E8: 0
E9: 0
E10: 0
E11: 0
E12: 0
E13: 0
E14: 0
E15: 0
E16: 0
E17: 0
E18: 0
E19: 0
E20: 0
E21: 0
E22: 0
E23: 0
E24: 0
E25: 0
E26: 0
E27: 0
E28: 0
E29: 0
E30: 0
E31: 0
E32: 0
E33: 0
E34: 0
E35: 0
E36: 0

Sheet Rohr (-)
A1: Gesamtvolumen= | C1: =SUM(E5:E36) -> 0
A2: Volumentabelle:Durchmesser (Dm), Länge (L), Rohrwandung (RW) in mm eingeben!
A3: Heutiges Datum: | B3: =TODAY() -> 2016-12-21
A4: Dm | B4: L | C4: RW | E4: Rohr (dm³)
E5: =(((A5*A5*0.7853898163*B5)/1000000)-(((A5-C5-C5)*(A5-C5-C5)*0.7853898163*B5)/1000000))-(2*(((A5*A5*0.7853898163*B5)/1000000)-(((A5-C5-C5)*(A5-C5-C5)*0.7853898163*B5)/1000000))) -> 0
E6: 0
E7: 0
E8: 0
E9: 0
E10: 0
E11: 0
E12: 0
E13: 0
E14: 0
E15: 0
E16: 0
E17: 0
E18: 0
E19: 0
E20: 0
E21: 0
E22: 0
E23: 0
E24: 0
E25: 0
E26: 0
E27: 0
E28: 0
E29: 0
E30: 0
E31: 0
E32: 0
E33: 0
E34: 0
E35: 0
E36: 0

Sheet Vielkant
A1: Gesamtvolumen = | C1: =SUM(H6:H14) -> 0
A2: Volumentabelle Vielkant (+) | D2: EM= Eckenmaß in mm, nur gültig bei geraden Ecken
A3: SW=Schlüsselweite in mm | D3: Ez=Eckenanzahl | F3: L=Länge | G3: S=Seitenfläche in mm
A4: A= Flächeninhalt in mm hoch 2 | D4: V= Volumen in dm³
A5: SW | B5: Ez | C5: L | E5: EM | F5: S | G5: A | H5: V
B6: 6 | E6: =(SQRT(((0.5*A6)*(0.5*A6))+((0.5*F6)*(0.5*F6))))*2 -> 0 | F6: =TAN(((360/B6/2)*PI()/180))*A6 -> 0 | G6: =0.5*F6*0.5*A6*B6 -> 0 | H6: =(G6*C6)/1000000 -> 0
B7: 6 | E7: =(SQRT(((0.5*A7)*(0.5*A7))+((0.5*F7)*(0.5*F7))))*2 -> 0 | F7: 0 | G7: 0 | H7: 0
B8: 6 | E8: 0 | F8: 0 | G8: 0 | H8: 0
B9: 6 | E9: 0 | F9: 0 | G9: 0 | H9: 0
B10: 6 | E10: 0 | F10: 0 | G10: 0 | H10: 0
B11: 6 | E11: 0 | F11: 0 | G11: 0 | H11: 0
B12: 6 | E12: 0 | F12: 0 | G12: 0 | H12: 0
B13: 6 | E13: 0 | F13: 0 | G13: 0 | H13: 0
B14: 6 | E14: 0 | F14: 0 | G14: 0 | H14: 0

Sheet Vielkant (-)
A1: Gesamtvolumen= | C1: =SUM(H6:H14) -> 0
A2: Volumentabelle Vielkant (-) | D2: EM= Eckenmaß in mm, nur gültig bei geraden Ecken
A3: SW=Schlüsselweite in mm | D3: Ez=Eckenanzahl | F3: L=Länge | G3: S=Seitenfläche in mm
A4: A= Flächeninhalt in mm hoch 2 | D4: V= Volumen in dm³
A5: SW | B5: Ez | C5: L | E5: EM | F5: S | G5: A | H5: V
B6: 6 | E6: =(SQRT(((0.5*A6)*(0.5*A6))+((0.5*F6)*(0.5*F6))))*2 -> 0 | F6: =TAN(((360/B6/2)*PI()/180))*A6 -> 0 | G6: =0.5*F6*0.5*A6*B6 -> 0 | H6: =((G6*C6)/1000000)-(2*((G6*C6)/1000000)) -> 0
B7: 6 | E7: 0 | F7: 0 | G7: 0 | H7: =(G7*C7)/1000000 -> 0
B8: 6 | E8: 0 | F8: 0 | G8: 0 | H8: 0
B9: 6 | E9: 0 | F9: 0 | G9: 0 | H9: 0
B10: 6 | E10: 0 | F10: 0 | G10: 0 | H10: 0
B11: 6 | E11: 0 | F11: 0 | G11: 0 | H11: 0
B12: 6 | E12: 0 | F12: 0 | G12: 0 | H12: 0
B13: 6 | E13: 0 | F13: 0 | G13: 0 | H13: 0
B14: 6 | E14: 0 | F14: 0 | G14: 0 | H14: 0

Sheet Pyramidenstumpf(+)
A1: Gesamtvolumen = | E1: =SUM(G5:G36) -> 0
A2: Volumentabelle:große Quadratseitenlänge (l1), Höhe (h) und
A3: kleine Quadratseitenlänge bei Pyramidenstumpf (l2) in mm eingeben!
A4: l1(l) | B4: b1(b) | C4: l2 | D4: b2 | E4: h | G4: Volumen in dm³
G5: =((((A5*B5)+(C5*D5)+SQRT((A5*B5)*(C5*D5)))*(E5/3))/1000000) -> 0
G6: 0
G7: 0
G8: 0
G9: 0
G10: 0
G11: 0
G12: 0
G13: 0
G14: 0
G15: 0
G16: 0
G17: 0
G18: 0
G19: 0
G20: 0
G21: 0
G22: 0
G23: 0
G24: 0
G25: 0
G26: 0
G27: 0
G28: 0
G29: 0
G30: 0
G31: 0
G32: 0
G33: 0
G34: 0
G35: 0
G36: 0

Sheet Pyramidenstumpf(-)
A1: Gesamtvolumen = | E1: =SUM(G5:G36) -> 0
A2: Volumentabelle (-):große Quadratseitenlänge (l1), Höhe (h) und
A3: kleine Quadratseitenlänge bei Pyramidenstumpf (l2) in mm eingeben!
A4: l1(l) | B4: b1(b) | C4: l2 | D4: b2 | E4: h | G4: Volumen in dm³
G5: =((((A5*B5)+(C5*D5)+SQRT((A5*B5)*(C5*D5)))*(E5/3))/1000000)-2*(((((A5*B5)+(C5*D5)+SQRT((A5*B5)*(C5*D5)))*(E5/3))/1000000)) -> 0
G6: 0
G7: 0
G8: 0
G9: 0
G10: 0
G11: 0
G12: 0
G13: 0
G14: 0
G15: 0
G16: 0
G17: 0
G18: 0
G19: 0
G20: 0
G21: 0
G22: 0
G23: 0
G24: 0
G25: 0
G26: 0
G27: 0
G28: 0
G29: 0
G30: 0
G31: 0
G32: 0
G33: 0
G34: 0
G35: 0
G36: 0

Sheet Kugelsektor(+)
A1: Gesamtvolumen= | B1: =SUM(D5:D36) -> 0
A2: Volumentabelle:Durchmesser (d), Höhe (h),
A3: bei Kugelsektor in mm eingeben!
A4: d | B4: h | D4: Volumen in dm³
D5: =(PI()/6)*(A5*A5)*B5/1000000 -> 0
D6: 0
D7: 0
D8: 0
D9: 0
D10: 0
D11: 0
D12: 0
D13: 0
D14: 0
D15: 0
D16: 0
D17: 0
D18: 0
D19: 0
D20: 0
D21: 0
D22: 0
D23: 0
D24: 0
D25: 0
D26: 0
D27: 0
D28: 0
D29: 0
D30: 0
D31: 0
D32: 0
D33: 0
D34: 0
D35: 0
D36: 0

Sheet Kugelsektor(-)
A1: Gesamtvolumen= | B1: =SUM(D5:D36) -> 0
A2: Volumentabelle (-):Durchmesser (d), Höhe (h),
A3: bei Kugelsektor in mm eingeben!
A4: d | B4: h | D4: Volumen in dm³
D5: =((PI()/6)*(A5*A5)*B5/1000000)-(2*((PI()/6)*(A5*A5)*B5/1000000)) -> 0
D6: 0
D7: 0
D8: 0
D9: 0
D10: 0
D11: 0
D12: 0
D13: 0
D14: 0
D15: 0
D16: 0
D17: 0
D18: 0
D19: 0
D20: 0
D21: 0
D22: 0
D23: 0
D24: 0
D25: 0
D26: 0
D27: 0
D28: 0
D29: 0
D30: 0
D31: 0
D32: 0
D33: 0
D34: 0
D35: 0
D36: 0

Sheet Kugelabschnitt +
A1: Gesamtvolumen= | C1: =SUM(D5:D36) -> 0
A2: Volumentabelle:Durchmesser (d1), Höhe (h), in mm eingeben!
A3: Heutiges Datum: | B3: =TODAY() -> 2016-12-21
A4: d1 | B4: h | D4: Volumen in dm³
D5: =((PI()*B5)/6)*(3*((A5/2)*(A5/2))+(B5*B5))/1000000 -> 0
D6: 0
D7: 0
D8: 0
D9: 0
D10: 0
D11: 0
D12: 0
D13: 0
D14: 0
D15: 0
D16: 0
D17: 0
D18: 0
D19: 0
D20: 0
D21: 0
D22: 0
D23: 0
D24: 0
D25: 0
D26: 0
D27: 0
D28: 0
D29: 0
D30: 0
D31: 0
D32: 0
D33: 0
D34: 0
D35: 0
D36: 0

Sheet Kugelabschnitt -
A1: Gesamtvolumen= | C1: =SUM(D5:D36) -> 0
A2: Volumentabelle:Durchmesser (d1), Höhe (h), in mm eingeben!
A3: Heutiges Datum: | B3: =TODAY() -> 2016-12-21
A4: d1 | B4: h | D4: Volumen in dm³
D5: =(((PI()*B5)/6)*(3*((A5/2)*(A5/2))+(B5*B5))/1000000)-(2*(((PI()*B5)/6)*(3*((A5/2)*(A5/2))+(B5*B5))/1000000)) -> 0
D6: 0
D7: 0
D8: 0
D9: 0
D10: 0
D11: 0
D12: 0
D13: 0
D14: 0
D15: 0
D16: 0
D17: 0
D18: 0
D19: 0
D20: 0
D21: 0
D22: 0
D23: 0
D24: 0
D25: 0
D26: 0
D27: 0
D28: 0
D29: 0
D30: 0
D31: 0
D32: 0
D33: 0
D34: 0
D35: 0
D36: 0

Sheet Zylinderabschnitt(+)
A1: Gesamtvolumen= | C1: =SUM(J6:J15) -> 0 | H1: Gewichttabelle Zylinderabschnitt (+)
A2: r = Radius | C2: a = Winkel | D2: F = Flächeninhalt gesamt | H2: V = Volumen Zylinderabschnitt in dm³
A3: h = Abschnitthöhe | C3: s = Seitenfläche | D3: F1 = Flächeninhalt Dreieck
A4: L= Abschnittlänge | C4: b = Bogenmaß | D4: F2 = Flächeninhalt Zylinderabschnitt (für Gewichtberechnung)
A5: r | B5: h | C5: L | D5: a | E5: s | F5: b | G5: F | H5: F1 | I5: F2 | J5: Volumen in dm³
A6: 1 | D6: =(ASIN(E6/(2*A6))*180/PI())*2 -> 0 | E6: =SQRT((A6-(B6/2))*8*B6) -> 0 | F6: =PI()*A6*D6/180 -> 0 | G6: =(A6*F6)/2 -> 0 | H6: =(A6-B6)*(E6/2) -> 0 | I6: =G6-H6 -> 0 | J6: =ROUND(I6*C6/1000000,6) -> 0
A7: 1 | D7: 0 | E7: 0 | F7: 0 | G7: 0 | H7: 0 | I7: 0 | J7: =ROUND(I7*C7/1000000,6) -> 0
A8: 1 | D8: 0 | E8: 0 | F8: 0 | G8: 0 | H8: 0 | I8: 0 | J8: 0
A9: 1 | D9: 0 | E9: 0 | F9: 0 | G9: 0 | H9: 0 | I9: 0 | J9: 0
A10: 1 | D10: 0 | E10: 0 | F10: 0 | G10: 0 | H10: 0 | I10: 0 | J10: 0
A11: 1 | D11: 0 | E11: 0 | F11: 0 | G11: 0 | H11: 0 | I11: 0 | J11: 0
A12: 1 | D12: 0 | E12: 0 | F12: 0 | G12: 0 | H12: 0 | I12: 0 | J12: 0
A13: 1 | D13: 0 | E13: 0 | F13: 0 | G13: 0 | H13: 0 | I13: 0 | J13: 0
A14: 1 | D14: 0 | E14: 0 | F14: 0 | G14: 0 | H14: 0 | I14: 0 | J14: 0
A15: 1 | D15: 0 | E15: 0 | F15: 0 | G15: 0 | H15: 0 | I15: 0 | J15: 0

Sheet Zylinderabschnitt(-)
A1: Gesamtvolumen= | C1: =SUM(J6:J15) -> 0 | H1: Gewichttabelle Zylinderabschnitt (-)
A2: r = Radius | C2: a = Winkel | D2: F = Flächeninhalt gesamt | H2: V = Volumen Zylinderabschnitt in dm³
A3: h = Abschnitthöhe | C3: s = Seitenfläche | D3: F1 = Flächeninhalt Dreieck
A4: L= Abschnittlänge | C4: b = Bogenmaß | D4: F2 = Flächeninhalt Zylinderabschnitt (für Gewichtberechnung)
A5: r | B5: h | C5: L | D5: a | E5: s | F5: b | G5: F | H5: F1 | I5: F2 | J5: Volumen in dm³
A6: 1 | D6: =(ASIN(E6/(2*A6))*180/PI())*2 -> 0 | E6: =SQRT((A6-(B6/2))*8*B6) -> 0 | F6: =PI()*A6*D6/180 -> 0 | G6: =(A6*F6)/2 -> 0 | H6: =(A6-B6)*(E6/2) -> 0 | I6: =G6-H6 -> 0 | J6: =ROUND((I6*C6/1000000)-(2*(I6*C6/1000000)),6) -> 0
A7: 1 | D7: 0 | E7: 0 | F7: 0 | G7: 0 | H7: 0 | I7: 0 | J7: =ROUND((I7*C7/1000000)-(2*(I7*C7/1000000)),6) -> 0
A8: 1 | D8: 0 | E8: 0 | F8: 0 | G8: 0 | H8: 0 | I8: 0 | J8: 0
A9: 1 | D9: 0 | E9: 0 | F9: 0 | G9: 0 | H9: 0 | I9: 0 | J9: 0
A10: 1 | D10: 0 | E10: 0 | F10: 0 | G10: 0 | H10: 0 | I10: 0 | J10: 0
A11: 1 | D11: 0 | E11: 0 | F11: 0 | G11: 0 | H11: 0 | I11: 0 | J11: 0
A12: 1 | D12: 0 | E12: 0 | F12: 0 | G12: 0 | H12: 0 | I12: 0 | J12: 0
A13: 1 | D13: 0 | E13: 0 | F13: 0 | G13: 0 | H13: 0 | I13: 0 | J13: 0
A14: 1 | D14: 0 | E14: 0 | F14: 0 | G14: 0 | H14: 0 | I14: 0 | J14: 0
A15: 1 | D15: 0 | E15: 0 | F15: 0 | G15: 0 | H15: 0 | I15: 0 | J15: 0

Sheet Prisma(+)
A1: Gesamtvolumen: | D1: =SUM(F5:F36) -> 0
A2: Seitenlängen (L1), (L2), (L3) und Höhe (h) in mm eingeben!
A4: L1 | B4: L2 | C4: L3 | D4: h | E4: Volumen in dm³
F5: =(0.25*(SQRT(((A5+B5+C5)*((A5+B5+C5)-2*A5)*((A5+B5+C5)-2*B5)*((A5+B5+C5)-2*C5))))*D5)/1000000 -> 0
F6: =(0.25*(SQRT(((A6+B6+C6)*((A6+B6+C6)-2*A6)*((A6+B6+C6)-2*B6)*((A6+B6+C6)-2*C6))))*D6)/1000000 -> 0
F7: 0
F8: 0
F9: 0
F10: 0
F11: 0
F12: 0
F13: 0
F14: 0
F15: 0
F16: 0
F17: 0
F18: 0
F19: 0
F20: 0
F21: 0
F22: 0
F23: 0
F24: 0
F25: 0
F26: 0
F27: 0
F28: 0
F29: 0
F30: 0
F31: 0
F32: 0
F33: 0
F34: 0
F35: 0
F36: 0

Sheet Prisma(-)
A1: Gesamtvolumen: | D1: =SUM(F5:F36) -> 0
A2: Seitenlängen (L1), (L2), (L3) und Höhe (h) in mm eingeben!
A4: L1 | B4: L2 | C4: L3 | D4: h | E4: Volumen in dm³
F5: =((0.25*(SQRT(((A5+B5+C5)*((A5+B5+C5)-2*A5)*((A5+B5+C5)-2*B5)*((A5+B5+C5)-2*C5))))*D5)/1000000)-(2*((0.25*(SQRT(((A5+B5+C5)*((A5+B5+C5)-2*A5)*((A5+B5+C5)-2*B5)*((A5+B5+C5)-2*C5))))*D5)/1000000)) -> 0
F6: =((0.25*(SQRT(((A6+B6+C6)*((A6+B6+C6)-2*A6)*((A6+B6+C6)-2*B6)*((A6+B6+C6)-2*C6))))*D6)/1000000)-(2*((0.25*(SQRT(((A6+B6+C6)*((A6+B6+C6)-2*A6)*((A6+B6+C6)-2*B6)*((A6+B6+C6)-2*C6))))*D6)/1000000)) -> 0
F7: 0
F8: 0
F9: 0
F10: 0
F11: 0
F12: 0
F13: 0
F14: 0
F15: 0
F16: 0
F17: 0
F18: 0
F19: 0
F20: 0
F21: 0
F22: 0
F23: 0
F24: 0
F25: 0
F26: 0
F27: 0
F28: 0
F29: 0
F30: 0
F31: 0
F32: 0
F33: 0
F34: 0
F35: 0
F36: 0

Sheet diverse Berechnungen
C1: diverse Berechnungen
C2: Polarkoordinaten | D2: Zeitspanvolumen Drehen | E2: Zeitspanvolumen Fräsen | F2: Längenveränderung
C3: Winkelumrechnung | D3: Bogenmaßberechnung | E3: tS + tA Berechnung aus tG | F3: Stückkostenberechnung
C4: Schneckengrundbreite | D4: Steigungswinkel | F4: Winkelumrechnung von (°), (`), (``) in Grad mit Dezimalstelle
C7: Polarkoordinatenberechnung für den 1. Quadranten bis 90°
C10: X-Maß | D10: Y-Maß | E10: Radius | F10: Winkel
C11: =(COS(F11*PI()/180)*E11) -> 0 | D11: =(SIN(F11*PI()/180)*E11) -> 0
C12: X-Maß | D12: Y-Maß | E12: Radius | F12: Winkel
E13: =SQRT((C13*C13)+(D13*D13)) -> 0 | F13: =IF(C13=0,0,ATAN(D13/C13)*180/PI()) -> 0
C14: X-Maß | D14: Y-Maß | E14: Radius | F14: Winkel
D15: =IF(E15=0,0,SQRT((E15*E15)-(C15*C15))) -> 0 | F15: =IF(C15=0,0,ATAN(D15/C15)*180/PI()) -> 0
C16: X-Maß | D16: Y-Maß | E16: Radius | F16: Winkel
C17: =SQRT((E17*E17)-(D17*D17)) -> 0 | F17: =IF(C17=0,0,ATAN(D17/C17)*180/PI()) -> 0
C18: X-Maß | D18: Y-Maß | E18: Radius | F18: Winkel
D19: =SQRT((E19*E19)-(C19*C19)) -> 0 | E19: =IF(C19=0,0,C19/(COS(F19*PI()/180))) -> 0
C20: X-Maß | D20: Y-Maß | E20: Radius | F20: Winkel
C21: =(COS(F21*PI()/180)*E21) -> 0 | E21: =IF(D21=0,0,D21/(SIN(F21*PI()/180))) -> 0
C24: Zeitspanungsvolumen Drehen
C26: Schnittgeschwindigkeit (m/min) | E26: 100 | F26: Bearbeitungsdauer in Min.
C27: Schnitttiefe in mm | E27: 1 | F27: =E29/((E27*E28*E26*1000)/1000000) -> 0
C28: Vorschub in mm pro Umdrehung | E28: 1
C29: Zerspanungsvolumen in Kubikdezimeter | E29: 0
C34: Zeitspanungsvolumen Fräsen
C36: Schnittbreite in mm | E36: 1 | F36: Bearbeitungsdauer in Min.
C37: Schnitttiefe in mm | E37: 1 | F37: =E39/((E37*E38*E36)/1000000) -> 0
C38: Vorschubgeschwindigkeit in mm pro Minute | E38: 1
C39: Zerspanungsvolumen in Kubikdezimeter | E39: 0
C45: Berechnung der Längenveränderung von Stoffen bei Temperaturschwankungen
C47: Stoff | D47: Länge/Dm in mm | E47: Temperaturdifferenz | F47: Längenunterschied
C48: Stahl, unlegiert | F48: =D48*0.000011*E48 -> 0
C49: Stahl, niedrichl. | F49: =D49*0.0000111*E49 -> 0
C50: Stahl, hochl. | F50: =D50*0.0000167*E50 -> 0
C51: Gusseisen | F51: =D51*0.0000105*E51 -> 0
C52: AL-Legierungen | F52: =D52*0.000023*E52 -> 0
C53: CuAl10Ni | F53: =D53*0.000016*E53 -> 0
C54: CuSn6 | F54: =D54*0.0000175*E54 -> 0
C55: CuZn30 | F55: =D55*0.0000185*E55 -> 0
C56: Berechnung mit bekantem Längenausdehnungskoeffizienten verschiedener Stoffe
C57: Ausdehnungskoeffizient | D57: Länge/Dm in mm | E57: Temperaturdifferenz | F57: Längenunterschied
F58: =C58*D58*E58 -> 0
C61: Winkelumrechnung im Teilkreis mit max. 20 Bohrungen
C63: Ausgangswinkel | D63: Fortschaltwinkel | E63: Zwischenrechnung | F63: Endwinkel
E64: =C64+D64 -> 0 | F64: =IF(E64>360,E64-360,E64) -> 0
E65: =C64+D65 -> 0 | F65: 0
E66: =C64+D66 -> 0 | F66: 0
E67: =C64+D67 -> 0 | F67: 0
E68: =C64+D68 -> 0 | F68: 0
E69: =C64+D69 -> 0 | F69: 0
E70: =C64+D70 -> 0 | F70: 0
E71: =C64+D71 -> 0 | F71: 0
E72: =C64+D72 -> 0 | F72: 0
E73: =C64+D73 -> 0 | F73: 0
E74: =C64+D74 -> 0 | F74: 0
E75: =C64+D75 -> 0 | F75: 0
E76: =C64+D76 -> 0 | F76: 0
E77: =C64+D77 -> 0 | F77: 0
E78: =C64+D78 -> 0 | F78: 0
E79: =C64+D79 -> 0 | F79: 0
E80: =C64+D80 -> 0 | F80: 0
E81: =C64+D81 -> 0 | F81: 0
E82: =C64+D82 -> 0 | F82: 0
E83: =C64+D83 -> 0 | F83: 0
E84: =C64+D84 -> 0 | F84: 0
C88: Bogenmaßberechnung
C90: Radius (r) eingeben | D90: Winkel (a) eingeben
C91: 50 | D91: 106.26
C92: Ergebnis (b) | D92: Ergebnis (s)
C93: =PI()*C91*D91/180 -> 92.72934316 | D93: =2*C91*SIN((D91*PI()/180)/2) -> 79.99989281
C94: Ergebnis (h) | D94: Ergebnis (F)
C95: =C91*(1-(COS((D91/2)*PI()/180))) -> 19.99992854 | D95: =C93*C91/2 -> 2318.233579
C105: Stückzeit und Rüstzeitberechnung aus Gesamtzeit von Position1 und Position 2
C108: Position 1 (kleine Stückzahl) | E108: Position 2 (große Stückzahl)
C109: Stückzahl | D109: Gesamtzeit | E109: Stückzahl | F109: Gesamtzeit
C110: 2 | D110: 25 | E110: 4 | F110: 45
D111: Stückzeit | E111: Rüstzeit
D112: =(F110-D110)/(-C110+E110) -> 10 | E112: =D110-(D112*C110) -> 5 | F112: =F110-(D112*E110) -> 5
C116: Stückkosten und Rüstkostenberechnung aus Gesamtpreis von Position1 und Position 2
C119: Position 1 (kleine Stückzahl) | E119: Position 2 (große Stückzahl)
C120: Stückzahl | D120: Gesamtkosten | E120: Stückzahl | F120: Gesamtkosten
C121: 2 | D121: 25 | E121: 4 | F121: 35
C122: Gesamtstückkosten | D122: Einzelkosten | F122: Gesamtstückkosten
C123: =D121/C121 -> 12.5 | D123: Stückkosten | E123: Rüstkosten | F123: =F121/E121 -> 8.75
D124: =(F121-D121)/(-C121+E121) -> 5 | E124: =D121-(D124*C121) -> 15 | F124: =F121-(D124*E121) -> 15
D125: Stück und Gesamtkostenberechnung bei X Stück
C126: Stückzahl | D126: Stückkosten | E126: Gesamtkosten
C127: 8 | D127: =(E124/C127)+D124 -> 6.875 | E127: =D127*C127 -> 55
C131: Winkelumrechnung von (°), (`), (``) in Grad mit Dezimalstelle
C133: Grad (°) | D133: Minuten (´) | E133: Sekunden (``) | F133: Dezimal (°)
C134: 9 | D134: 34 | E134: 42 | F134: =(((E134/60)+D134)/60)+C134 -> 9.578333333
C135: =TRUNC(F135) -> 9 | D135: =TRUNC(D136) -> 34 | E135: =(D136-D135)*60 -> 42.24 | F135: 9.5784
D136: =(F135-C135)*60 -> 34.704
C139: Berechnung kleinste/größte Schneckengrundbreite bei Duplexschnecken
C141: Messzahnbreite (P8) | D141: Zahnkreis-Ø (P7) | E141: Fußkreis-Ø (P4) | F141: Grundbreite am Messzahn
C142: 3.93 | D142: 32 | E142: 27 | F142: =((C144+D144)/2)-C142-(2*((TAN(C146*PI()/180)*((D142-E142)/2)))) -> 2.175148829
C143: Steigung groß (P6) | D143: Steigung klein (P5) | E143: Anzahl Steigungen (P11) | F143: Breite minimal
C144: 8 | D144: 7.85 | E144: 5 | F144: =F142-((C144-D144)*E144) -> 1.425148829
C145: Flankenwinkel (°) (P10) | F145: Breite maximal
C146: 20 | F146: =F142+((C144-D144)*E144) -> 2.925148829
B149: Berechnung Steigungswinkel für Schraubengewinde
C150: Steigung / P | D150: Nenn-Ø / d | E150: Flanken-Ø / d2 | F150: Abwicklung (d2)
C151: 1.5 | D151: 50 | E151: =D151-(0.6495*C151) -> 49.02575 | F151: =E151*PI() -> 154.018936
C152: Grad (°) | D152: Minuten (´) | E152: Sekunden (``) | F152: Dezimal (°)
C153: =TRUNC(F153) -> 0 | D153: =TRUNC(D154) -> 33 | E153: =(D154-D153)*60 -> 28.76227202 | F153: =ATAN(C151/F151)*180/PI() -> 0.55798952
D154: =(F153-C153)*60 -> 33.4793712

Sheet Flächen
A1: Strecken+Flächenberechnung
B9: Kreisabschnitt
B10: Eingabe (r + Winkel) | E10: Eingabe (b+Winkel) | H10: Eingabe (h + s) | K10: Eingabe (r + b)
B11: r | C11: a | E11: b | F11: a | H11: h | I11: s | K11: r | L11: b
B12: 50 | C12: 106.26 | E12: 62.83185 | F12: 60 | H12: 8.038476 | I12: 60 | K12: 60 | L12: 62.83185
B13: b = | C13: s = | E13: h = | F13: s = | H13: r = | I13: b = | K13: h = | L13: s =
B14: =PI()*B12*C12/180 -> 92.72934316 | C14: =2*B12*SIN((C12*PI()/180)/2) -> 79.99989281 | E14: =E16*(1-(COS((F12/2)*PI()/180))) -> 8.03847608 | F14: =2*E16*SIN((F12*PI()/180)/2) -> 60.00000229 | H14: =(H12/2)+((I12*I12)/(8*H12)) -> 59.99999853 | I14: =PI()*H14*H16/180 -> 62.83185323 | K14: =K12*(1-(COS((K16/2)*PI()/180))) -> 8.038475005 | L14: =2*K12*SIN((K16*PI()/180)/2) -> 59.99999734
B15: h = | C15: F = | E15: r = | F15: F = | H15: a= | I15: F = | K15: a= | L15: F =
B16: =B12*(1-(COS((C12/2)*PI()/180))) -> 19.99992854 | C16: =(B14*B12)/2 -> 2318.233579 | E16: =E12/(0.017453291*F12) -> 60.00000229 | F16: =(E12*E16)/2 -> 1884.955572 | H16: =(ASIN(I12/(2*H14))*180/PI())*2 -> 60.00000162 | I16: =I14*H14/2 -> 1884.955551 | K16: =(L12*180)/(PI()*K12) -> 59.99999707 | L16: =(L12*K12)/2 -> 1884.9555
B17: Eingabe (r + s) | K17: Eingabe (Winkel+s)
B18: r | C18: s | K18: a | L18: s
B19: 60 | C19: 60 | K19: 60 | L19: 60
B20: b = | C20: a= | K20: r = | L20: b =
B21: =PI()*B19*C21/180 -> 62.83185307 | C21: =(ASIN(C19/(2*B19))*180/PI())*2 -> 60 | K21: =L19/(2*(SIN((K19/2)*PI()/180))) -> 60 | L21: =PI()*K21*K19/180 -> 62.83185307
B22: h = | C22: F = | K22: h = | L22: F =
B23: =B19*(1-(COS((C21/2)*PI()/180))) -> 8.038475773 | C23: =(B21*B19)/2 -> 1884.955592 | K23: =K21*(1-(COS((K19/2)*PI()/180))) -> 8.038475773 | L23: =L21*K21/2 -> 1884.955592
B24: Eingabe (r+h)
B25: r | C25: h
B26: 212 | C26: 147
B27: a= | C27: s =
B28: =(ASIN(C28/(2*B26))*180/PI())*2 -> 144.2906464 | C28: =SQRT((B26-(C26/2))*8*C26) -> 403.5789886
B29: b = | C29: F =
B30: =PI()*B26*B28/180 -> 533.8895341 | C30: =(B26*B30)/2 -> 56592.29062
B31: F1 = | C31: F2 =
B32: =(B26-C26)*(C28/2) -> 13116.31713 | C32: =C30-B32 -> 43475.97349
B36: Ellipse | E36: Eingabe
C37: D | D37: d | E37: a | F37: b | G37: U | H37: F
C38: 100 | D38: 50
E39: Ergebnisse
C40: =C38 -> 100 | D40: =D38 -> 50 | E40: =C38/2 -> 50 | F40: =D38/2 -> 25 | G40: =(3*PI()/4)*(C38+D38)-(PI()/2)*SQRT(C38*D38) -> 242.3571001 | H40: =PI()*E40*F40 -> 3926.990817
B51: Kreis | E51: Eingabe
D52: d | E52: U | F52: F
D53: 0 | E53: 0 | F53: 0
E54: Ergebnis
D55: =E53/PI() -> 0 | E55: =PI()*D53 -> 0 | F55: =PI()*D53*D53/4 -> 0
D56: =SQRT(4*F53/PI()) -> 0 | E56: =PI()*D56 -> 0 | F56: =PI()*D55*D55/4 -> 0
B68: Kreisring | E68: Eingabe
D69: a | E69: d | F69: D | G69: F
E70: 90 | F70: 100
E71: Ergebnis
D72: =(F70-E70)/2 -> 5 | G72: =(PI()/4)*(SUMSQ(F70)-SUMSQ(E70)) -> 1492.25651
B87: Rechtwinkliges Dreieck
C88: Eingabe (a + b) | F88: Eingabe (a + c) | I88: Eingabe (b + c)
C89: a | D89: b | F89: a | G89: c | I89: b | J89: c
C90: 30 | D90: 60 | F90: 30 | G90: 67.08204 | I90: 60 | J90: 67.08204
C91: c = | D91: hc = | F91: b = | G91: hc = | I91: a = | J91: hc =
C92: =SQRT((C90*C90)+(D90*D90)) -> 67.08203932 | D92: =SQRT(C94*D94) -> 26.83281573 | F92: =SQRT((G90*G90)-(F90*F90)) -> 60.00000075 | G92: =SQRT(F94*G94) -> 26.8328158 | I92: =SQRT((J90*J90)-(I90*I90)) -> 30.00000151 | J92: =SQRT(I94*J94) -> 26.83281681
C93: q = | D93: p = | F93: p = | G93: q = | I93: p = | J93: q =
C94: =(D90*D90)/C92 -> 53.66563146 | D94: =(C90*C90)/C92 -> 13.41640786 | F94: =F90*F90/G90 -> 13.41640773 | G94: =F92*F92/G90 -> 53.66563227 | I94: =I92*I92/J90 -> 13.41640908 | J94: =I90*I90/J90 -> 53.66563092
C95: F = | F95: F = | I95: F =
C96: =(C90*D90)/2 -> 900 | F96: =F90*F92/2 -> 900.0000113 | I96: =I90*I92/2 -> 900.0000453
C97: Eingabe (c + p)
C98: c | D98: p
C99: 67.08204 | D99: 13.41641
C100: a = | D100: b =
C101: =SQRT(C99*D99) -> 30.00000254 | D101: =SQRT(C99*C103) -> 59.99999949
C102: q = | D102: hc =
C103: =C99-D99 -> 53.66563 | D103: =SQRT(D99*C103) -> 26.8328175
C104: F =
C105: =(C101*D101)/2 -> 900.0000684
C106: Eingabe (c + q)
C107: c | D107: q
C108: 67.08204 | D108: 53.66563
C109: a = | D109: b =
C110: =SQRT(C108*C112) -> 30.00000254 | D110: =SQRT(C108*D108) -> 59.99999949
C111: p = | D111: hc =
C112: =C108-D108 -> 13.41641 | D112: =SQRT(D108*C112) -> 26.8328175
C113: F =
C114: =(C110*D110)/2 -> 900.0000684
B136: Eingabe (Winkel A + Schenkel c) | E136: Eingabe (Winkel A + Schenkel b) | H136: Eingabe (Winkel A + Schenkel a) | K136: Eingabe (Schenkel c + Schenkel a)
B137: A | C137: c | E137: A | F137: b | H137: A | I137: a | K137: c | L137: a
B138: 55 | C138: 60 | E138: 20 | F138: 5.4 | H138: 55 | I138: 50 | K138: 60 | L138: 49.149
B139: B= | C139: b = | E139: B= | F139: a = | H139: B= | I139: b = | K139: B= | L139: A=
B140: =90-B138 -> 35 | C140: =COS(B138*PI()/180)*C138 -> 34.41458618 | E140: =90-E138 -> 70 | F140: =TAN(E138*PI()/180)*F138 -> 1.965439265 | H140: =90-H138 -> 35 | I140: =I138/TAN(H138*PI()/180) -> 35.01037691 | K140: =ACOS(L138/K138)*(180/PI()) -> 35.00020421 | L140: =ASIN(L138/K138)*(180/PI()) -> 54.99979579
B141: a = | C141: F = | E141: c = | F141: F = | H141: c = | I141: F = | K141: b= | L141: F =
B142: =SIN(B138*PI()/180)*C138 -> 49.14912266 | C142: =B142*C140/2 -> 845.7233587 | E142: =F138/COS(E138*PI()/180) -> 5.746559971 | F142: =F138*F140/2 -> 5.306686016 | H142: =I140/COS(H138*PI()/180) -> 61.03872944 | I142: =I138*I140/2 -> 875.2594228 | K142: =COS(L140*PI()/180)*K138 -> 34.41476135 | L142: =L138*K142/2 -> 845.7255529
B143: Eingabe (Winkel B + Schenkel c) | E143: Eingabe (Winkel B + Schenkel b) | H143: Eingabe (Winkel B + Schenkel a) | K143: Eingabe (Schenkel c + Schenkel b)
B144: B | C144: c | E144: B | F144: b | H144: B | I144: a | K144: c | L144: b
B145: 35 | C145: 60 | E145: 35 | F145: 34.415 | H145: 35 | I145: 49.149 | K145: 60 | L145: 34.415
B146: A= | C146: b = | E146: A= | F146: a = | H146: A= | I146: b = | K146: B= | L146: A=
B147: =90-B145 -> 55 | C147: =SIN(B145*PI()/180)*C145 -> 34.41458618 | E147: =90-E145 -> 55 | F147: =F145/(TAN(E145*PI()/180)) -> 49.14971365 | H147: =90-H145 -> 55 | I147: =TAN(H145*PI()/180)*I145 -> 34.4145003 | K147: =ASIN(L145/K145)*(180/PI()) -> 35.00048241 | L147: =ACOS(L145/K145)*(180/PI()) -> 54.99951759
B148: a = | C148: F = | E148: c = | F148: F = | H148: c = | I148: F = | K148: a = | L148: F =
B149: =COS(B145*PI()/180)*C145 -> 49.14912266 | C149: =B149*C147/2 -> 845.7233587 | E149: =F145/(SIN(E145*PI()/180)) -> 60.00072147 | F149: =F145*F147/2 -> 845.7436977 | H149: =I145/(COS(H145*PI()/180)) -> 59.99985026 | I149: =I145*I147/2 -> 845.7191375 | K149: =SIN(L147*PI()/180)*K145 -> 49.1488329 | L149: =K149*L145/2 -> 845.7285421
K150: Eingabe (Schenkel a + Schenkel b)
K151: a | L151: b
K152: 49.149 | L152: 34.415
K153: B= | L153: A=
K154: =ATAN(L152/K152)*(180/PI()) -> 35.00039088 | L154: =ATAN(K152/L152)*(180/PI()) -> 54.99960912
K155: c = | L155: F =
K156: =L152/(COS(L154*PI()/180)) -> 60.00013688 | L156: =K152*L152/2 -> 845.7314175
B159: Winkelfunktionen im schiefwinkligen Dreieck
B161: Sinussatz: | E161: Cosinussatz:
E162: a²=b²+c²-2b*c*COS Winkel A
E163: b²=a²+c²-2a*c*COS Winkel B
B164: a/sinA = b/sinB = c/sinC | E164: c²=a²+b²-2a*b*COS Winkel C
C166: gegeben | F166: gesucht
B167: Winkel A | C167: Winkel B | D167: a | E167: Winkel C | F167: b | G167: c
B168: 44.4153086 | C168: 57.1216504 | D168: 50 | E168: =180-(B168+C168) -> 78.463041 | F168: =(D168*SIN(C168*PI()/180))/SIN(B168*PI()/180) -> 59.99999997 | G168: =(D168*SIN(E168*PI()/180))/SIN(B168*PI()/180) -> 70
B169: Winkel A | C169: Winkel B | D169: c | E169: Winkel C | F169: a | G169: b
B170: 44.4153086 | C170: 57.1216504 | D170: 61.0387294 | E170: =180-(B170+C170) -> 78.463041 | F170: =(D170*SIN(B170*PI()/180))/SIN(E170*PI()/180) -> 43.59909243 | G170: =(D170*SIN(C170*PI()/180))/SIN(E170*PI()/180) -> 52.31891089
B171: Winkel A | C171: a | D171: b | E171: Winkel B | F171: Winkel C | G171: c
B172: 44.4153086 | C172: 50 | D172: 60 | E172: =ASIN(D172*(SIN(B172*PI()/180))/C172)*(180/PI()) -> 57.12165044 | F172: =180-(B172+E172) -> 78.46304096 | G172: =(C172*SIN(F172*PI()/180))/SIN(B172*PI()/180) -> 69.99999999
B173: Winkel A | C173: a | D173: c | E173: Winkel B | F173: Winkel C | G173: b
B174: 44.4153086 | C174: 50 | D174: 70 | E174: =180-(B174+F174) -> 57.12165042 | F174: =ASIN(D174*(SIN(B174*PI()/180))/C174)*(180/PI()) -> 78.46304098 | G174: =(D174*SIN(E174*PI()/180))/SIN(F174*PI()/180) -> 59.99999999
B175: Winkel A | C175: b | D175: c | E175: Winkel B | F175: Winkel C | G175: a
B176: 44.4153086 | C176: 60 | D176: 70 | E176: =ASIN(C176*(SIN(B176*PI()/180))/G176)*(180/PI()) -> 57.12165043 | F176: =180-(B176+E176) -> 78.46304097 | G176: =SQRT((C176*C176)+(D176*D176)-(2*C176*D176*COS(B176*PI()/180))) -> 50
B177: a | C177: b | D177: c | E177: Winkel A | F177: Winkel B | G177: Winkel C | I177: ARCCOC Winkel A =(b²+c²-a²)/(2b*c)
B178: 50 | C178: 60 | D178: 70 | E178: =ACOS(((C178*C178)+(D178*D178)-(B178*B178))/(2*C178*D178))*(180/PI()) -> 44.4153086 | F178: =ACOS(((B178*B178)+(D178*D178)-(C178*C178))/(2*B178*D178))*(180/PI()) -> 57.12165044 | G178: =180-(E178+F178) -> 78.46304097 | I178: ARCCOS Winkel B =(a²+c²-b²)/(2a*c)
I179: Winkel C = 180-(Winkel A+ Winkel B)

Sheet Umrechnungen
E1: Umrechnungen
B2: Winkelumrechnung in Dezimalstelle | E2: Längenmaße | F2: Massemaße | G2: Maße des Drucks | I2: Temperatur | J2: Flächenmaße | K2: Volumenmaße
B3: Geschwindigkeit
B7: Winkelumrechnung von (°), (`), (``) in Grad mit Dezimalstelle
B9: Grad (°) | C9: Minuten (´) | D9: Sekunden (``) | E9: Dezimal (°)
B10: 30 | C10: 15 | D10: 45 | E10: =(((D10/60)+C10)/60)+B10 -> 30.2625
B11: =TRUNC(E11) -> 30 | C11: =TRUNC(C12) -> 15 | D11: =(C12-C11)*60 -> 45 | E11: 30.2625
C12: =(E11-B11)*60 -> 15.75
B15: Längenmaße
B17: Einheit | C17: Millimeter | D17: Zentimeter | E17: Dezimeter | F17: Meter | G17: Kilometer | H17: Yard | I17: Zoll | J17: Inch | K17: Landmeile | L17: Seemeile | M17: Food
B18: Eingabe | C18: 0 | D18: 0 | E18: 0 | F18: 0 | G18: 0 | H18: 0 | I18: 0 | J18: 0 | K18: 0 | L18: 0 | M18: 0
B19: Millimeter | C19: =C18 -> 0 | D19: =D18*10 -> 0 | E19: =E18*100 -> 0 | F19: =F18*1000 -> 0 | G19: =G18*1000000 -> 0 | H19: =H18*914.39 -> 0 | I19: =I18*25.4 -> 0 | J19: =J18*25.4 -> 0 | K19: =K18*1609000 -> 0 | L19: =L18*1852000 -> 0 | M19: =M18*304.8 -> 0
B20: Zentimeter | C20: =C18/10 -> 0 | D20: =D18 -> 0 | E20: =E18*10 -> 0 | F20: =F18*100 -> 0 | G20: =G18*100000 -> 0 | H20: =H18*91.436 -> 0 | I20: =I18*2.54 -> 0 | J20: =J18*2.54 -> 0 | K20: =K18*160900 -> 0 | L20: =L18*185200 -> 0 | M20: =M18*30.48 -> 0
B21: Dezimeter | C21: =C18/100 -> 0 | D21: =D18/10 -> 0 | E21: =E18 -> 0 | F21: =F18*10 -> 0 | G21: =G18*10000 -> 0 | H21: =H18*9.1436 -> 0 | I21: =I18*0.254 -> 0 | J21: =J18*0.254 -> 0 | K21: =K18*16090 -> 0 | L21: =L18*18520 -> 0 | M21: =M18*3.048 -> 0
B22: Meter | C22: =C18/1000 -> 0 | D22: =D18/100 -> 0 | E22: =E18/10 -> 0 | F22: =F18 -> 0 | G22: =G18*1000 -> 0 | H22: =H18*0.91439 -> 0 | I22: =I18*0.0254 -> 0 | J22: =J18*0.0254 -> 0 | K22: =K18*1609 -> 0 | L22: =L18*1852 -> 0 | M22: =M18*0.3048 -> 0
B23: Kilometer | C23: =C18/1000000 -> 0 | D23: =D18/100000 -> 0 | E23: =E18/10000 -> 0 | F23: =F18/1000 -> 0 | G23: =G18 -> 0 | H23: =H18*0.00091439 -> 0 | I23: =I18*0.0000254 -> 0 | J23: =J18*0.0000254 -> 0 | K23: =K18*1.609 -> 0 | L23: =L18*1.852 -> 0 | M23: =M18*0.0003048 -> 0
B24: Yard | C24: =C18/914.39 -> 0 | D24: =D18/91.439 -> 0 | E24: =E18/9.1439 -> 0 | F24: =F18/0.91439 -> 0 | G24: =G18*1093.62525836897 -> 0 | H24: =H18 -> 0 | I24: =I18*0.027778081793 -> 0 | J24: =J18*0.027778081793 -> 0 | K24: =K18*1759.643 -> 0 | L24: =L18*2025.394 -> 0 | M24: =M18*0.333336977818 -> 0
B25: Zoll | C25: =C18/25.4 -> 0 | D25: =D18/2.54 -> 0 | E25: =E18/0.254 -> 0 | F25: =F18/0.0254 -> 0 | G25: =G18*39370.0787401575 -> 0 | H25: =H18*35.999606 -> 0 | I25: =I18 -> 0 | J25: =J18 -> 0 | K25: =K18*63346.457 -> 0 | L25: =L18*72913.386 -> 0 | M25: =M18*12 -> 0
B26: Inch | C26: =C18/25.4 -> 0 | D26: =D18/2.54 -> 0 | E26: =E18/0.254 -> 0 | F26: =F18/0.0254 -> 0 | G26: =G18*39370.0787401575 -> 0 | H26: =H18*35.999606 -> 0 | I26: =I18 -> 0 | J26: =J18 -> 0 | K26: =K18*63346.457 -> 0 | L26: =L18*72913.386 -> 0 | M26: =M18*12 -> 0
B27: Landmeile | C27: =C18/1609000 -> 0 | D27: =D18/160900 -> 0 | E27: =E18/16090 -> 0 | F27: =F18/1609 -> 0 | G27: =G18*0.621504039776 -> 0 | H27: =H18*0.000568297092 -> 0 | I27: =I18*0.000015786203 -> 0 | J27: =J18*0.000015786203 -> 0 | K27: =K18 -> 0 | L27: =L18*1.1510255 -> 0 | M27: =M18*0.000189434431 -> 0
B28: Seemeile | C28: =C18/1852000 -> 0 | D28: =D18/185200 -> 0 | E28: =E18/18520 -> 0 | F28: =F18/1852 -> 0 | G28: =G18*0.539956803456 -> 0 | H28: =H18*0.000493731096 -> 0 | I28: =I18*0.000013714903 -> 0 | J28: =J18*0.000013714903 -> 0 | K28: =K18*0.868790482922 -> 0 | L28: =L18 -> 0 | M28: =M18*0.000164578833 -> 0
B29: Food | C29: =C18/304.8 -> 0 | D29: =D18/30.48 -> 0 | E29: =E18/3.048 -> 0 | F29: =F18/0.3048 -> 0 | G29: =G18*3280.83989501312 -> 0 | H29: =H18*2.9999672 -> 0 | I29: =I18*0.083333333333 -> 0 | J29: =J18*0.083333333333 -> 0 | K29: =K18*5278.8714 -> 0 | L29: =L18*6076.1155 -> 0 | M29: =M18 -> 0
B33: Massenmaße
B35: Einheit | C35: Milligramm | D35: Gramm | E35: Kilogramm | F35: Megagramm | G35: Pfund | H35: Zentner | I35: Tonne | J35: Karat
B36: Eingabe | C36: 0 | D36: 0 | E36: 0 | F36: 0 | G36: 0 | H36: 0 | I36: 0 | J36: 0
B37: Milligramm | C37: =C36 -> 0 | D37: =D36*1000 -> 0 | E37: =E36*1000000 -> 0 | F37: =F36*1000000000 -> 0 | G37: =G36*500000 -> 0 | H37: =H36*50000000 -> 0 | I37: =I36*1000000000 -> 0 | J37: =J36*200 -> 0
B38: Gramm | C38: =C36*0.001 -> 0 | D38: =D36 -> 0 | E38: =E36*1000 -> 0 | F38: =F36*1000000 -> 0 | G38: =G36*500 -> 0 | H38: =H36*50000 -> 0 | I38: =I36*1000000 -> 0 | J38: =J36*0.2 -> 0
B39: Kilogramm | C39: =C36*0.000001 -> 0 | D39: =D36*0.001 -> 0 | E39: =E36 -> 0 | F39: =F36*1000 -> 0 | G39: =G36*0.5 -> 0 | H39: =H36*50 -> 0 | I39: =I36*1000 -> 0 | J39: =J36*0.0002 -> 0
B40: Megegramm | C40: =C36*0.000000001 -> 0 | D40: =D36*0.000001 -> 0 | E40: =E36*0.001 -> 0 | F40: =F36 -> 0 | G40: =G36*0.0005 -> 0 | H40: =H36*0.05 -> 0 | I40: =I36 -> 0 | J40: =J36*0.0000002 -> 0
B41: Pfund | C41: =C36*0.000002 -> 0 | D41: =D36*0.002 -> 0 | E41: =E36*2 -> 0 | F41: =F36*2000 -> 0 | G41: =G36 -> 0 | H41: =H36*100 -> 0 | I41: =I36*2000 -> 0 | J41: =J36*0.0004 -> 0
B42: Zentner | C42: =C36*0.00000002 -> 0 | D42: =D36*0.00002 -> 0 | E42: =E36*0.02 -> 0 | F42: =F36*20 -> 0 | G42: =G36*0.01 -> 0 | H42: =H36 -> 0 | I42: =I36*20 -> 0 | J42: =J36*0.000004 -> 0
B43: Tonne | C43: =C36*0.000000001 -> 0 | D43: =D36*0.000001 -> 0 | E43: =E36*0.001 -> 0 | F43: =F36*1 -> 0 | G43: =G36*0.0005 -> 0 | H43: =H36*0.05 -> 0 | I43: =I36*1 -> 0 | J43: =J36*0.0000002 -> 0
B44: Karat | C44: =C36*0.005 -> 0 | D44: =D36*5 -> 0 | E44: =E36*5000 -> 0 | F44: =F36*5000000 -> 0 | G44: =G36*2500 -> 0 | H44: =H36*250000 -> 0 | I44: =I36*5000000 -> 0 | J44: =J36 -> 0
B48: Maße des Drucks
B50: Einheit | C50: Millibar | D50: Bar | E50: Pascall | F50: Megapascall | G50: Hektopascall | H50: Newton/mm^2 | I50: Newton/cm^2 | J50: Newton/m^2
B51: Eingabe | C51: 0 | D51: 0 | E51: 0 | F51: 0 | G51: 0 | H51: 0 | I51: 0 | J51: 0
B52: Millibar | C52: =C51 -> 0 | D52: =D51*1000 -> 0 | E52: =E51*0.01 -> 0 | F52: =F51*10000 -> 0 | G52: =G51*1 -> 0 | H52: =H51*10000 -> 0 | I52: =I51*100 -> 0 | J52: =J51*0.01 -> 0
B53: Bar | C53: =C51*0.001 -> 0 | D53: =D51 -> 0 | E53: =E51*0.00001 -> 0 | F53: =F51*10 -> 0 | G53: =G51*0.001 -> 0 | H53: =H51*10 -> 0 | I53: =I51*0.1 -> 0 | J53: =J51*0.00001 -> 0
B54: Pascall | C54: =C51*100 -> 0 | D54: =D51*100000 -> 0 | E54: =E51 -> 0 | F54: =F51*1000000 -> 0 | G54: =G51*100 -> 0 | H54: =H51*1000000 -> 0 | I54: =I51*10000 -> 0 | J54: =J51*1 -> 0
B55: Megapascall | C55: =C51*0.0001 -> 0 | D55: =D51*0.1 -> 0 | E55: =E51*0.000001 -> 0 | F55: =F51 -> 0 | G55: =G51*0.0001 -> 0 | H55: =H51*1 -> 0 | I55: =I51*0.01 -> 0 | J55: =J51*0.000001 -> 0
B56: Hektopascall | C56: =C51*1 -> 0 | D56: =D51*1000 -> 0 | E56: =E51*0.01 -> 0 | F56: =F51*10000 -> 0 | G56: =G51 -> 0 | H56: =H51*10000 -> 0 | I56: =I51*100 -> 0 | J56: =J51*0.01 -> 0
B57: Newton/mm2 | C57: =C51*0.0001 -> 0 | D57: =D51*0.1 -> 0 | E57: =E51*0.000001 -> 0 | F57: =F51*1 -> 0 | G57: =G51*0.0001 -> 0 | H57: =H51 -> 0 | I57: =I51*0.01 -> 0 | J57: =J51*0.000001 -> 0
B58: Newton/cm2 | C58: =C51*0.01 -> 0 | D58: =D51*10 -> 0 | E58: =E51*0.0001 -> 0 | F58: =F51*100 -> 0 | G58: =G51*0.01 -> 0 | H58: =H51*100 -> 0 | I58: =I51 -> 0 | J58: =J51*0.0001 -> 0
B59: Newton/m2 | C59: =C51*100 -> 0 | D59: =D51*100000 -> 0 | E59: =E51*1 -> 0 | F59: =F51*1000000 -> 0 | G59: =G51*100 -> 0 | H59: =H51*1000000 -> 0 | I59: =I51*10000 -> 0 | J59: =J51 -> 0
B63: Temperatur | D63: (Hinweis: Δ1°C = 1,8° F)
B65: Einheit | C65: Celsius | D65: Fahrenheit | E65: Kelvin
B66: Eingabe | C66: 0 | D66: 32 | E66: 273
B67: Celsius | C67: =C66 -> 0 | D67: =(5/9)*(D66-32) -> 0 | E67: =E66-273 -> 0
B68: Fahrenheit | C68: =((9/5)*C66)+32 -> 32 | D68: =D66 -> 32 | E68: =((9/5)*E67)+32 -> 32
B69: Kelvin | C69: =C66+273 -> 273 | D69: =D67+273 -> 273 | E69: =E66 -> 273
B73: Flächenmaße
B75: Einheit | C75: mm² | D75: cm² | E75: dm² | F75: m² | G75: km² | H75: Ar | I75: Hektar
B76: Eingabe | C76: 0 | D76: 0 | E76: 0 | F76: 0 | G76: 0 | H76: 0 | I76: 0
B77: mm² | C77: =C76 -> 0 | D77: =D76*100 -> 0 | E77: =E76*10000 -> 0 | F77: =F76*1000000 -> 0 | G77: =G76*1000000000000 -> 0 | H77: =H76*100000000 -> 0 | I77: =I76*10000000000 -> 0
B78: cm² | C78: =C76*0.01 -> 0 | D78: =D76 -> 0 | E78: =E76*100 -> 0 | F78: =F76*10000 -> 0 | G78: =G76*10000000000 -> 0 | H78: =H76*1000000 -> 0 | I78: =I76*100000000 -> 0
B79: dm² | C79: =C76*0.0001 -> 0 | D79: =D76*0.01 -> 0 | E79: =E76 -> 0 | F79: =F76*100 -> 0 | G79: =G76*100000000 -> 0 | H79: =H76*10000 -> 0 | I79: =I76*1000000 -> 0
B80: m² | C80: =C76*0.000001 -> 0 | D80: =D76*0.0001 -> 0 | E80: =E76*0.01 -> 0 | F80: =F76 -> 0 | G80: =G76*1000000 -> 0 | H80: =H76*100 -> 0 | I80: =I76*10000 -> 0
B81: km² | C81: =C76*0.000000000001 -> 0 | D81: =D76*0.0000000001 -> 0 | E81: =E76*0.00000001 -> 0 | F81: =F76*0.000001 -> 0 | G81: =G76 -> 0 | H81: =H76/10000 -> 0 | I81: =I76*0.01 -> 0
B82: Ar | C82: =C76*0.00000001 -> 0 | D82: =D76*0.000001 -> 0 | E82: =E76*0.0001 -> 0 | F82: =F76*0.01 -> 0 | G82: =G76*10000 -> 0 | H82: =H76 -> 0 | I82: =I76*100 -> 0
B83: Hektar | C83: =C76*0.0000000001 -> 0 | D83: =D76*0.00000001 -> 0 | E83: =E76*0.000001 -> 0 | F83: =F76*0.0001 -> 0 | G83: =G76*100 -> 0 | H83: =H76*0.01 -> 0 | I83: =I76 -> 0
B87: Volumenmaße
B89: Einheit | C89: mm³ | D89: cm³ | E89: dm³ | F89: m³ | G89: Milliliter | H89: Liter | I89: Hektoliter
B90: Eingabe | C90: 0 | D90: 0 | E90: 0 | F90: 0 | G90: 0 | H90: 0 | I90: 0
B91: mm³ | C91: =C90 -> 0 | D91: =D90*1000 -> 0 | E91: =E90*1000000 -> 0 | F91: =F90*1000000000 -> 0 | G91: =G90*1000 -> 0 | H91: =H90*1000000 -> 0 | I91: =I90*100000000 -> 0
B92: cm³ | C92: =C90*0.001 -> 0 | D92: =D90 -> 0 | E92: =E90*1000 -> 0 | F92: =F90*1000000 -> 0 | G92: =G90*1 -> 0 | H92: =H90*1000 -> 0 | I92: =I90*100000 -> 0
B93: dm³ | C93: =C90*0.000001 -> 0 | D93: =D90*0.001 -> 0 | E93: =E90 -> 0 | F93: =F90*1000 -> 0 | G93: =G90*0.001 -> 0 | H93: =H90*1 -> 0 | I93: =I90*100 -> 0
B94: m³ | C94: =C90*0.000000001 -> 0 | D94: =D90*0.000001 -> 0 | E94: =E90*0.001 -> 0 | F94: =F90 -> 0 | G94: =G90*0.000001 -> 0 | H94: =H90*0.001 -> 0 | I94: =I90*0.1 -> 0
B95: Milliliter | C95: =C90*0.001 -> 0 | D95: =D90 -> 0 | E95: =E90*1000 -> 0 | F95: =F90*1000000 -> 0 | G95: =G90 -> 0 | H95: =H90*1000 -> 0 | I95: =I90*100000 -> 0
B96: Liter | C96: =C90*0.000001 -> 0 | D96: =D90*0.001 -> 0 | E96: =E90 -> 0 | F96: =F90*1000 -> 0 | G96: =G90*0.001 -> 0 | H96: =H90 -> 0 | I96: =I90*100 -> 0
B97: Hektoliter | C97: =C90*0.000000001 -> 0 | D97: =D90*0.00001 -> 0 | E97: =E90*0.01 -> 0 | F97: =F90*10 -> 0 | G97: =G90*0.00001 -> 0 | H97: =H90*0.1 -> 0 | I97: =I90 -> 0
B101: Geschwindigkeit
B103: Einheit | C103: m/s | D103: m/min | E103: km/h | F103: Lichtgeschw. | G103: Schallg.(15°C) | H103: Schallg.(0°C) | I103: Mach(15°C)
B104: Eingabe | C104: 0 | D104: 0 | E104: 0 | F104: 0 | G104: 0 | H104: 0 | I104: 0
B105: m/s | C105: =C104 -> 0 | D105: =D104*0.016666666667 -> 0 | E105: =E104*0.277777777778 -> 0 | F105: =F104*300000000 -> 0 | G105: =G104*340.6 -> 0 | H105: =H104*331.6 -> 0 | I105: =I104*341.6666 -> 0
B106: m/min | C106: =C104*60 -> 0 | D106: =D104 -> 0 | E106: =E104*16.666666666667 -> 0 | F106: =F104*18000000000 -> 0 | G106: =G104*20436 -> 0 | H106: =H104*19896 -> 0 | I106: =I104*20499.996 -> 0
B107: km/h | C107: =C104*3.6 -> 0 | D107: =D104*0.06 -> 0 | E107: =E104 -> 0 | F107: =F104*1080000000 -> 0 | G107: =G104*1226.16 -> 0 | H107: =H104*1193.76 -> 0 | I107: =I104*1229.99976 -> 0
B108: Lichtgeschw. | C108: =C104*0.000000003333 -> 0 | D108: =D104*0.000000000056 -> 0 | E108: =E104*0.000000000926 -> 0 | F108: =F104 -> 0 | G108: =G104*0.000001135333 -> 0 | H108: =H104*0.000001105333 -> 0 | I108: =I104*0.000001138889 -> 0
B109: Schallg.(15°C) | C109: =C104*0.002935995302 -> 0 | D109: =D104*0.000048933255 -> 0 | E109: =E104*0.000815554251 -> 0 | F109: =F104*880798.590722255 -> 0 | G109: =G104 -> 0 | H109: =H104*0.973576042278 -> 0 | I109: =I104*1.00313153259 -> 0
B110: Schallg.(0°C) | C110: =C104*0.003015681544 -> 0 | D110: =D104*0.000050261359 -> 0 | E110: =E104*0.000837689318 -> 0 | F110: =F104*904704.463208685 -> 0 | G110: =G104*1.027141133896 -> 0 | H110: =H104 -> 0 | I110: =I104*1.030357659831 -> 0
B111: Mach(15°C) | C111: =C104*0.002926829839 -> 0 | D111: =D104*0.000048780479 -> 0 | E111: =E104*0.000813008289 -> 0 | F111: =F104*878048.95181443 -> 0 | G111: =G104*0.996878243293 -> 0 | H111: =H104*0.970536774739 -> 0 | I111: =I104 -> 0

Sheet Rechner
D1: =NOW() -> 2016-12-21T14:11:15.240
D2: 0
D6: 0
D7: 0
D8: 0 | E8: 0

Sheet Pfad für Ordner
D1: Druckausgabe | E1: =Start!E1 -> 1 | P1: Druckausgabe | Q1: 1
B2: Pfadeingabe für Ordner Hauptnutzungszeit | D2: =Druckausgabe!A3 -> Teile-Nr.: | E2: =IF(Druckausgabe!B3=0,"",Druckausgabe!B3) ->  | P2: Teile-Nr.: | Q2: ZSB_002
D3: =Druckausgabe!A4 -> Teilebezeichnung: | E3: =Druckausgabe!B4 -> 0 | P3: Teilebezeichnung: | Q3: Kalotte
B4: Automatische Pfadübernahme | D4: =Druckausgabe!A5 -> Material: | E4: =Druckausgabe!B5 -> 0 | P4: Material: | Q4: St37
B5: z.B. C:\Dokumente und Einstellungen\Benutzer\Mustermann\Excel_Dateien\ | D5: =Druckausgabe!A6 -> für Firma: | E5: =Druckausgabe!B6 -> 0 | P5: für Firma: | Q5: ZSB Zwickauer Sonderstahlbau GmbH
B6: Die Datei Hauptnutzungszeit.xlsm muss im Ordner Hauptnutzungszeit gespeichert sein ! | D6: =Druckausgabe!A7 -> Anfrage-Nr.: | E6: =Druckausgabe!B7 -> 0 | P6: Anfrage-Nr.: | Q6: 0
B7: =CELL("dateiname") -> C:\Uli\Excel-Dateien\ULDA-Tabellen\Erweiterungen\Hauptnutzungszeit\[Hauptnutzungszeit.xlsm]Werkzeugdaten | D7: =Druckausgabe!A8 -> Angebots-Nr.: | E7: =Druckausgabe!B8 -> 0 | P7: Angebots-Nr.: | Q7: 16D0030
B8: =IF(B13=0,LEFT(B7,SEARCH("[",B7,1)-1),B13) -> dd | D8: =Druckausgabe!A9 -> 0 | E8: =Druckausgabe!B9 -> 0 | P8: 0 | Q8: 0
B9: =MID(B8,1,1) -> d | D9: =Druckausgabe!A10 -> Hinweis für die Berechnung: | E9: =Druckausgabe!B10 -> 0 | P9: Hinweis für die Berechnung: | Q9: 0
D10: =Druckausgabe!A11 -> 0 | E10: =Druckausgabe!B11 -> 0 | P10: 0 | Q10: 0
D11: =Druckausgabe!A12 -> 0 | E11: =Druckausgabe!B12 -> 0 | P11: 0 | Q11: 0
B12: Dateipfad bis zum Ordner Hauptnutzungszeit hier eingeben, wenn Hauptnutzungszeit.xlsm außerhalb von Ordner Hauptnutzungszeit gespeichert ist! | D12: =Druckausgabe!A13 -> 0 | E12: =Druckausgabe!B13 -> 0 | P12: 0 | Q12: 0
B13: dd
D15: Start | P15: Start
D16: =Start!A3 -> 30 | P16: 30
D17: =Start!A5 -> 70 | P17: 75.11
D20: diverse Arbeiten | P20: diverse Arbeiten
D21: ='diverse Arbeiten'!A4 -> 0 | E21: ='diverse Arbeiten'!B4 -> 0 | F21: ='diverse Arbeiten'!C4 -> 0 | G21: ='diverse Arbeiten'!D4 -> 0 | P21: AG1 | Q21: aufspannen, umspannen für 2. Sp., abspannen | R21: 1 | S21: 15
D22: ='diverse Arbeiten'!A5 -> 0 | E22: ='diverse Arbeiten'!B5 -> 0 | F22: ='diverse Arbeiten'!C5 -> 0 | G22: ='diverse Arbeiten'!D5 -> 0 | P22: 0 | Q22: 0 | R22: 0 | S22: 0
D23: ='diverse Arbeiten'!A6 -> 0 | E23: ='diverse Arbeiten'!B6 -> 0 | F23: ='diverse Arbeiten'!C6 -> 0 | G23: ='diverse Arbeiten'!D6 -> 0 | P23: 0 | Q23: 0 | R23: 0 | S23: 0
D24: ='diverse Arbeiten'!A7 -> 0 | E24: ='diverse Arbeiten'!B7 -> 0 | F24: ='diverse Arbeiten'!C7 -> 0 | G24: ='diverse Arbeiten'!D7 -> 0 | P24: 0 | Q24: 0 | R24: 0 | S24: 0
D25: ='diverse Arbeiten'!A8 -> 0 | E25: ='diverse Arbeiten'!B8 -> 0 | F25: ='diverse Arbeiten'!C8 -> 0 | G25: ='diverse Arbeiten'!D8 -> 0 | P25: 0 | Q25: 0 | R25: 0 | S25: 0
D26: ='diverse Arbeiten'!A9 -> 0 | E26: ='diverse Arbeiten'!B9 -> 0 | F26: ='diverse Arbeiten'!C9 -> 0 | G26: ='diverse Arbeiten'!D9 -> 0 | P26: 0 | Q26: 0 | R26: 0 | S26: 0
D27: ='diverse Arbeiten'!A10 -> 0 | E27: ='diverse Arbeiten'!B10 -> 0 | F27: ='diverse Arbeiten'!C10 -> 0 | G27: ='diverse Arbeiten'!D10 -> 0 | P27: 0 | Q27: 0 | R27: 0 | S27: 0
D28: ='diverse Arbeiten'!A11 -> 0 | E28: ='diverse Arbeiten'!B11 -> 0 | F28: ='diverse Arbeiten'!C11 -> 0 | G28: ='diverse Arbeiten'!D11 -> 0 | P28: 0 | Q28: 0 | R28: 0 | S28: 0
D29: ='diverse Arbeiten'!A12 -> 0 | E29: ='diverse Arbeiten'!B12 -> 0 | F29: ='diverse Arbeiten'!C12 -> 0 | G29: ='diverse Arbeiten'!D12 -> 0 | P29: 0 | Q29: 0 | R29: 0 | S29: 0
D30: ='diverse Arbeiten'!A13 -> 0 | E30: ='diverse Arbeiten'!B13 -> 0 | F30: ='diverse Arbeiten'!C13 -> 0 | G30: ='diverse Arbeiten'!D13 -> 0 | P30: 0 | Q30: 0 | R30: 0 | S30: 0
D31: ='diverse Arbeiten'!A14 -> 0 | E31: ='diverse Arbeiten'!B14 -> 0 | F31: ='diverse Arbeiten'!C14 -> 0 | G31: ='diverse Arbeiten'!D14 -> 0 | P31: 0 | Q31: 0 | R31: 0 | S31: 0
D32: ='diverse Arbeiten'!A15 -> 0 | E32: ='diverse Arbeiten'!B15 -> 0 | F32: ='diverse Arbeiten'!C15 -> 0 | G32: ='diverse Arbeiten'!D15 -> 0 | P32: 0 | Q32: 0 | R32: 0 | S32: 0
D33: ='diverse Arbeiten'!A16 -> 0 | E33: ='diverse Arbeiten'!B16 -> 0 | F33: ='diverse Arbeiten'!C16 -> 0 | G33: ='diverse Arbeiten'!D16 -> 0 | P33: 0 | Q33: 0 | R33: 0 | S33: 0
D34: ='diverse Arbeiten'!A17 -> 0 | E34: ='diverse Arbeiten'!B17 -> 0 | F34: ='diverse Arbeiten'!C17 -> 0 | G34: ='diverse Arbeiten'!D17 -> 0 | P34: 0 | Q34: 0 | R34: 0 | S34: 0
D35: ='diverse Arbeiten'!A18 -> 0 | E35: ='diverse Arbeiten'!B18 -> 0 | F35: ='diverse Arbeiten'!C18 -> 0 | G35: ='diverse Arbeiten'!D18 -> 0 | P35: 0 | Q35: 0 | R35: 0 | S35: 0
D36: ='diverse Arbeiten'!A19 -> 0 | E36: ='diverse Arbeiten'!B19 -> 0 | F36: ='diverse Arbeiten'!C19 -> 0 | G36: ='diverse Arbeiten'!D19 -> 0 | P36: 0 | Q36: 0 | R36: 0 | S36: 0
D37: ='diverse Arbeiten'!A20 -> 0 | E37: ='diverse Arbeiten'!B20 -> 0 | F37: ='diverse Arbeiten'!C20 -> 0 | G37: ='diverse Arbeiten'!D20 -> 0 | P37: 0 | Q37: 0 | R37: 0 | S37: 0
D38: ='diverse Arbeiten'!A21 -> 0 | E38: ='diverse Arbeiten'!B21 -> 0 | F38: ='diverse Arbeiten'!C21 -> 0 | G38: ='diverse Arbeiten'!D21 -> 0 | P38: 0 | Q38: 0 | R38: 0 | S38: 0
D39: ='diverse Arbeiten'!A22 -> 0 | E39: ='diverse Arbeiten'!B22 -> 0 | F39: ='diverse Arbeiten'!C22 -> 0 | G39: ='diverse Arbeiten'!D22 -> 0 | P39: 0 | Q39: 0 | R39: 0 | S39: 0
D40: ='diverse Arbeiten'!A23 -> 0 | E40: ='diverse Arbeiten'!B23 -> 0 | F40: ='diverse Arbeiten'!C23 -> 0 | G40: ='diverse Arbeiten'!D23 -> 0 | P40: 0 | Q40: 0 | R40: 0 | S40: 0
D41: ='diverse Arbeiten'!A24 -> 0 | E41: ='diverse Arbeiten'!B24 -> 0 | F41: ='diverse Arbeiten'!C24 -> 0 | G41: ='diverse Arbeiten'!D24 -> 0 | P41: 0 | Q41: 0 | R41: 0 | S41: 0
D42: ='diverse Arbeiten'!A25 -> 0 | E42: ='diverse Arbeiten'!B25 -> 0 | F42: ='diverse Arbeiten'!C25 -> 0 | G42: ='diverse Arbeiten'!D25 -> 0 | P42: 0 | Q42: 0 | R42: 0 | S42: 0
D43: ='diverse Arbeiten'!A26 -> 0 | E43: ='diverse Arbeiten'!B26 -> 0 | F43: ='diverse Arbeiten'!C26 -> 0 | G43: ='diverse Arbeiten'!D26 -> 0 | P43: 0 | Q43: 0 | R43: 0 | S43: 0
D44: ='diverse Arbeiten'!A27 -> 0 | E44: ='diverse Arbeiten'!B27 -> 0 | F44: ='diverse Arbeiten'!C27 -> 0 | G44: ='diverse Arbeiten'!D27 -> 0 | P44: 0 | Q44: 0 | R44: 0 | S44: 0
D45: ='diverse Arbeiten'!A28 -> 0 | E45: ='diverse Arbeiten'!B28 -> 0 | F45: ='diverse Arbeiten'!C28 -> 0 | G45: ='diverse Arbeiten'!D28 -> 0 | P45: 0 | Q45: 0 | R45: 0 | S45: 0
D46: ='diverse Arbeiten'!A29 -> 0 | E46: ='diverse Arbeiten'!B29 -> 0 | F46: ='diverse Arbeiten'!C29 -> 0 | G46: ='diverse Arbeiten'!D29 -> 0 | P46: 0 | Q46: 0 | R46: 0 | S46: 0
D47: ='diverse Arbeiten'!A30 -> 0 | E47: ='diverse Arbeiten'!B30 -> 0 | F47: ='diverse Arbeiten'!C30 -> 0 | G47: ='diverse Arbeiten'!D30 -> 0 | P47: 0 | Q47: 0 | R47: 0 | S47: 0
D48: ='diverse Arbeiten'!A31 -> 0 | E48: ='diverse Arbeiten'!B31 -> 0 | F48: ='diverse Arbeiten'!C31 -> 0 | G48: ='diverse Arbeiten'!D31 -> 0 | P48: 0 | Q48: 0 | R48: 0 | S48: 0
D49: ='diverse Arbeiten'!A32 -> 0 | E49: ='diverse Arbeiten'!B32 -> 0 | F49: ='diverse Arbeiten'!C32 -> 0 | G49: ='diverse Arbeiten'!D32 -> 0 | P49: 0 | Q49: 0 | R49: 0 | S49: 0
D50: ='diverse Arbeiten'!A33 -> 0 | E50: ='diverse Arbeiten'!B33 -> 0 | F50: ='diverse Arbeiten'!C33 -> 0 | G50: ='diverse Arbeiten'!D33 -> 0 | P50: 0 | Q50: 0 | R50: 0 | S50: 0
D51: ='diverse Arbeiten'!A34 -> 0 | E51: ='diverse Arbeiten'!B34 -> 0 | F51: ='diverse Arbeiten'!C34 -> 0 | G51: ='diverse Arbeiten'!D34 -> 0 | P51: 0 | Q51: 0 | R51: 0 | S51: 0
D52: ='diverse Arbeiten'!A35 -> 0 | E52: ='diverse Arbeiten'!B35 -> 0 | F52: ='diverse Arbeiten'!C35 -> 0 | G52: ='diverse Arbeiten'!D35 -> 0 | P52: 0 | Q52: 0 | R52: 0 | S52: 0
D53: ='diverse Arbeiten'!A36 -> 0 | E53: ='diverse Arbeiten'!B36 -> 0 | F53: ='diverse Arbeiten'!C36 -> 0 | G53: ='diverse Arbeiten'!D36 -> 0 | P53: 0 | Q53: 0 | R53: 0 | S53: 0
D54: ='diverse Arbeiten'!A37 -> 0 | E54: ='diverse Arbeiten'!B37 -> 0 | F54: ='diverse Arbeiten'!C37 -> 0 | G54: ='diverse Arbeiten'!D37 -> 0 | P54: 0 | Q54: 0 | R54: 0 | S54: 0
D55: ='diverse Arbeiten'!A38 -> 0 | E55: ='diverse Arbeiten'!B38 -> 0 | F55: ='diverse Arbeiten'!C38 -> 0 | G55: ='diverse Arbeiten'!D38 -> 0 | P55: 0 | Q55: 0 | R55: 0 | S55: 0
D56: ='diverse Arbeiten'!A39 -> 0 | E56: ='diverse Arbeiten'!B39 -> 0 | F56: ='diverse Arbeiten'!C39 -> 0 | G56: ='diverse Arbeiten'!D39 -> 0 | P56: 0 | Q56: 0 | R56: 0 | S56: 0
D57: ='diverse Arbeiten'!A40 -> 0 | E57: ='diverse Arbeiten'!B40 -> 0 | F57: ='diverse Arbeiten'!C40 -> 0 | G57: ='diverse Arbeiten'!D40 -> 0 | P57: 0 | Q57: 0 | R57: 0 | S57: 0
D58: ='diverse Arbeiten'!A41 -> 0 | E58: ='diverse Arbeiten'!B41 -> 0 | F58: ='diverse Arbeiten'!C41 -> 0 | G58: ='diverse Arbeiten'!D41 -> 0 | P58: 0 | Q58: 0 | R58: 0 | S58: 0
D59: ='diverse Arbeiten'!A42 -> 0 | E59: ='diverse Arbeiten'!B42 -> 0 | F59: ='diverse Arbeiten'!C42 -> 0 | G59: ='diverse Arbeiten'!D42 -> 0 | P59: 0 | Q59: 0 | R59: 0 | S59: 0
D60: ='diverse Arbeiten'!A43 -> 0 | E60: ='diverse Arbeiten'!B43 -> 0 | F60: ='diverse Arbeiten'!C43 -> 0 | G60: ='diverse Arbeiten'!D43 -> 0 | P60: 0 | Q60: 0 | R60: 0 | S60: 0
D61: ='diverse Arbeiten'!A44 -> 0 | E61: ='diverse Arbeiten'!B44 -> 0 | F61: ='diverse Arbeiten'!C44 -> 0 | G61: ='diverse Arbeiten'!D44 -> 0 | P61: 0 | Q61: 0 | R61: 0 | S61: 0
D62: ='diverse Arbeiten'!A45 -> 0 | E62: ='diverse Arbeiten'!B45 -> 0 | F62: ='diverse Arbeiten'!C45 -> 0 | G62: ='diverse Arbeiten'!D45 -> 0 | P62: 0 | Q62: 0 | R62: 0 | S62: 0
D63: ='diverse Arbeiten'!A46 -> 0 | E63: ='diverse Arbeiten'!B46 -> 0 | F63: ='diverse Arbeiten'!C46 -> 0 | G63: ='diverse Arbeiten'!D46 -> 0 | P63: 0 | Q63: 0 | R63: 0 | S63: 0
D64: ='diverse Arbeiten'!A47 -> 0 | E64: ='diverse Arbeiten'!B47 -> 0 | F64: ='diverse Arbeiten'!C47 -> 0 | G64: ='diverse Arbeiten'!D47 -> 0 | P64: 0 | Q64: 0 | R64: 0 | S64: 0
D65: ='diverse Arbeiten'!A48 -> 0 | E65: ='diverse Arbeiten'!B48 -> 0 | F65: ='diverse Arbeiten'!C48 -> 0 | G65: ='diverse Arbeiten'!D48 -> 0 | P65: 0 | Q65: 0 | R65: 0 | S65: 0
D66: ='diverse Arbeiten'!A49 -> 0 | E66: ='diverse Arbeiten'!B49 -> 0 | F66: ='diverse Arbeiten'!C49 -> 0 | G66: ='diverse Arbeiten'!D49 -> 0 | P66: 0 | Q66: 0 | R66: 0 | S66: 0
D67: ='diverse Arbeiten'!A50 -> 0 | E67: ='diverse Arbeiten'!B50 -> 0 | F67: ='diverse Arbeiten'!C50 -> 0 | G67: ='diverse Arbeiten'!D50 -> 0 | P67: 0 | Q67: 0 | R67: 0 | S67: 0
D68: ='diverse Arbeiten'!A51 -> 0 | E68: ='diverse Arbeiten'!B51 -> 0 | F68: ='diverse Arbeiten'!C51 -> 0 | G68: ='diverse Arbeiten'!D51 -> 0 | P68: 0 | Q68: 0 | R68: 0 | S68: 0
D69: ='diverse Arbeiten'!A52 -> 0 | E69: ='diverse Arbeiten'!B52 -> 0 | F69: ='diverse Arbeiten'!C52 -> 0 | G69: ='diverse Arbeiten'!D52 -> 0 | P69: 0 | Q69: 0 | R69: 0 | S69: 0
D70: ='diverse Arbeiten'!A53 -> 0 | E70: ='diverse Arbeiten'!B53 -> 0 | F70: ='diverse Arbeiten'!C53 -> 0 | G70: ='diverse Arbeiten'!D53 -> 0 | P70: 0 | Q70: 0 | R70: 0 | S70: 0
D71: ='diverse Arbeiten'!A54 -> 0 | E71: ='diverse Arbeiten'!B54 -> 0 | F71: ='diverse Arbeiten'!C54 -> 0 | G71: ='diverse Arbeiten'!D54 -> 0 | P71: 0 | Q71: 0 | R71: 0 | S71: 0
D72: ='diverse Arbeiten'!A55 -> 0 | E72: ='diverse Arbeiten'!B55 -> 0 | F72: ='diverse Arbeiten'!C55 -> 0 | G72: ='diverse Arbeiten'!D55 -> 0 | P72: 0 | Q72: 0 | R72: 0 | S72: 0
D73: ='diverse Arbeiten'!A56 -> 0 | E73: ='diverse Arbeiten'!B56 -> 0 | F73: ='diverse Arbeiten'!C56 -> 0 | G73: ='diverse Arbeiten'!D56 -> 0 | P73: 0 | Q73: 0 | R73: 0 | S73: 0
D74: ='diverse Arbeiten'!A57 -> 0 | E74: ='diverse Arbeiten'!B57 -> 0 | F74: ='diverse Arbeiten'!C57 -> 0 | G74: ='diverse Arbeiten'!D57 -> 0 | P74: 0 | Q74: 0 | R74: 0 | S74: 0
D75: ='diverse Arbeiten'!A58 -> 0 | E75: ='diverse Arbeiten'!B58 -> 0 | F75: ='diverse Arbeiten'!C58 -> 0 | G75: ='diverse Arbeiten'!D58 -> 0 | P75: 0 | Q75: 0 | R75: 0 | S75: 0
D76: ='diverse Arbeiten'!A59 -> 0 | E76: ='diverse Arbeiten'!B59 -> 0 | F76: ='diverse Arbeiten'!C59 -> 0 | G76: ='diverse Arbeiten'!D59 -> 0 | P76: 0 | Q76: 0 | R76: 0 | S76: 0
D77: ='diverse Arbeiten'!A60 -> 0 | E77: ='diverse Arbeiten'!B60 -> 0 | F77: ='diverse Arbeiten'!C60 -> 0 | G77: ='diverse Arbeiten'!D60 -> 0 | P77: 0 | Q77: 0 | R77: 0 | S77: 0
D78: ='diverse Arbeiten'!A61 -> 0 | E78: ='diverse Arbeiten'!B61 -> 0 | F78: ='diverse Arbeiten'!C61 -> 0 | G78: ='diverse Arbeiten'!D61 -> 0 | P78: 0 | Q78: 0 | R78: 0 | S78: 0
D79: ='diverse Arbeiten'!A62 -> 0 | E79: ='diverse Arbeiten'!B62 -> 0 | F79: ='diverse Arbeiten'!C62 -> 0 | G79: ='diverse Arbeiten'!D62 -> 0 | P79: 0 | Q79: 0 | R79: 0 | S79: 0
D80: ='diverse Arbeiten'!A63 -> 0 | E80: ='diverse Arbeiten'!B63 -> 0 | F80: ='diverse Arbeiten'!C63 -> 0 | G80: ='diverse Arbeiten'!D63 -> 0 | P80: 0 | Q80: 0 | R80: 0 | S80: 0
D81: ='diverse Arbeiten'!A64 -> 0 | E81: ='diverse Arbeiten'!B64 -> 0 | F81: ='diverse Arbeiten'!C64 -> 0 | G81: ='diverse Arbeiten'!D64 -> 0 | P81: 0 | Q81: 0 | R81: 0 | S81: 0
D82: ='diverse Arbeiten'!A65 -> 0 | E82: ='diverse Arbeiten'!B65 -> 0 | F82: ='diverse Arbeiten'!C65 -> 0 | G82: ='diverse Arbeiten'!D65 -> 0 | P82: 0 | Q82: 0 | R82: 0 | S82: 0
D83: ='diverse Arbeiten'!A66 -> 0 | E83: ='diverse Arbeiten'!B66 -> 0 | F83: ='diverse Arbeiten'!C66 -> 0 | G83: ='diverse Arbeiten'!D66 -> 0 | P83: 0 | Q83: 0 | R83: 0 | S83: 0
D84: ='diverse Arbeiten'!A67 -> 0 | E84: ='diverse Arbeiten'!B67 -> 0 | F84: ='diverse Arbeiten'!C67 -> 0 | G84: ='diverse Arbeiten'!D67 -> 0 | P84: 0 | Q84: 0 | R84: 0 | S84: 0
D85: ='diverse Arbeiten'!A68 -> 0 | E85: ='diverse Arbeiten'!B68 -> 0 | F85: ='diverse Arbeiten'!C68 -> 0 | G85: ='diverse Arbeiten'!D68 -> 0 | P85: 0 | Q85: 0 | R85: 0 | S85: 0
D86: ='diverse Arbeiten'!A69 -> 0 | E86: ='diverse Arbeiten'!B69 -> 0 | F86: ='diverse Arbeiten'!C69 -> 0 | G86: ='diverse Arbeiten'!D69 -> 0 | P86: 0 | Q86: 0 | R86: 0 | S86: 0
D87: ='diverse Arbeiten'!A70 -> 0 | E87: ='diverse Arbeiten'!B70 -> 0 | F87: ='diverse Arbeiten'!C70 -> 0 | G87: ='diverse Arbeiten'!D70 -> 0 | P87: 0 | Q87: 0 | R87: 0 | S87: 0
D88: ='diverse Arbeiten'!A71 -> 0 | E88: ='diverse Arbeiten'!B71 -> 0 | F88: ='diverse Arbeiten'!C71 -> 0 | G88: ='diverse Arbeiten'!D71 -> 0 | P88: 0 | Q88: 0 | R88: 0 | S88: 0
D89: ='diverse Arbeiten'!A72 -> 0 | E89: ='diverse Arbeiten'!B72 -> 0 | F89: ='diverse Arbeiten'!C72 -> 0 | G89: ='diverse Arbeiten'!D72 -> 0 | P89: 0 | Q89: 0 | R89: 0 | S89: 0
D90: ='diverse Arbeiten'!A73 -> 0 | E90: ='diverse Arbeiten'!B73 -> 0 | F90: ='diverse Arbeiten'!C73 -> 0 | G90: ='diverse Arbeiten'!D73 -> 0 | P90: 0 | Q90: 0 | R90: 0 | S90: 0
D91: ='diverse Arbeiten'!A74 -> 0 | E91: ='diverse Arbeiten'!B74 -> 0 | F91: ='diverse Arbeiten'!C74 -> 0 | G91: ='diverse Arbeiten'!D74 -> 0 | P91: 0 | Q91: 0 | R91: 0 | S91: 0
D92: ='diverse Arbeiten'!A75 -> 0 | E92: ='diverse Arbeiten'!B75 -> 0 | F92: ='diverse Arbeiten'!C75 -> 0 | G92: ='diverse Arbeiten'!D75 -> 0 | P92: 0 | Q92: 0 | R92: 0 | S92: 0
D93: ='diverse Arbeiten'!A76 -> 0 | E93: ='diverse Arbeiten'!B76 -> 0 | F93: ='diverse Arbeiten'!C76 -> 0 | G93: ='diverse Arbeiten'!D76 -> 0 | P93: 0 | Q93: 0 | R93: 0 | S93: 0
D94: ='diverse Arbeiten'!A77 -> 0 | E94: ='diverse Arbeiten'!B77 -> 0 | F94: ='diverse Arbeiten'!C77 -> 0 | G94: ='diverse Arbeiten'!D77 -> 0 | P94: 0 | Q94: 0 | R94: 0 | S94: 0
D95: ='diverse Arbeiten'!A78 -> 0 | E95: ='diverse Arbeiten'!B78 -> 0 | F95: ='diverse Arbeiten'!C78 -> 0 | G95: ='diverse Arbeiten'!D78 -> 0 | P95: 0 | Q95: 0 | R95: 0 | S95: 0
D96: ='diverse Arbeiten'!A79 -> 0 | E96: ='diverse Arbeiten'!B79 -> 0 | F96: ='diverse Arbeiten'!C79 -> 0 | G96: ='diverse Arbeiten'!D79 -> 0 | P96: 0 | Q96: 0 | R96: 0 | S96: 0
D97: ='diverse Arbeiten'!A80 -> 0 | E97: ='diverse Arbeiten'!B80 -> 0 | F97: ='diverse Arbeiten'!C80 -> 0 | G97: ='diverse Arbeiten'!D80 -> 0 | P97: 0 | Q97: 0 | R97: 0 | S97: 0
D98: ='diverse Arbeiten'!A81 -> 0 | E98: ='diverse Arbeiten'!B81 -> 0 | F98: ='diverse Arbeiten'!C81 -> 0 | G98: ='diverse Arbeiten'!D81 -> 0 | P98: 0 | Q98: 0 | R98: 0 | S98: 0
D99: ='diverse Arbeiten'!A82 -> 0 | E99: ='diverse Arbeiten'!B82 -> 0 | F99: ='diverse Arbeiten'!C82 -> 0 | G99: ='diverse Arbeiten'!D82 -> 0 | P99: 0 | Q99: 0 | R99: 0 | S99: 0
D100: ='diverse Arbeiten'!A83 -> 0 | E100: ='diverse Arbeiten'!B83 -> 0 | F100: ='diverse Arbeiten'!C83 -> 0 | G100: ='diverse Arbeiten'!D83 -> 0 | P100: 0 | Q100: 0 | R100: 0 | S100: 0
D101: ='diverse Arbeiten'!A84 -> 0 | E101: ='diverse Arbeiten'!B84 -> 0 | F101: ='diverse Arbeiten'!C84 -> 0 | G101: ='diverse Arbeiten'!D84 -> 0 | P101: 0 | Q101: 0 | R101: 0 | S101: 0
D102: ='diverse Arbeiten'!A85 -> 0 | E102: ='diverse Arbeiten'!B85 -> 0 | F102: ='diverse Arbeiten'!C85 -> 0 | G102: ='diverse Arbeiten'!D85 -> 0 | P102: 0 | Q102: 0 | R102: 0 | S102: 0
D103: ='diverse Arbeiten'!A86 -> 0 | E103: ='diverse Arbeiten'!B86 -> 0 | F103: ='diverse Arbeiten'!C86 -> 0 | G103: ='diverse Arbeiten'!D86 -> 0 | P103: 0 | Q103: 0 | R103: 0 | S103: 0
D104: ='diverse Arbeiten'!A87 -> 0 | E104: ='diverse Arbeiten'!B87 -> 0 | F104: ='diverse Arbeiten'!C87 -> 0 | G104: ='diverse Arbeiten'!D87 -> 0 | P104: 0 | Q104: 0 | R104: 0 | S104: 0
D105: ='diverse Arbeiten'!A88 -> 0 | E105: ='diverse Arbeiten'!B88 -> 0 | F105: ='diverse Arbeiten'!C88 -> 0 | G105: ='diverse Arbeiten'!D88 -> 0 | P105: 0 | Q105: 0 | R105: 0 | S105: 0
D106: ='diverse Arbeiten'!A89 -> 0 | E106: ='diverse Arbeiten'!B89 -> 0 | F106: ='diverse Arbeiten'!C89 -> 0 | G106: ='diverse Arbeiten'!D89 -> 0 | P106: 0 | Q106: 0 | R106: 0 | S106: 0
D107: ='diverse Arbeiten'!A90 -> 0 | E107: ='diverse Arbeiten'!B90 -> 0 | F107: ='diverse Arbeiten'!C90 -> 0 | G107: ='diverse Arbeiten'!D90 -> 0 | P107: 0 | Q107: 0 | R107: 0 | S107: 0
D108: ='diverse Arbeiten'!A91 -> 0 | E108: ='diverse Arbeiten'!B91 -> 0 | F108: ='diverse Arbeiten'!C91 -> 0 | G108: ='diverse Arbeiten'!D91 -> 0 | P108: 0 | Q108: 0 | R108: 0 | S108: 0
D109: ='diverse Arbeiten'!A92 -> 0 | E109: ='diverse Arbeiten'!B92 -> 0 | F109: ='diverse Arbeiten'!C92 -> 0 | G109: ='diverse Arbeiten'!D92 -> 0 | P109: 0 | Q109: 0 | R109: 0 | S109: 0
D110: ='diverse Arbeiten'!A93 -> 0 | E110: ='diverse Arbeiten'!B93 -> 0 | F110: ='diverse Arbeiten'!C93 -> 0 | G110: ='diverse Arbeiten'!D93 -> 0 | P110: 0 | Q110: 0 | R110: 0 | S110: 0
D111: ='diverse Arbeiten'!A94 -> 0 | E111: ='diverse Arbeiten'!B94 -> 0 | F111: ='diverse Arbeiten'!C94 -> 0 | G111: ='diverse Arbeiten'!D94 -> 0 | P111: 0 | Q111: 0 | R111: 0 | S111: 0
D112: ='diverse Arbeiten'!A95 -> 0 | E112: ='diverse Arbeiten'!B95 -> 0 | F112: ='diverse Arbeiten'!C95 -> 0 | G112: ='diverse Arbeiten'!D95 -> 0 | P112: 0 | Q112: 0 | R112: 0 | S112: 0
D113: ='diverse Arbeiten'!A96 -> 0 | E113: ='diverse Arbeiten'!B96 -> 0 | F113: ='diverse Arbeiten'!C96 -> 0 | G113: ='diverse Arbeiten'!D96 -> 0 | P113: 0 | Q113: 0 | R113: 0 | S113: 0
D114: ='diverse Arbeiten'!A97 -> 0 | E114: ='diverse Arbeiten'!B97 -> 0 | F114: ='diverse Arbeiten'!C97 -> 0 | G114: ='diverse Arbeiten'!D97 -> 0 | P114: 0 | Q114: 0 | R114: 0 | S114: 0
D115: ='diverse Arbeiten'!A98 -> 0 | E115: ='diverse Arbeiten'!B98 -> 0 | F115: ='diverse Arbeiten'!C98 -> 0 | G115: ='diverse Arbeiten'!D98 -> 0 | P115: 0 | Q115: 0 | R115: 0 | S115: 0
D116: ='diverse Arbeiten'!A99 -> 0 | E116: ='diverse Arbeiten'!B99 -> 0 | F116: ='diverse Arbeiten'!C99 -> 0 | G116: ='diverse Arbeiten'!D99 -> 0 | P116: 0 | Q116: 0 | R116: 0 | S116: 0
D117: ='diverse Arbeiten'!A100 -> 0 | E117: ='diverse Arbeiten'!B100 -> 0 | F117: ='diverse Arbeiten'!C100 -> 0 | G117: ='diverse Arbeiten'!D100 -> 0 | P117: 0 | Q117: 0 | R117: 0 | S117: 0
D118: ='diverse Arbeiten'!A101 -> 0 | E118: ='diverse Arbeiten'!B101 -> 0 | F118: ='diverse Arbeiten'!C101 -> 0 | G118: ='diverse Arbeiten'!D101 -> 0 | P118: 0 | Q118: 0 | R118: 0 | S118: 0
D119: ='diverse Arbeiten'!A102 -> 0 | E119: ='diverse Arbeiten'!B102 -> 0 | F119: ='diverse Arbeiten'!C102 -> 0 | G119: ='diverse Arbeiten'!D102 -> 0 | P119: 0 | Q119: 0 | R119: 0 | S119: 0
D120: ='diverse Arbeiten'!A103 -> 0 | E120: ='diverse Arbeiten'!B103 -> 0 | F120: ='diverse Arbeiten'!C103 -> 0 | G120: ='diverse Arbeiten'!D103 -> 0 | P120: 0 | Q120: 0 | R120: 0 | S120: 0
D121: ='diverse Arbeiten'!A104 -> 0 | E121: ='diverse Arbeiten'!B104 -> 0 | F121: ='diverse Arbeiten'!C104 -> 0 | G121: ='diverse Arbeiten'!D104 -> 0 | P121: 0 | Q121: 0 | R121: 0 | S121: 0
D124: TGM Standartgewinde | P124: TGM Standartgewinde
D126: ='TGM Standardgewinde'!A3 -> 0 | E126: ='TGM Standardgewinde'!B3 -> 0 | F126: ='TGM Standardgewinde'!C3 -> 0 | G126: ='TGM Standardgewinde'!D3 -> 0 | P126: 0 | Q126: M3 | R126: 0 | S126: 1.5
D127: ='TGM Standardgewinde'!A4 -> 0 | E127: ='TGM Standardgewinde'!B4 -> M4 | F127: ='TGM Standardgewinde'!C4 -> 0 | G127: ='TGM Standardgewinde'!D4 -> 1.7 | P127: 0 | Q127: M4 | R127: 0 | S127: 1.7
D128: ='TGM Standardgewinde'!A5 -> 0 | E128: ='TGM Standardgewinde'!B5 -> M5 | F128: ='TGM Standardgewinde'!C5 -> 0 | G128: ='TGM Standardgewinde'!D5 -> 2 | P128: 0 | Q128: M5 | R128: 0 | S128: 2
D129: ='TGM Standardgewinde'!A6 -> 0 | E129: ='TGM Standardgewinde'!B6 -> M6 | F129: ='TGM Standardgewinde'!C6 -> 0 | G129: ='TGM Standardgewinde'!D6 -> 2.5 | P129: 0 | Q129: M6 | R129: 0 | S129: 2.5
D130: ='TGM Standardgewinde'!A7 -> 0 | E130: ='TGM Standardgewinde'!B7 -> M8 | F130: ='TGM Standardgewinde'!C7 -> 0 | G130: ='TGM Standardgewinde'!D7 -> 3 | P130: 0 | Q130: M8 | R130: 0 | S130: 3
D131: ='TGM Standardgewinde'!A8 -> 0 | E131: ='TGM Standardgewinde'!B8 -> M10 | F131: ='TGM Standardgewinde'!C8 -> 0 | G131: ='TGM Standardgewinde'!D8 -> 3.5 | P131: 0 | Q131: M10 | R131: 0 | S131: 3.5
D132: ='TGM Standardgewinde'!A9 -> 0 | E132: ='TGM Standardgewinde'!B9 -> M12 | F132: ='TGM Standardgewinde'!C9 -> 0 | G132: ='TGM Standardgewinde'!D9 -> 3.7 | P132: 0 | Q132: M12 | R132: 0 | S132: 3.7
D133: ='TGM Standardgewinde'!A10 -> 0 | E133: ='TGM Standardgewinde'!B10 -> M14 | F133: ='TGM Standardgewinde'!C10 -> 0 | G133: ='TGM Standardgewinde'!D10 -> 4 | P133: 0 | Q133: M14 | R133: 0 | S133: 4
D134: ='TGM Standardgewinde'!A11 -> 0 | E134: ='TGM Standardgewinde'!B11 -> M16 | F134: ='TGM Standardgewinde'!C11 -> 0 | G134: ='TGM Standardgewinde'!D11 -> 4.2 | P134: AG1 4xM16 Transportgewinde | Q134: M16 | R134: 4 | S134: 4.2
D135: ='TGM Standardgewinde'!A12 -> 0 | E135: ='TGM Standardgewinde'!B12 -> M18 | F135: ='TGM Standardgewinde'!C12 -> 0 | G135: ='TGM Standardgewinde'!D12 -> 4.5 | P135: 0 | Q135: M18 | R135: 0 | S135: 4.5
D136: ='TGM Standardgewinde'!A13 -> 0 | E136: ='TGM Standardgewinde'!B13 -> M20 | F136: ='TGM Standardgewinde'!C13 -> 0 | G136: ='TGM Standardgewinde'!D13 -> 4.7 | P136: 0 | Q136: M20 | R136: 0 | S136: 4.7
D137: ='TGM Standardgewinde'!A14 -> 0 | E137: ='TGM Standardgewinde'!B14 -> M22 | F137: ='TGM Standardgewinde'!C14 -> 0 | G137: ='TGM Standardgewinde'!D14 -> 5 | P137: 0 | Q137: M22 | R137: 0 | S137: 5
D138: ='TGM Standardgewinde'!A15 -> 0 | E138: ='TGM Standardgewinde'!B15 -> M24 | F138: ='TGM Standardgewinde'!C15 -> 0 | G138: ='TGM Standardgewinde'!D15 -> 5.5 | P138: 0 | Q138: M24 | R138: 0 | S138: 5.5
D139: ='TGM Standardgewinde'!A16 -> 0 | E139: ='TGM Standardgewinde'!B16 -> G1/8" | F139: ='TGM Standardgewinde'!C16 -> 0 | G139: ='TGM Standardgewinde'!D16 -> 2 | P139: 0 | Q139: G1/8" | R139: 0 | S139: 2
D140: ='TGM Standardgewinde'!A17 -> 0 | E140: ='TGM Standardgewinde'!B17 -> G1/4" | F140: ='TGM Standardgewinde'!C17 -> 0 | G140: ='TGM Standardgewinde'!D17 -> 3 | P140: 0 | Q140: G1/4" | R140: 0 | S140: 3
D141: ='TGM Standardgewinde'!A18 -> 0 | E141: ='TGM Standardgewinde'!B18 -> G1/2" | F141: ='TGM Standardgewinde'!C18 -> 0 | G141: ='TGM Standardgewinde'!D18 -> 3.5 | P141: 0 | Q141: G1/2" | R141: 0 | S141: 3.5
D142: ='TGM Standardgewinde'!A19 -> 0 | E142: ='TGM Standardgewinde'!B19 -> G3/4" | F142: ='TGM Standardgewinde'!C19 -> 0 | G142: ='TGM Standardgewinde'!D19 -> 4 | P142: 0 | Q142: G3/4" | R142: 0 | S142: 4
D143: ='TGM Standardgewinde'!A20 -> 0 | E143: ='TGM Standardgewinde'!B20 -> G1 | F143: ='TGM Standardgewinde'!C20 -> 0 | G143: ='TGM Standardgewinde'!D20 -> 5 | P143: 0 | Q143: G1 | R143: 0 | S143: 5
D144: ='TGM Standardgewinde'!A21 -> 0 | E144: ='TGM Standardgewinde'!B21 -> 0 | F144: ='TGM Standardgewinde'!C21 -> 0 | G144: ='TGM Standardgewinde'!D21 -> 0 | P144: 0 | Q144: 0 | R144: 0 | S144: 0
D145: ='TGM Standardgewinde'!A22 -> 0 | E145: ='TGM Standardgewinde'!B22 -> 0 | F145: ='TGM Standardgewinde'!C22 -> 0 | G145: ='TGM Standardgewinde'!D22 -> 0 | P145: 0 | Q145: 0 | R145: 0 | S145: 0
D146: ='TGM Standardgewinde'!A23 -> 0 | E146: ='TGM Standardgewinde'!B23 -> 0 | F146: ='TGM Standardgewinde'!C23 -> 0 | G146: ='TGM Standardgewinde'!D23 -> 0 | P146: 0 | Q146: 0 | R146: 0 | S146: 0
D147: ='TGM Standardgewinde'!A24 -> 0 | E147: ='TGM Standardgewinde'!B24 -> 0 | F147: ='TGM Standardgewinde'!C24 -> 0 | G147: ='TGM Standardgewinde'!D24 -> 0 | P147: 0 | Q147: 0 | R147: 0 | S147: 0
D148: ='TGM Standardgewinde'!A25 -> 0 | E148: ='TGM Standardgewinde'!B25 -> 0 | F148: ='TGM Standardgewinde'!C25 -> 0 | G148: ='TGM Standardgewinde'!D25 -> 0 | P148: 0 | Q148: 0 | R148: 0 | S148: 0
D149: ='TGM Standardgewinde'!A26 -> 0 | E149: ='TGM Standardgewinde'!B26 -> 0 | F149: ='TGM Standardgewinde'!C26 -> 0 | G149: ='TGM Standardgewinde'!D26 -> 0 | P149: 0 | Q149: 0 | R149: 0 | S149: 0
D150: ='TGM Standardgewinde'!A27 -> 0 | E150: ='TGM Standardgewinde'!B27 -> 0 | F150: ='TGM Standardgewinde'!C27 -> 0 | G150: ='TGM Standardgewinde'!D27 -> 0 | P150: 0 | Q150: 0 | R150: 0 | S150: 0
D151: ='TGM Standardgewinde'!A28 -> 0 | E151: ='TGM Standardgewinde'!B28 -> 0 | F151: ='TGM Standardgewinde'!C28 -> 0 | G151: ='TGM Standardgewinde'!D28 -> 0 | P151: 0 | Q151: 0 | R151: 0 | S151: 0
D152: ='TGM Standardgewinde'!A29 -> 0 | E152: ='TGM Standardgewinde'!B29 -> 0 | F152: ='TGM Standardgewinde'!C29 -> 0 | G152: ='TGM Standardgewinde'!D29 -> 0 | P152: 0 | Q152: 0 | R152: 0 | S152: 0
D153: ='TGM Standardgewinde'!A30 -> 0 | E153: ='TGM Standardgewinde'!B30 -> 0 | F153: ='TGM Standardgewinde'!C30 -> 0 | G153: ='TGM Standardgewinde'!D30 -> 0 | P153: 0 | Q153: 0 | R153: 0 | S153: 0
D154: ='TGM Standardgewinde'!A31 -> 0 | E154: ='TGM Standardgewinde'!B31 -> 0 | F154: ='TGM Standardgewinde'!C31 -> 0 | G154: ='TGM Standardgewinde'!D31 -> 0 | P154: 0 | Q154: 0 | R154: 0 | S154: 0
D155: ='TGM Standardgewinde'!A32 -> 0 | E155: ='TGM Standardgewinde'!B32 -> 0 | F155: ='TGM Standardgewinde'!C32 -> 0 | G155: ='TGM Standardgewinde'!D32 -> 0 | P155: 0 | Q155: 0 | R155: 0 | S155: 0
D156: ='TGM Standardgewinde'!A33 -> 0 | E156: ='TGM Standardgewinde'!B33 -> 0 | F156: ='TGM Standardgewinde'!C33 -> 0 | G156: ='TGM Standardgewinde'!D33 -> 0 | P156: 0 | Q156: 0 | R156: 0 | S156: 0
D157: ='TGM Standardgewinde'!A34 -> 0 | E157: ='TGM Standardgewinde'!B34 -> 0 | F157: ='TGM Standardgewinde'!C34 -> 0 | G157: ='TGM Standardgewinde'!D34 -> 0 | P157: 0 | Q157: 0 | R157: 0 | S157: 0
D158: ='TGM Standardgewinde'!A35 -> 0 | E158: ='TGM Standardgewinde'!B35 -> 0 | F158: ='TGM Standardgewinde'!C35 -> 0 | G158: ='TGM Standardgewinde'!D35 -> 0 | P158: 0 | Q158: 0 | R158: 0 | S158: 0
D159: ='TGM Standardgewinde'!A36 -> 0 | E159: ='TGM Standardgewinde'!B36 -> 0 | F159: ='TGM Standardgewinde'!C36 -> 0 | G159: ='TGM Standardgewinde'!D36 -> 0 | P159: 0 | Q159: 0 | R159: 0 | S159: 0
D160: ='TGM Standardgewinde'!A37 -> 0 | E160: ='TGM Standardgewinde'!B37 -> 0 | F160: ='TGM Standardgewinde'!C37 -> 0 | G160: ='TGM Standardgewinde'!D37 -> 0 | P160: 0 | Q160: 0 | R160: 0 | S160: 0
D161: ='TGM Standardgewinde'!A38 -> 0 | E161: ='TGM Standardgewinde'!B38 -> 0 | F161: ='TGM Standardgewinde'!C38 -> 0 | G161: ='TGM Standardgewinde'!D38 -> 0 | P161: 0 | Q161: 0 | R161: 0 | S161: 0
D162: ='TGM Standardgewinde'!A39 -> 0 | E162: ='TGM Standardgewinde'!B39 -> 0 | F162: ='TGM Standardgewinde'!C39 -> 0 | G162: ='TGM Standardgewinde'!D39 -> 0 | P162: 0 | Q162: 0 | R162: 0 | S162: 0
D163: ='TGM Standardgewinde'!A40 -> 0 | E163: ='TGM Standardgewinde'!B40 -> 0 | F163: ='TGM Standardgewinde'!C40 -> 0 | G163: ='TGM Standardgewinde'!D40 -> 0 | P163: 0 | Q163: 0 | R163: 0 | S163: 0
D164: ='TGM Standardgewinde'!A41 -> 0 | E164: ='TGM Standardgewinde'!B41 -> 0 | F164: ='TGM Standardgewinde'!C41 -> 0 | G164: ='TGM Standardgewinde'!D41 -> 0 | P164: 0 | Q164: 0 | R164: 0 | S164: 0
D165: ='TGM Standardgewinde'!A42 -> 0 | E165: ='TGM Standardgewinde'!B42 -> 0 | F165: ='TGM Standardgewinde'!C42 -> 0 | G165: ='TGM Standardgewinde'!D42 -> 0 | P165: 0 | Q165: 0 | R165: 0 | S165: 0
D166: ='TGM Standardgewinde'!A43 -> 0 | E166: ='TGM Standardgewinde'!B43 -> 0 | F166: ='TGM Standardgewinde'!C43 -> 0 | G166: ='TGM Standardgewinde'!D43 -> 0 | P166: 0 | Q166: 0 | R166: 0 | S166: 0
D167: ='TGM Standardgewinde'!A44 -> 0 | E167: ='TGM Standardgewinde'!B44 -> 0 | F167: ='TGM Standardgewinde'!C44 -> 0 | G167: ='TGM Standardgewinde'!D44 -> 0 | P167: 0 | Q167: 0 | R167: 0 | S167: 0
D168: ='TGM Standardgewinde'!A45 -> 0 | E168: ='TGM Standardgewinde'!B45 -> 0 | F168: ='TGM Standardgewinde'!C45 -> 0 | G168: ='TGM Standardgewinde'!D45 -> 0 | P168: 0 | Q168: 0 | R168: 0 | S168: 0
D169: ='TGM Standardgewinde'!A46 -> 0 | E169: ='TGM Standardgewinde'!B46 -> 0 | F169: ='TGM Standardgewinde'!C46 -> 0 | G169: ='TGM Standardgewinde'!D46 -> 0 | P169: 0 | Q169: 0 | R169: 0 | S169: 0
D170: ='TGM Standardgewinde'!A47 -> 0 | E170: ='TGM Standardgewinde'!B47 -> 0 | F170: ='TGM Standardgewinde'!C47 -> 0 | G170: ='TGM Standardgewinde'!D47 -> 0 | P170: 0 | Q170: 0 | R170: 0 | S170: 0
D171: ='TGM Standardgewinde'!A48 -> 0 | E171: ='TGM Standardgewinde'!B48 -> 0 | F171: ='TGM Standardgewinde'!C48 -> 0 | G171: ='TGM Standardgewinde'!D48 -> 0 | P171: 0 | Q171: 0 | R171: 0 | S171: 0
D172: ='TGM Standardgewinde'!A49 -> 0 | E172: ='TGM Standardgewinde'!B49 -> 0 | F172: ='TGM Standardgewinde'!C49 -> 0 | G172: ='TGM Standardgewinde'!D49 -> 0 | P172: 0 | Q172: 0 | R172: 0 | S172: 0
D173: ='TGM Standardgewinde'!A50 -> 0 | E173: ='TGM Standardgewinde'!B50 -> 0 | F173: ='TGM Standardgewinde'!C50 -> 0 | G173: ='TGM Standardgewinde'!D50 -> 0 | P173: 0 | Q173: 0 | R173: 0 | S173: 0
D174: ='TGM Standardgewinde'!A51 -> 0 | E174: ='TGM Standardgewinde'!B51 -> 0 | F174: ='TGM Standardgewinde'!C51 -> 0 | G174: ='TGM Standardgewinde'!D51 -> 0 | P174: 0 | Q174: 0 | R174: 0 | S174: 0
D175: ='TGM Standardgewinde'!A52 -> 0 | E175: ='TGM Standardgewinde'!B52 -> 0 | F175: ='TGM Standardgewinde'!C52 -> 0 | G175: ='TGM Standardgewinde'!D52 -> 0 | P175: 0 | Q175: 0 | R175: 0 | S175: 0
D178: TGM Bohren | P178: TGM Bohren
D180: ='TGM Bohren'!A4 -> 0 | E180: ='TGM Bohren'!B4 -> 0 | F180: ='TGM Bohren'!C4 -> 0 | G180: ='TGM Bohren'!D4 -> 0 | H180: ='TGM Bohren'!E4 -> 0 | I180: ='TGM Bohren'!F4 -> 0 | P180: 0 | Q180: 0 | R180: 0 | S180: 0 | T180: 0 | U180: 0
D181: ='TGM Bohren'!A5 -> 0 | E181: ='TGM Bohren'!B5 -> 0 | F181: ='TGM Bohren'!C5 -> 0 | G181: ='TGM Bohren'!D5 -> 0 | H181: ='TGM Bohren'!E5 -> 0 | I181: ='TGM Bohren'!F5 -> 0 | P181: 0 | Q181: 0 | R181: 0 | S181: 0 | T181: 0 | U181: 0
D182: ='TGM Bohren'!A6 -> 0 | E182: ='TGM Bohren'!B6 -> 0 | F182: ='TGM Bohren'!C6 -> 0 | G182: ='TGM Bohren'!D6 -> 0 | H182: ='TGM Bohren'!E6 -> 0 | I182: ='TGM Bohren'!F6 -> 0 | P182: 0 | Q182: 0 | R182: 0 | S182: 0 | T182: 0 | U182: 0
D183: ='TGM Bohren'!A7 -> 0 | E183: ='TGM Bohren'!B7 -> 0 | F183: ='TGM Bohren'!C7 -> 0 | G183: ='TGM Bohren'!D7 -> 0 | H183: ='TGM Bohren'!E7 -> 0 | I183: ='TGM Bohren'!F7 -> 0 | P183: 0 | Q183: 0 | R183: 0 | S183: 0 | T183: 0 | U183: 0
D184: ='TGM Bohren'!A8 -> 0 | E184: ='TGM Bohren'!B8 -> 0 | F184: ='TGM Bohren'!C8 -> 0 | G184: ='TGM Bohren'!D8 -> 0 | H184: ='TGM Bohren'!E8 -> 0 | I184: ='TGM Bohren'!F8 -> 0 | P184: 0 | Q184: 0 | R184: 0 | S184: 0 | T184: 0 | U184: 0
D185: ='TGM Bohren'!A9 -> 0 | E185: ='TGM Bohren'!B9 -> 0 | F185: ='TGM Bohren'!C9 -> 0 | G185: ='TGM Bohren'!D9 -> 0 | H185: ='TGM Bohren'!E9 -> 0 | I185: ='TGM Bohren'!F9 -> 0 | P185: 0 | Q185: 0 | R185: 0 | S185: 0 | T185: 0 | U185: 0
D186: ='TGM Bohren'!A10 -> 0 | E186: ='TGM Bohren'!B10 -> 0 | F186: ='TGM Bohren'!C10 -> 0 | G186: ='TGM Bohren'!D10 -> 0 | H186: ='TGM Bohren'!E10 -> 0 | I186: ='TGM Bohren'!F10 -> 0 | P186: 0 | Q186: 0 | R186: 0 | S186: 0 | T186: 0 | U186: 0
D187: ='TGM Bohren'!A11 -> 0 | E187: ='TGM Bohren'!B11 -> 0 | F187: ='TGM Bohren'!C11 -> 0 | G187: ='TGM Bohren'!D11 -> 0 | H187: ='TGM Bohren'!E11 -> 0 | I187: ='TGM Bohren'!F11 -> 0 | P187: 0 | Q187: 0 | R187: 0 | S187: 0 | T187: 0 | U187: 0
D188: ='TGM Bohren'!A12 -> 0 | E188: ='TGM Bohren'!B12 -> 0 | F188: ='TGM Bohren'!C12 -> 0 | G188: ='TGM Bohren'!D12 -> 0 | H188: ='TGM Bohren'!E12 -> 0 | I188: ='TGM Bohren'!F12 -> 0 | P188: 0 | Q188: 0 | R188: 0 | S188: 0 | T188: 0 | U188: 0
D189: ='TGM Bohren'!A13 -> 0 | E189: ='TGM Bohren'!B13 -> 0 | F189: ='TGM Bohren'!C13 -> 0 | G189: ='TGM Bohren'!D13 -> 0 | H189: ='TGM Bohren'!E13 -> 0 | I189: ='TGM Bohren'!F13 -> 0 | P189: 0 | Q189: 0 | R189: 0 | S189: 0 | T189: 0 | U189: 0
D190: ='TGM Bohren'!A14 -> 0 | E190: ='TGM Bohren'!B14 -> 0 | F190: ='TGM Bohren'!C14 -> 0 | G190: ='TGM Bohren'!D14 -> 0 | H190: ='TGM Bohren'!E14 -> 0 | I190: ='TGM Bohren'!F14 -> 0 | P190: 0 | Q190: 0 | R190: 0 | S190: 0 | T190: 0 | U190: 0
D191: ='TGM Bohren'!A15 -> 0 | E191: ='TGM Bohren'!B15 -> 0 | F191: ='TGM Bohren'!C15 -> 0 | G191: ='TGM Bohren'!D15 -> 0 | H191: ='TGM Bohren'!E15 -> 0 | I191: ='TGM Bohren'!F15 -> 0 | P191: 0 | Q191: 0 | R191: 0 | S191: 0 | T191: 0 | U191: 0
D192: ='TGM Bohren'!A16 -> 0 | E192: ='TGM Bohren'!B16 -> 0 | F192: ='TGM Bohren'!C16 -> 0 | G192: ='TGM Bohren'!D16 -> 0 | H192: ='TGM Bohren'!E16 -> 0 | I192: ='TGM Bohren'!F16 -> 0 | P192: 0 | Q192: 0 | R192: 0 | S192: 0 | T192: 0 | U192: 0
D193: ='TGM Bohren'!A17 -> 0 | E193: ='TGM Bohren'!B17 -> 0 | F193: ='TGM Bohren'!C17 -> 0 | G193: ='TGM Bohren'!D17 -> 0 | H193: ='TGM Bohren'!E17 -> 0 | I193: ='TGM Bohren'!F17 -> 0 | P193: 0 | Q193: 0 | R193: 0 | S193: 0 | T193: 0 | U193: 0
D194: ='TGM Bohren'!A18 -> 0 | E194: ='TGM Bohren'!B18 -> 0 | F194: ='TGM Bohren'!C18 -> 0 | G194: ='TGM Bohren'!D18 -> 0 | H194: ='TGM Bohren'!E18 -> 0 | I194: ='TGM Bohren'!F18 -> 0 | P194: 0 | Q194: 0 | R194: 0 | S194: 0 | T194: 0 | U194: 0
D195: ='TGM Bohren'!A19 -> 0 | E195: ='TGM Bohren'!B19 -> 0 | F195: ='TGM Bohren'!C19 -> 0 | G195: ='TGM Bohren'!D19 -> 0 | H195: ='TGM Bohren'!E19 -> 0 | I195: ='TGM Bohren'!F19 -> 0 | P195: 0 | Q195: 0 | R195: 0 | S195: 0 | T195: 0 | U195: 0
D196: ='TGM Bohren'!A20 -> 0 | E196: ='TGM Bohren'!B20 -> 0 | F196: ='TGM Bohren'!C20 -> 0 | G196: ='TGM Bohren'!D20 -> 0 | H196: ='TGM Bohren'!E20 -> 0 | I196: ='TGM Bohren'!F20 -> 0 | P196: 0 | Q196: 0 | R196: 0 | S196: 0 | T196: 0 | U196: 0
D197: ='TGM Bohren'!A21 -> 0 | E197: ='TGM Bohren'!B21 -> 0 | F197: ='TGM Bohren'!C21 -> 0 | G197: ='TGM Bohren'!D21 -> 0 | H197: ='TGM Bohren'!E21 -> 0 | I197: ='TGM Bohren'!F21 -> 0 | P197: 0 | Q197: 0 | R197: 0 | S197: 0 | T197: 0 | U197: 0
D198: ='TGM Bohren'!A22 -> 0 | E198: ='TGM Bohren'!B22 -> 0 | F198: ='TGM Bohren'!C22 -> 0 | G198: ='TGM Bohren'!D22 -> 0 | H198: ='TGM Bohren'!E22 -> 0 | I198: ='TGM Bohren'!F22 -> 0 | P198: 0 | Q198: 0 | R198: 0 | S198: 0 | T198: 0 | U198: 0
D199: ='TGM Bohren'!A23 -> 0 | E199: ='TGM Bohren'!B23 -> 0 | F199: ='TGM Bohren'!C23 -> 0 | G199: ='TGM Bohren'!D23 -> 0 | H199: ='TGM Bohren'!E23 -> 0 | I199: ='TGM Bohren'!F23 -> 0 | P199: 0 | Q199: 0 | R199: 0 | S199: 0 | T199: 0 | U199: 0
D200: ='TGM Bohren'!A24 -> 0 | E200: ='TGM Bohren'!B24 -> 0 | F200: ='TGM Bohren'!C24 -> 0 | G200: ='TGM Bohren'!D24 -> 0 | H200: ='TGM Bohren'!E24 -> 0 | I200: ='TGM Bohren'!F24 -> 0 | P200: 0 | Q200: 0 | R200: 0 | S200: 0 | T200: 0 | U200: 0
D201: ='TGM Bohren'!A25 -> 0 | E201: ='TGM Bohren'!B25 -> 0 | F201: ='TGM Bohren'!C25 -> 0 | G201: ='TGM Bohren'!D25 -> 0 | H201: ='TGM Bohren'!E25 -> 0 | I201: ='TGM Bohren'!F25 -> 0 | P201: 0 | Q201: 0 | R201: 0 | S201: 0 | T201: 0 | U201: 0
D202: ='TGM Bohren'!A26 -> 0 | E202: ='TGM Bohren'!B26 -> 0 | F202: ='TGM Bohren'!C26 -> 0 | G202: ='TGM Bohren'!D26 -> 0 | H202: ='TGM Bohren'!E26 -> 0 | I202: ='TGM Bohren'!F26 -> 0 | P202: 0 | Q202: 0 | R202: 0 | S202: 0 | T202: 0 | U202: 0
D205: Tiefbohren mehrere Arten | P205: Tiefbohren mehrere Arten
D207: =' Tiefbohren mehrere Arten'!B5 -> 0 | E207: =' Tiefbohren mehrere Arten'!C5 -> 0 | F207: =' Tiefbohren mehrere Arten'!D5 -> 0 | G207: =' Tiefbohren mehrere Arten'!E5 -> 0 | H207: =' Tiefbohren mehrere Arten'!F5 -> 0 | I207: =' Tiefbohren mehrere Arten'!G5 -> 0 | J207: =' Tiefbohren mehrere Arten'!H5 -> 0 | K207: =' Tiefbohren mehrere Arten'!I5 -> 0 | L207: =' Tiefbohren mehrere Arten'!J5 -> 0 | P207: AG1 Kugelpfanne vorbohren | Q207: 1 | R207: 130 | S207: 26 | T207: 1000 | U207: 146 | V207: 1 | W207: 10 | X207: 1
D208: =' Tiefbohren mehrere Arten'!B6 -> 0 | E208: =' Tiefbohren mehrere Arten'!C6 -> 0 | F208: =' Tiefbohren mehrere Arten'!D6 -> 0 | G208: =' Tiefbohren mehrere Arten'!E6 -> 0 | H208: =' Tiefbohren mehrere Arten'!F6 -> 0 | I208: =' Tiefbohren mehrere Arten'!G6 -> 0 | J208: =' Tiefbohren mehrere Arten'!H6 -> 0 | K208: =' Tiefbohren mehrere Arten'!I6 -> 0 | L208: =' Tiefbohren mehrere Arten'!J6 -> 0 | P208: 0 | Q208: 0 | R208: 0 | S208: 0 | T208: 0 | U208: 0 | V208: 0 | W208: 0 | X208: 0
D209: =' Tiefbohren mehrere Arten'!B7 -> 0 | E209: =' Tiefbohren mehrere Arten'!C7 -> 0 | F209: =' Tiefbohren mehrere Arten'!D7 -> 0 | G209: =' Tiefbohren mehrere Arten'!E7 -> 0 | H209: =' Tiefbohren mehrere Arten'!F7 -> 0 | I209: =' Tiefbohren mehrere Arten'!G7 -> 0 | J209: =' Tiefbohren mehrere Arten'!H7 -> 0 | K209: =' Tiefbohren mehrere Arten'!I7 -> 0 | L209: =' Tiefbohren mehrere Arten'!J7 -> 0 | P209: 0 | Q209: 0 | R209: 0 | S209: 0 | T209: 0 | U209: 0 | V209: 0 | W209: 0 | X209: 0
D210: =' Tiefbohren mehrere Arten'!B8 -> 0 | E210: =' Tiefbohren mehrere Arten'!C8 -> 0 | F210: =' Tiefbohren mehrere Arten'!D8 -> 0 | G210: =' Tiefbohren mehrere Arten'!E8 -> 0 | H210: =' Tiefbohren mehrere Arten'!F8 -> 0 | I210: =' Tiefbohren mehrere Arten'!G8 -> 0 | J210: =' Tiefbohren mehrere Arten'!H8 -> 0 | K210: =' Tiefbohren mehrere Arten'!I8 -> 0 | L210: =' Tiefbohren mehrere Arten'!J8 -> 0 | P210: 0 | Q210: 0 | R210: 0 | S210: 0 | T210: 0 | U210: 0 | V210: 0 | W210: 0 | X210: 0
D211: =' Tiefbohren mehrere Arten'!B9 -> 0 | E211: =' Tiefbohren mehrere Arten'!C9 -> 0 | F211: =' Tiefbohren mehrere Arten'!D9 -> 0 | G211: =' Tiefbohren mehrere Arten'!E9 -> 0 | H211: =' Tiefbohren mehrere Arten'!F9 -> 0 | I211: =' Tiefbohren mehrere Arten'!G9 -> 0 | J211: =' Tiefbohren mehrere Arten'!H9 -> 0 | K211: =' Tiefbohren mehrere Arten'!I9 -> 0 | L211: =' Tiefbohren mehrere Arten'!J9 -> 0 | P211: 0 | Q211: 0 | R211: 0 | S211: 0 | T211: 0 | U211: 0 | V211: 0 | W211: 0 | X211: 0
D212: =' Tiefbohren mehrere Arten'!B10 -> 0 | E212: =' Tiefbohren mehrere Arten'!C10 -> 0 | F212: =' Tiefbohren mehrere Arten'!D10 -> 0 | G212: =' Tiefbohren mehrere Arten'!E10 -> 0 | H212: =' Tiefbohren mehrere Arten'!F10 -> 0 | I212: =' Tiefbohren mehrere Arten'!G10 -> 0 | J212: =' Tiefbohren mehrere Arten'!H10 -> 0 | K212: =' Tiefbohren mehrere Arten'!I10 -> 0 | L212: =' Tiefbohren mehrere Arten'!J10 -> 0 | P212: 0 | Q212: 0 | R212: 0 | S212: 0 | T212: 0 | U212: 0 | V212: 0 | W212: 0 | X212: 0
... 538 more rows

Sheet Löschen
B1: Datensatz und Datei löschen | P1: 0815
P2: =IF(P1<>C5,"Hinweis7",IF(B7=0,"Hinweis8",IF(P3="*","Hinweis9","Datensatz_loeschen"))) -> Hinweis7
P3: =MID(B7,1,1) -> 
C4: Passworteingabe | D4: Passwort =
D5: 0815
B6: Teile-Nr. | C6: Benennung
C7: =IF(B7=0,"",VLOOKUP(B7,Suche!A:B,2,FALSE)) -> 
C8: =IF(B8=0,"",VLOOKUP(B8,Suche!A:B,2,FALSE)) -> 
C9: =IF(B9=0,"",VLOOKUP(B9,Suche!A:B,2,FALSE)) -> 
C10: =IF(B10=0,"",VLOOKUP(B10,Suche!A:B,2,FALSE)) -> 
C11: =IF(B11=0,"",VLOOKUP(B11,Suche!A:B,2,FALSE)) -> 
C12: =IF(B12=0,"",VLOOKUP(B12,Suche!A:B,2,FALSE)) -> 
C13: =IF(B13=0,"",VLOOKUP(B13,Suche!A:B,2,FALSE)) -> 
C14: =IF(B14=0,"",VLOOKUP(B14,Suche!A:B,2,FALSE)) -> 
C15: =IF(B15=0,"",VLOOKUP(B15,Suche!A:B,2,FALSE)) -> 
C16: =IF(B16=0,"",VLOOKUP(B16,Suche!A:B,2,FALSE)) -> 
C17: =IF(B17=0,"",VLOOKUP(B17,Suche!A:B,2,FALSE)) -> 
C18: =IF(B18=0,"",VLOOKUP(B18,Suche!A:B,2,FALSE)) -> 
C19: =IF(B19=0,"",VLOOKUP(B19,Suche!A:B,2,FALSE)) -> 
C20: =IF(B20=0,"",VLOOKUP(B20,Suche!A:B,2,FALSE)) -> 
C21: =IF(B21=0,"",VLOOKUP(B21,Suche!A:B,2,FALSE)) -> 
C22: =IF(B22=0,"",VLOOKUP(B22,Suche!A:B,2,FALSE)) -> 
C23: =IF(B23=0,"",VLOOKUP(B23,Suche!A:B,2,FALSE)) -> 
C24: =IF(B24=0,"",VLOOKUP(B24,Suche!A:B,2,FALSE)) -> 
C25: =IF(B25=0,"",VLOOKUP(B25,Suche!A:B,2,FALSE)) -> 
C26: =IF(B26=0,"",VLOOKUP(B26,Suche!A:B,2,FALSE)) -> 
C27: =IF(B27=0,"",VLOOKUP(B27,Suche!A:B,2,FALSE)) -> 
C28: =IF(B28=0,"",VLOOKUP(B28,Suche!A:B,2,FALSE)) -> 
C29: =IF(B29=0,"",VLOOKUP(B29,Suche!A:B,2,FALSE)) -> 
C30: =IF(B30=0,"",VLOOKUP(B30,Suche!A:B,2,FALSE)) -> 
C31: =IF(B31=0,"",VLOOKUP(B31,Suche!A:B,2,FALSE)) -> 
C32: =IF(B32=0,"",VLOOKUP(B32,Suche!A:B,2,FALSE)) -> 
C33: =IF(B33=0,"",VLOOKUP(B33,Suche!A:B,2,FALSE)) -> 
C34: =IF(B34=0,"",VLOOKUP(B34,Suche!A:B,2,FALSE)) -> 
C35: =IF(B35=0,"",VLOOKUP(B35,Suche!A:B,2,FALSE)) -> 
C36: =IF(B36=0,"",VLOOKUP(B36,Suche!A:B,2,FALSE)) -> 
C37: =IF(B37=0,"",VLOOKUP(B37,Suche!A:B,2,FALSE)) -> 
C38: =IF(B38=0,"",VLOOKUP(B38,Suche!A:B,2,FALSE)) -> 
C39: =IF(B39=0,"",VLOOKUP(B39,Suche!A:B,2,FALSE)) -> 
C40: =IF(B40=0,"",VLOOKUP(B40,Suche!A:B,2,FALSE)) -> 
C41: =IF(B41=0,"",VLOOKUP(B41,Suche!A:B,2,FALSE)) -> 
C42: =IF(B42=0,"",VLOOKUP(B42,Suche!A:B,2,FALSE)) -> 
C43: =IF(B43=0,"",VLOOKUP(B43,Suche!A:B,2,FALSE)) -> 
C44: =IF(B44=0,"",VLOOKUP(B44,Suche!A:B,2,FALSE)) -> 
C45: =IF(B45=0,"",VLOOKUP(B45,Suche!A:B,2,FALSE)) -> 
C46: =IF(B46=0,"",VLOOKUP(B46,Suche!A:B,2,FALSE)) -> 
C47: =IF(B47=0,"",VLOOKUP(B47,Suche!A:B,2,FALSE)) -> 
C48: =IF(B48=0,"",VLOOKUP(B48,Suche!A:B,2,FALSE)) -> 
C49: =IF(B49=0,"",VLOOKUP(B49,Suche!A:B,2,FALSE)) -> 
C50: =IF(B50=0,"",VLOOKUP(B50,Suche!A:B,2,FALSE)) -> 
C51: =IF(B51=0,"",VLOOKUP(B51,Suche!A:B,2,FALSE)) -> 
C52: =IF(B52=0,"",VLOOKUP(B52,Suche!A:B,2,FALSE)) -> 
C53: =IF(B53=0,"",VLOOKUP(B53,Suche!A:B,2,FALSE)) -> 
C54: =IF(B54=0,"",VLOOKUP(B54,Suche!A:B,2,FALSE)) -> 
C55: =IF(B55=0,"",VLOOKUP(B55,Suche!A:B,2,FALSE)) -> 
C56: =IF(B56=0,"",VLOOKUP(B56,Suche!A:B,2,FALSE)) -> 
C57: =IF(B57=0,"",VLOOKUP(B57,Suche!A:B,2,FALSE)) -> 
C58: =IF(B58=0,"",VLOOKUP(B58,Suche!A:B,2,FALSE)) -> 
C59: =IF(B59=0,"",VLOOKUP(B59,Suche!A:B,2,FALSE)) -> 
C60: =IF(B60=0,"",VLOOKUP(B60,Suche!A:B,2,FALSE)) -> 
C61: =IF(B61=0,"",VLOOKUP(B61,Suche!A:B,2,FALSE)) -> 
C62: =IF(B62=0,"",VLOOKUP(B62,Suche!A:B,2,FALSE)) -> 
C63: =IF(B63=0,"",VLOOKUP(B63,Suche!A:B,2,FALSE)) -> 
C64: =IF(B64=0,"",VLOOKUP(B64,Suche!A:B,2,FALSE)) -> 
C65: =IF(B65=0,"",VLOOKUP(B65,Suche!A:B,2,FALSE)) -> 
C66: =IF(B66=0,"",VLOOKUP(B66,Suche!A:B,2,FALSE)) -> 
C67: =IF(B67=0,"",VLOOKUP(B67,Suche!A:B,2,FALSE)) -> 
C68: =IF(B68=0,"",VLOOKUP(B68,Suche!A:B,2,FALSE)) -> 
C69: =IF(B69=0,"",VLOOKUP(B69,Suche!A:B,2,FALSE)) -> 
C70: =IF(B70=0,"",VLOOKUP(B70,Suche!A:B,2,FALSE)) -> 
C71: =IF(B71=0,"",VLOOKUP(B71,Suche!A:B,2,FALSE)) -> 
C72: =IF(B72=0,"",VLOOKUP(B72,Suche!A:B,2,FALSE)) -> 
C73: =IF(B73=0,"",VLOOKUP(B73,Suche!A:B,2,FALSE)) -> 
C74: =IF(B74=0,"",VLOOKUP(B74,Suche!A:B,2,FALSE)) -> 
C75: =IF(B75=0,"",VLOOKUP(B75,Suche!A:B,2,FALSE)) -> 
C76: =IF(B76=0,"",VLOOKUP(B76,Suche!A:B,2,FALSE)) -> 
C77: =IF(B77=0,"",VLOOKUP(B77,Suche!A:B,2,FALSE)) -> 
C78: =IF(B78=0,"",VLOOKUP(B78,Suche!A:B,2,FALSE)) -> 
C79: =IF(B79=0,"",VLOOKUP(B79,Suche!A:B,2,FALSE)) -> 
C80: =IF(B80=0,"",VLOOKUP(B80,Suche!A:B,2,FALSE)) -> 
C81: =IF(B81=0,"",VLOOKUP(B81,Suche!A:B,2,FALSE)) -> 
C82: =IF(B82=0,"",VLOOKUP(B82,Suche!A:B,2,FALSE)) -> 
C83: =IF(B83=0,"",VLOOKUP(B83,Suche!A:B,2,FALSE)) -> 
C84: =IF(B84=0,"",VLOOKUP(B84,Suche!A:B,2,FALSE)) -> 
C85: =IF(B85=0,"",VLOOKUP(B85,Suche!A:B,2,FALSE)) -> 
C86: =IF(B86=0,"",VLOOKUP(B86,Suche!A:B,2,FALSE)) -> 
C87: =IF(B87=0,"",VLOOKUP(B87,Suche!A:B,2,FALSE)) -> 
C88: =IF(B88=0,"",VLOOKUP(B88,Suche!A:B,2,FALSE)) -> 
C89: =IF(B89=0,"",VLOOKUP(B89,Suche!A:B,2,FALSE)) -> 
C90: =IF(B90=0,"",VLOOKUP(B90,Suche!A:B,2,FALSE)) -> 
C91: =IF(B91=0,"",VLOOKUP(B91,Suche!A:B,2,FALSE)) -> 
C92: =IF(B92=0,"",VLOOKUP(B92,Suche!A:B,2,FALSE)) -> 
C93: =IF(B93=0,"",VLOOKUP(B93,Suche!A:B,2,FALSE)) -> 
C94: =IF(B94=0,"",VLOOKUP(B94,Suche!A:B,2,FALSE)) -> 
C95: =IF(B95=0,"",VLOOKUP(B95,Suche!A:B,2,FALSE)) -> 
C96: =IF(B96=0,"",VLOOKUP(B96,Suche!A:B,2,FALSE)) -> 
C97: =IF(B97=0,"",VLOOKUP(B97,Suche!A:B,2,FALSE)) -> 
C98: =IF(B98=0,"",VLOOKUP(B98,Suche!A:B,2,FALSE)) -> 
C99: =IF(B99=0,"",VLOOKUP(B99,Suche!A:B,2,FALSE)) -> 
C100: =IF(B100=0,"",VLOOKUP(B100,Suche!A:B,2,FALSE)) -> 
C101: =IF(B101=0,"",VLOOKUP(B101,Suche!A:B,2,FALSE)) -> 
C102: =IF(B102=0,"",VLOOKUP(B102,Suche!A:B,2,FALSE)) -> 
C103: =IF(B103=0,"",VLOOKUP(B103,Suche!A:B,2,FALSE)) -> 
C104: =IF(B104=0,"",VLOOKUP(B104,Suche!A:B,2,FALSE)) -> 
C105: =IF(B105=0,"",VLOOKUP(B105,Suche!A:B,2,FALSE)) -> 
C106: =IF(B106=0,"",VLOOKUP(B106,Suche!A:B,2,FALSE)) -> 
C107: =IF(B107=0,"",VLOOKUP(B107,Suche!A:B,2,FALSE)) -> 

Sheet Werkzeugdaten
B1: Werkzeugdaten und Schnittwerte
B2: Bearbeitung: (Drehen, Fräsen, Bohren) | C2: Material: | D2: Werkzeug: | E2: Wendeplatte: | F2: Anzahl der Wendeplatten (Schneiden): | G2: Schnittgeschwindigkeit (Vc in m/min) | H2: Vorschub pro Zahn (Schneide) (fz in mm) | I2: Schnitttiefe (ap in mm) | J2: Schnittbreite (ae in mm) | K2: Bemerkung:
